Workbook

Sheet Interfaz
C5: POBLACIÓN ASIGNADA SEGÚN CENSOS INEI - RENIEC - PN - CNV - 2011
C10: RED INTEGRADA DE SALUD HUAURA OYÓN
A22: Elaboración: Área de Estadística - RIS Huaura Oyón.
A23: NOTA: LA POBLACION ESTIMADA DE EDADES SIMPLES Y GRUPOS DE EDAD DE DISTRITOS, CORRESPONDEN A CIFRAS REFERENCIALES HASTA OBTENER LAS CIFRAS DE LAS PROYECCIONES DEL INEI
A26: OFICINA DE GESTION DE LA INFORMACIÓN - MINISTERIO DE SALUD
R27: Versión1.030

Sheet Poblacion
C1: 1 | D1: 2 | E1: 3 | F1: 4 | G1: 5 | H1: 6 | I1: 7 | J1: 8 | K1: 9 | L1: 10 | M1: 11 | N1: 12 | O1: 13 | P1: 14 | Q1: 15 | R1: 16 | S1: 17 | T1: 18 | U1: 19 | V1: 20 | W1: 21 | X1: 22 | Y1: 23 | Z1: 24 | AA1: 25 | AB1: 26 | AC1: 27 | AD1: 28 | AE1: 29 | AF1: 30 | AG1: 31 | AH1: 32 | AI1: 33 | AJ1: 34 | AK1: 35 | AL1: 36 | AM1: 37 | AN1: 38 | AO1: 39 | AP1: 40 | AQ1: 41 | AR1: 42 | AS1: 43 | AT1: 44 | AU1: 45 | AV1: 46 | AW1: 47 | AX1: 48 | AY1: 49 | AZ1: 50 | BA1: 51 | BB1: 52 | BC1: 53 | BD1: 54 | BE1: 55 | BF1: 56 | BG1: 57 | BH1: 58 | BI1: 59 | BJ1: 60 | BK1: 61 | BL1: 62 | BM1: 63 | BN1: 64 | BO1: 65 | BP1: 66 | BQ1: 67 | BR1: 68 | BS1: 69 | BT1: 70 | BU1: 71 | BV1: 72 | BW1: 73 | BX1: 74 | BY1: 75 | BZ1: 76 | CA1: 77 | CB1: 78 | CC1: 79 | CD1: 80 | CE1: 81 | CF1: 82 | CG1: 83 | CH1: 84 | CI1: 85 | CJ1: 86 | CK1: 87 | CL1: 88 | CM1: 89 | CN1: 90 | CO1: 91 | CP1: 92 | CQ1: 93 | CU1: 77 | CV1: 78 | CW1: 79 | CX1: 80 | CY1: 81 | CZ1: 82 | DA1: 83 | DB1: 84 | DC1: 85 | DD1: 86 | DE1: 87 | DF1: 88 | DG1: 89 | DH1: 90 | DI1: 91 | DJ1: 92 | DK1: 93 | DL1: 94 | DM1: 95 | DN1: 96 | DO1: 97 | DP1: 98 | DQ1: 99 | DR1: 106 | DS1: 107 | DT1: 108 | DU1: 109 | DV1: 110 | DW1: 111
AE2: POBLACIÓN ESTIMADA POR GRUPOS DE EDAD, SEGÚN PROVINCIAS DISTRITOS Y ESTABLECIMIENTOS DE SALUD
AE3: RED INTEGRADA DE SALUD HUAURA OYON - AÑO 2011 | CK3: MAS GRUPOS DE EDAD
AE4: EDADES PUNTUALES Y GRUPOS DE EDAD
C5: N° | E5: DIRECCION DE SALUD | F5: TOTAL GENERAL | H5: TOTAL MASCULINO | I5: TOTAL FEMENINO | K5: EDAD | M5: EDAD | O5: EDAD | Q5: EDAD | S5: EDAD | U5: EDAD | W5: EDAD | Y5: EDAD | AA5: EDAD | AC5: EDAD | AE5: EDAD | AG5: EDAD | AI5: EDAD | AK5: EDAD | AM5: EDAD | AO5: EDAD | AQ5: EDAD | AS5: EDAD | AU5: EDAD | AW5: EDAD | AY5: EDAD | BA5: EDAD | BC5: EDAD | BE5: EDAD | BG5: EDAD | BI5: EDAD | BK5: EDAD | BM5: EDAD | BO5: EDAD | BQ5: EDAD | BS5: EDAD | BU5: EDAD | BW5: EDAD | BY5: NACIMIENTOS | BZ5: 28 DIAS | CA5: POBLACION FEMENINA | CF5: menor de 1 Año | CG5: Pre escolar (1-4) | CH5: Niño (0 - 11) | CI5: Escolar (05 - 17) | CJ5: Adolescente (12 - 17) | CK5: Adulto Joven (18 - 29) | CL5: Adulto (30-59) | CM5: Adu.Mayor (60 a MAS) | CO5: Escolar (05 - 09) | CP5: Adolescente (10 - 19) | CQ5: Adulto (20-59)
A6: UBIGEO | E6: PROVINCIA | K6: 0 | M6: 1 | O6: 2 | Q6: 3 | S6: 4 | U6: 5 | W6: 6 | Y6: 7 | AA6: 8 | AC6: 9 | AE6: 10 | AG6: 11 | AI6: 12 | AK6: 13 | AM6: 14 | AO6: 15 | AQ6: 16 | AS6: 17 | AU6: 18 | AW6: 19 | AY6: 20 - 24 | BA6: 25 - 29 | BC6: 30 - 34 | BE6: 35 - 39 | BG6: 40 - 44 | BI6: 45 - 49 | BK6: 50 - 54 | BM6: 55 - 59 | BO6: 60 - 64 | BQ6: 65 - 69 | BS6: 70- 74 | BU6: 75 - 79 | BW6: 80 - + | CA6: 10-14 | CB6: 15-19 | CC6: 20-49 | CD6: GESTANTES ESPERADAS
B7: Microredes | D7: RENAES | E7: DISTRITO | K7: M | L7: F | M7: M | N7: F | O7: M | P7: F | Q7: M | R7: F | S7: M | T7: F | U7: M | V7: F | W7: M | X7: F | Y7: M | Z7: F | AA7: M | AB7: F | AC7: M | AD7: F | AE7: M | AF7: F | AG7: M | AH7: F | AI7: M | AJ7: F | AK7: M | AL7: F | AM7: M | AN7: F | AO7: M | AP7: F | AQ7: M | AR7: F | AS7: M | AT7: F | AU7: M | AV7: F | AW7: M | AX7: F | AY7: M | AZ7: F | BA7: M | BB7: F | BC7: M | BD7: F | BE7: M | BF7: F | BG7: M | BH7: F | BI7: M | BJ7: F | BK7: M | BL7: F | BM7: M | BN7: F | BO7: M | BP7: F | BQ7: M | BR7: F | BS7: M | BT7: F | BU7: M | BV7: F | BW7: M | BX7: F
A8: 150000 | C8: 1 | E8: HUAURA - OYON | F8: 234514 | H8: 116119 | I8: 118395 | K8: 2195 | L8: 2239 | M8: 2102 | N8: 2143 | O8: 2042 | P8: 2082 | Q8: 2011 | R8: 2051 | S8: 2006 | T8: 2046 | U8: 2021 | V8: 2060 | W8: 2051 | X8: 2091 | Y8: 2096 | Z8: 2137 | AA8: 2149 | AB8: 2191 | AC8: 2205 | AD8: 2248 | AE8: 2266 | AF8: 2310 | AG8: 2332 | AH8: 2378 | AI8: 2376 | AJ8: 2422 | AK8: 2387 | AL8: 2434 | AM8: 2373 | AN8: 2419 | AO8: 2359 | AP8: 2405 | AQ8: 2344 | AR8: 2390 | AS8: 2308 | AT8: 2354 | AU8: 2241 | AV8: 2285 | AW8: 2154 | AX8: 2197 | AY8: 9682 | AZ8: 9871 | BA8: 9157 | BB8: 9336 | BC8: 8760 | BD8: 8932 | BE8: 7814 | BF8: 7968 | BG8: 7137 | BH8: 7277 | BI8: 6499 | BJ8: 6626 | BK8: 5283 | BL8: 5386 | BM8: 4585 | BN8: 4675 | BO8: 3722 | BP8: 3794 | BQ8: 3112 | BR8: 3173 | BS8: 2687 | BT8: 2740 | BU8: 1868 | BV8: 1904 | BW8: 1795 | BX8: 1831 | BY8: 4453 | BZ8: 340 | CA8: 11519 | CB8: 11260 | CC8: 49041 | CD8: 5499 | CF8: 4434 | CG8: 16483 | CH8: 51452 | CI8: 59106 | CJ8: 28571 | CK8: 46923 | CL8: 80942 | CM8: 26626 | CO8: =SUM(U8:AD8) -> 21249 | CP8: =SUM(AE8:AX8) -> 46734 | CQ8: =SUM(AY8:BN8) -> 118988
A9: 150800 | C9: 2 | D9: 150800 | E9: PROVINCIA HUAURA | F9: 211276 | H9: 104612 | I9: 106664 | K9: 1936 | L9: 1974 | M9: 1851 | N9: 1888 | O9: 1797 | P9: 1832 | Q9: 1769 | R9: 1803 | S9: 1763 | T9: 1798 | U9: 1777 | V9: 1812 | W9: 1806 | X9: 1841 | Y9: 1847 | Z9: 1883 | AA9: 1897 | AB9: 1935 | AC9: 1949 | AD9: 1988 | AE9: 2008 | AF9: 2048 | AG9: 2070 | AH9: 2111 | AI9: 2115 | AJ9: 2156 | AK9: 2135 | AL9: 2177 | AM9: 2136 | AN9: 2177 | AO9: 2135 | AP9: 2177 | AQ9: 2136 | AR9: 2178 | AS9: 2112 | AT9: 2153 | AU9: 2054 | AV9: 2094 | AW9: 1974 | AX9: 2012 | AY9: 8850 | AZ9: 9024 | BA9: 8249 | BB9: 8410 | BC9: 7886 | BD9: 8040 | BE9: 6983 | BF9: 7120 | BG9: 6487 | BH9: 6614 | BI9: 5884 | BJ9: 6000 | BK9: 4832 | BL9: 4927 | BM9: 4201 | BN9: 4284 | BO9: 3422 | BP9: 3489 | BQ9: 2805 | BR9: 2860 | BS9: 2432 | BT9: 2479 | BU9: 1669 | BV9: 1702 | BW9: 1645 | BX9: 1678 | BY9: 3925 | BZ9: 301 | CA9: 10289 | CB9: 10287 | CC9: 44856 | CD9: 4845 | CF9: 3910 | CG9: 14501 | CH9: 45383 | CI9: 52759 | CJ9: 25787 | CK9: 42667 | CL9: 73258 | CM9: 24181 | CO9: 18735 | CP9: 42158 | CQ9: 107791
A10: 150801 | C10: 3 | D10: 150802 | E10: DISTRITO HUACHO | F10: 57954 | H10: 28696 | I10: 29258 | K10: 486 | L10: 496 | M10: 459 | N10: 467 | O10: 440 | P10: 449 | Q10: 430 | R10: 438 | S10: 427 | T10: 436 | U10: 430 | V10: 438 | W10: 437 | X10: 446 | Y10: 449 | Z10: 458 | AA10: 463 | AB10: 473 | AC10: 479 | AD10: 488 | AE10: 497 | AF10: 507 | AG10: 516 | AH10: 527 | AI10: 531 | AJ10: 542 | AK10: 538 | AL10: 549 | AM10: 539 | AN10: 549 | AO10: 541 | AP10: 551 | AQ10: 542 | AR10: 553 | AS10: 538 | AT10: 549 | AU10: 528 | AV10: 538 | AW10: 512 | AX10: 523 | AY10: 2360 | AZ10: 2406 | BA10: 2207 | BB10: 2251 | BC10: 2123 | BD10: 2164 | BE10: 1949 | BF10: 1987 | BG10: 1881 | BH10: 1917 | BI10: 1755 | BJ10: 1789 | BK10: 1543 | BL10: 1574 | BM10: 1320 | BN10: 1345 | BO10: 1052 | BP10: 1072 | BQ10: 876 | BR10: 893 | BS10: 762 | BT10: 777 | BU10: 545 | BV10: 555 | BW10: 541 | BX10: 551 | BY10: 986 | BZ10: 75 | CA10: 2663 | CB10: 2655 | CC10: 12866 | CD10: 1207 | CF10: 982 | CG10: 3546 | CH10: 11136 | CI10: 13130 | CJ10: 6522 | CK10: 11325 | CL10: 21347 | CM10: 7624 | CO10: 4561 | CP10: 10670 | CQ10: 30571
B11: 00 | C11: 4 | D11: 7639 | E11: HOSPITAL HUACHO | F11: 45202 | H11: 22379 | I11: 22823 | K11: 379 | L11: 387 | M11: 357 | N11: 365 | O11: 343 | P11: 350 | Q11: 335 | R11: 342 | S11: 333 | T11: 340 | U11: 335 | V11: 342 | W11: 341 | X11: 348 | Y11: 350 | Z11: 357 | AA11: 361 | AB11: 369 | AC11: 373 | AD11: 381 | AE11: 388 | AF11: 395 | AG11: 403 | AH11: 411 | AI11: 414 | AJ11: 423 | AK11: 420 | AL11: 428 | AM11: 420 | AN11: 429 | AO11: 422 | AP11: 430 | AQ11: 423 | AR11: 431 | AS11: 420 | AT11: 428 | AU11: 411 | AV11: 420 | AW11: 400 | AX11: 407 | AY11: 1840 | AZ11: 1877 | BA11: 1722 | BB11: 1755 | BC11: 1656 | BD11: 1688 | BE11: 1520 | BF11: 1550 | BG11: 1467 | BH11: 1495 | BI11: 1369 | BJ11: 1395 | BK11: 1204 | BL11: 1227 | BM11: 1029 | BN11: 1050 | BO11: 820 | BP11: 837 | BQ11: 683 | BR11: 697 | BS11: 594 | BT11: 606 | BU11: 425 | BV11: 433 | BW11: 422 | BX11: 430 | BY11: 769 | BZ11: 58 | CA11: 2077 | CB11: 2071 | CC11: 10035 | CD11: 941 | CF11: 766 | CG11: 2765 | CH11: 8685 | CI11: 10242 | CJ11: 5088 | CK11: 8832 | CL11: 16650 | CM11: 5947 | CO11: 3557 | CP11: 8323 | CQ11: 23844
B12: 02 | C12: 5 | D12: 5679 | E12: C.S. MANZANARES | F12: 12752 | H12: 6313 | I12: 6439 | K12: 107 | L12: 109 | M12: 101 | N12: 103 | O12: 97 | P12: 99 | Q12: 95 | R12: 96 | S12: 94 | T12: 96 | U12: 95 | V12: 96 | W12: 96 | X12: 98 | Y12: 99 | Z12: 101 | AA12: 102 | AB12: 104 | AC12: 105 | AD12: 108 | AE12: 109 | AF12: 112 | AG12: 113 | AH12: 116 | AI12: 117 | AJ12: 119 | AK12: 118 | AL12: 121 | AM12: 118 | AN12: 121 | AO12: 119 | AP12: 121 | AQ12: 119 | AR12: 122 | AS12: 118 | AT12: 121 | AU12: 116 | AV12: 119 | AW12: 113 | AX12: 115 | AY12: 519 | AZ12: 530 | BA12: 486 | BB12: 495 | BC12: 467 | BD12: 476 | BE12: 429 | BF12: 437 | BG12: 414 | BH12: 422 | BI12: 386 | BJ12: 394 | BK12: 340 | BL12: 346 | BM12: 290 | BN12: 296 | BO12: 231 | BP12: 236 | BQ12: 193 | BR12: 196 | BS12: 168 | BT12: 171 | BU12: 120 | BV12: 122 | BW12: 119 | BX12: 121 | BY12: 217 | BZ12: 17 | CA12: 586 | CB12: 584 | CC12: 2831 | CD12: 266 | CF12: 216 | CG12: 781 | CH12: 2451 | CI12: 2888 | CJ12: 1434 | CK12: 2493 | CL12: 4697 | CM12: 1677 | CO12: 1004 | CP12: 2347 | CQ12: 6727
A13: 150802 | C13: 6 | D13: 150802 | E13: DISTRITO AMBAR | F13: 2834 | H13: 1406 | I13: 1428 | K13: 21 | L13: 22 | M13: 26 | N13: 27 | O13: 30 | P13: 30 | Q13: 33 | R13: 33 | S13: 35 | T13: 36 | U13: 37 | V13: 37 | W13: 38 | X13: 38 | Y13: 38 | Z13: 38 | AA13: 38 | AB13: 38 | AC13: 37 | AD13: 37 | AE13: 36 | AF13: 36 | AG13: 35 | AH13: 35 | AI13: 33 | AJ13: 33 | AK13: 31 | AL13: 31 | AM13: 29 | AN13: 30 | AO13: 26 | AP13: 27 | AQ13: 24 | AR13: 24 | AS13: 22 | AT13: 23 | AU13: 21 | AV13: 22 | AW13: 22 | AX13: 22 | AY13: 106 | AZ13: 108 | BA13: 89 | BB13: 90 | BC13: 91 | BD13: 92 | BE13: 78 | BF13: 80 | BG13: 69 | BH13: 70 | BI13: 78 | BJ13: 79 | BK13: 63 | BL13: 64 | BM13: 52 | BN13: 54 | BO13: 48 | BP13: 49 | BQ13: 43 | BR13: 44 | BS13: 33 | BT13: 33 | BU13: 21 | BV13: 22 | BW13: 23 | BX13: 24 | BY13: 43 | BZ13: 3 | CA13: 148 | CB13: 109 | CC13: 490 | CD13: 53 | CF13: 43 | CG13: 250 | CH13: 811 | CI13: 851 | CJ13: 333 | CK13: 480 | CL13: 870 | CM13: 340 | CO13: 376 | CP13: 562 | CQ13: 1263
B14: 01 | C14: 7 | D14: 5680 | E14: C.S. AMBAR | F14: 1700 | H14: 843 | I14: 857 | K14: 13 | L14: 13 | M14: 16 | N14: 16 | O14: 18 | P14: 18 | Q14: 20 | R14: 20 | S14: 21 | T14: 22 | U14: 22 | V14: 22 | W14: 23 | X14: 23 | Y14: 23 | Z14: 23 | AA14: 23 | AB14: 23 | AC14: 22 | AD14: 22 | AE14: 21 | AF14: 22 | AG14: 21 | AH14: 21 | AI14: 20 | AJ14: 20 | AK14: 18 | AL14: 19 | AM14: 17 | AN14: 18 | AO14: 16 | AP14: 16 | AQ14: 14 | AR14: 15 | AS14: 13 | AT14: 14 | AU14: 13 | AV14: 13 | AW14: 13 | AX14: 13 | AY14: 63 | AZ14: 65 | BA14: 53 | BB14: 54 | BC14: 54 | BD14: 56 | BE14: 47 | BF14: 48 | BG14: 41 | BH14: 42 | BI14: 47 | BJ14: 47 | BK14: 38 | BL14: 38 | BM14: 32 | BN14: 32 | BO14: 29 | BP14: 29 | BQ14: 26 | BR14: 26 | BS14: 20 | BT14: 20 | BU14: 13 | BV14: 13 | BW14: 13 | BX14: 14 | BY14: 26 | BZ14: 2 | CA14: 89 | CB14: 65 | CC14: 294 | CD14: 32 | CF14: 26 | CG14: 151 | CH14: 488 | CI14: 511 | CJ14: 200 | CK14: 287 | CL14: 522 | CM14: 203 | CO14: 226 | CP14: 337 | CQ14: 757
B15: 01 | C15: 8 | D15: 5681 | E15: P.S. AYNACA | F15: 1134 | H15: 560 | I15: 574 | K15: 8 | L15: 9 | M15: 10 | N15: 11 | O15: 12 | P15: 12 | Q15: 13 | R15: 13 | S15: 14 | T15: 14 | U15: 15 | V15: 15 | W15: 15 | X15: 15 | Y15: 15 | Z15: 15 | AA15: 15 | AB15: 15 | AC15: 15 | AD15: 15 | AE15: 14 | AF15: 15 | AG15: 14 | AH15: 14 | AI15: 13 | AJ15: 13 | AK15: 12 | AL15: 13 | AM15: 12 | AN15: 12 | AO15: 10 | AP15: 11 | AQ15: 9 | AR15: 10 | AS15: 9 | AT15: 9 | AU15: 8 | AV15: 9 | AW15: 9 | AX15: 9 | AY15: 43 | AZ15: 43 | BA15: 36 | BB15: 36 | BC15: 36 | BD15: 37 | BE15: 31 | BF15: 32 | BG15: 28 | BH15: 28 | BI15: 31 | BJ15: 32 | BK15: 25 | BL15: 26 | BM15: 21 | BN15: 21 | BO15: 19 | BP15: 20 | BQ15: 17 | BR15: 18 | BS15: 13 | BT15: 13 | BU15: 8 | BV15: 9 | BW15: 10 | BX15: 10 | BY15: 17 | BZ15: 1 | CA15: 59 | CB15: 44 | CC15: 196 | CD15: 21 | CF15: 17 | CG15: 99 | CH15: 323 | CI15: 340 | CJ15: 133 | CK15: 193 | CL15: 348 | CM15: 137 | CO15: 150 | CP15: 225 | CQ15: 506
A16: 150803 | C16: 9 | D16: 150803 | E16: DISTRITO CARQUIN | F16: 6540 | H16: 3235 | I16: 3305 | K16: 63 | L16: 65 | M16: 61 | N16: 62 | O16: 59 | P16: 60 | Q16: 57 | R16: 59 | S16: 56 | T16: 58 | U16: 55 | V16: 57 | W16: 55 | X16: 56 | Y16: 55 | Z16: 56 | AA16: 55 | AB16: 56 | AC16: 55 | AD16: 56 | AE16: 55 | AF16: 57 | AG16: 55 | AH16: 57 | AI16: 56 | AJ16: 57 | AK16: 56 | AL16: 58 | AM16: 57 | AN16: 59 | AO16: 57 | AP16: 59 | AQ16: 58 | AR16: 59 | AS16: 58 | AT16: 60 | AU16: 59 | AV16: 60 | AW16: 59 | AX16: 61 | AY16: 297 | AZ16: 302 | BA16: 299 | BB16: 305 | BC16: 293 | BD16: 299 | BE16: 223 | BF16: 227 | BG16: 226 | BH16: 230 | BI16: 172 | BJ16: 175 | BK16: 150 | BL16: 153 | BM16: 122 | BN16: 124 | BO16: 93 | BP16: 95 | BQ16: 86 | BR16: 88 | BS16: 61 | BT16: 62 | BU16: 35 | BV16: 36 | BW16: 37 | BX16: 37 | BY16: 128 | BZ16: 10 | CA16: 258 | CB16: 287 | CC16: 1215 | CD16: 158 | CF16: 128 | CG16: 472 | CH16: 1380 | CI16: 1474 | CJ16: 694 | CK16: 1442 | CL16: 2394 | CM16: 630 | CO16: 556 | CP16: 1157 | CQ16: 3597
B17: 02 | C17: 10 | D17: 5664 | E17: P.S. CARQUIN | F17: 6540 | H17: 3235 | I17: 3305 | K17: 63 | L17: 65 | M17: 61 | N17: 62 | O17: 59 | P17: 60 | Q17: 57 | R17: 59 | S17: 56 | T17: 58 | U17: 55 | V17: 57 | W17: 55 | X17: 56 | Y17: 55 | Z17: 56 | AA17: 55 | AB17: 56 | AC17: 55 | AD17: 56 | AE17: 55 | AF17: 57 | AG17: 55 | AH17: 57 | AI17: 56 | AJ17: 57 | AK17: 56 | AL17: 58 | AM17: 57 | AN17: 59 | AO17: 57 | AP17: 59 | AQ17: 58 | AR17: 59 | AS17: 58 | AT17: 60 | AU17: 59 | AV17: 60 | AW17: 59 | AX17: 61 | AY17: 297 | AZ17: 302 | BA17: 299 | BB17: 305 | BC17: 293 | BD17: 299 | BE17: 223 | BF17: 227 | BG17: 226 | BH17: 230 | BI17: 172 | BJ17: 175 | BK17: 150 | BL17: 153 | BM17: 122 | BN17: 124 | BO17: 93 | BP17: 95 | BQ17: 86 | BR17: 88 | BS17: 61 | BT17: 62 | BU17: 35 | BV17: 36 | BW17: 37 | BX17: 37 | BY17: 128 | BZ17: 10 | CA17: 258 | CB17: 287 | CC17: 1215 | CD17: 158 | CF17: 128 | CG17: 472 | CH17: 1380 | CI17: 1474 | CJ17: 694 | CK17: 1442 | CL17: 2394 | CM17: 630 | CO17: 556 | CP17: 1157 | CQ17: 3597
A18: 150804 | C18: 11 | D18: 150804 | E18: DISTRITO CHECRAS | F18: 1654 | H18: 818 | I18: 836 | K18: 14 | L18: 15 | M18: 13 | N18: 13 | O18: 12 | P18: 13 | Q18: 12 | R18: 12 | S18: 12 | T18: 12 | U18: 12 | V18: 12 | W18: 13 | X18: 13 | Y18: 13 | Z18: 14 | AA18: 14 | AB18: 15 | AC18: 15 | AD18: 15 | AE18: 16 | AF18: 16 | AG18: 17 | AH18: 17 | AI18: 17 | AJ18: 18 | AK18: 16 | AL18: 17 | AM18: 15 | AN18: 15 | AO18: 13 | AP18: 14 | AQ18: 12 | AR18: 12 | AS18: 10 | AT18: 11 | AU18: 9 | AV18: 10 | AW18: 9 | AX18: 9 | AY18: 32 | AZ18: 32 | BA18: 43 | BB18: 44 | BC18: 40 | BD18: 41 | BE18: 53 | BF18: 55 | BG18: 52 | BH18: 53 | BI18: 49 | BJ18: 50 | BK18: 59 | BL18: 60 | BM18: 44 | BN18: 45 | BO18: 45 | BP18: 45 | BQ18: 37 | BR18: 37 | BS18: 51 | BT18: 51 | BU18: 27 | BV18: 27 | BW18: 22 | BX18: 23 | BY18: 29 | BZ18: 2 | CA18: 76 | CB18: 44 | CC18: 274 | CD18: 36 | CF18: 29 | CG18: 99 | CH18: 330 | CI18: 372 | CJ18: 170 | CK18: 188 | CL18: 601 | CM18: 365 | CO18: 136 | CP18: 273 | CQ18: 752
B19: 05 | C19: 12 | D19: 5663 | E19: P.S. PUÑUN | F19: 1654 | H19: 818 | I19: 836 | K19: 14 | L19: 15 | M19: 13 | N19: 13 | O19: 12 | P19: 13 | Q19: 12 | R19: 12 | S19: 12 | T19: 12 | U19: 12 | V19: 12 | W19: 13 | X19: 13 | Y19: 13 | Z19: 14 | AA19: 14 | AB19: 15 | AC19: 15 | AD19: 15 | AE19: 16 | AF19: 16 | AG19: 17 | AH19: 17 | AI19: 17 | AJ19: 18 | AK19: 16 | AL19: 17 | AM19: 15 | AN19: 15 | AO19: 13 | AP19: 14 | AQ19: 12 | AR19: 12 | AS19: 10 | AT19: 11 | AU19: 9 | AV19: 10 | AW19: 9 | AX19: 9 | AY19: 32 | AZ19: 32 | BA19: 43 | BB19: 44 | BC19: 40 | BD19: 41 | BE19: 53 | BF19: 55 | BG19: 52 | BH19: 53 | BI19: 49 | BJ19: 50 | BK19: 59 | BL19: 60 | BM19: 44 | BN19: 45 | BO19: 45 | BP19: 45 | BQ19: 37 | BR19: 37 | BS19: 51 | BT19: 51 | BU19: 27 | BV19: 27 | BW19: 22 | BX19: 23 | BY19: 29 | BZ19: 2 | CA19: 76 | CB19: 44 | CC19: 274 | CD19: 36 | CF19: 29 | CG19: 99 | CH19: 330 | CI19: 372 | CJ19: 170 | CK19: 188 | CL19: 601 | CM19: 365 | CO19: 136 | CP19: 273 | CQ19: 752
A20: 150805 | C20: 13 | D20: 150805 | E20: DISTRITO HUALMAY | F20: 28163 | H20: 13943 | I20: 14220 | K20: 259 | L20: 264 | M20: 244 | N20: 249 | O20: 234 | P20: 239 | Q20: 229 | R20: 234 | S20: 228 | T20: 233 | U20: 230 | V20: 235 | W20: 235 | X20: 240 | Y20: 242 | Z20: 247 | AA20: 250 | AB20: 255 | AC20: 259 | AD20: 264 | AE20: 268 | AF20: 274 | AG20: 279 | AH20: 285 | AI20: 286 | AJ20: 292 | AK20: 288 | AL20: 293 | AM20: 285 | AN20: 290 | AO20: 282 | AP20: 287 | AQ20: 279 | AR20: 285 | AS20: 274 | AT20: 280 | AU20: 267 | AV20: 273 | AW20: 258 | AX20: 264 | AY20: 1179 | AZ20: 1202 | BA20: 1101 | BB20: 1123 | BC20: 1059 | BD20: 1079 | BE20: 957 | BF20: 975 | BG20: 908 | BH20: 926 | BI20: 753 | BJ20: 767 | BK20: 640 | BL20: 652 | BM20: 582 | BN20: 594 | BO20: 456 | BP20: 464 | BQ20: 389 | BR20: 397 | BS20: 296 | BT20: 301 | BU20: 222 | BV20: 227 | BW20: 225 | BX20: 230 | BY20: 525 | BZ20: 40 | CA20: 1411 | CB20: 1398 | CC20: 6207 | CD20: 646 | CF20: 523 | CG20: 1890 | CH20: 5976 | CI20: 6984 | CJ20: 3421 | CK20: 5667 | CL20: 9892 | CM20: 3207 | CO20: 2457 | CP20: 5589 | CQ20: 14497
B21: 02 | C21: 14 | D21: 5665 | E21: C.S. HUALMAY | F21: 14884 | H21: 7370 | I21: 7514 | K21: 134 | L21: 137 | M21: 131 | N21: 133 | O21: 124 | P21: 127 | Q21: 121 | R21: 124 | S21: 121 | T21: 123 | U21: 122 | V21: 125 | W21: 125 | X21: 127 | Y21: 129 | Z21: 131 | AA21: 132 | AB21: 135 | AC21: 137 | AD21: 140 | AE21: 142 | AF21: 145 | AG21: 148 | AH21: 151 | AI21: 152 | AJ21: 154 | AK21: 153 | AL21: 155 | AM21: 151 | AN21: 153 | AO21: 150 | AP21: 152 | AQ21: 148 | AR21: 151 | AS21: 146 | AT21: 148 | AU21: 142 | AV21: 144 | AW21: 137 | AX21: 140 | AY21: 625 | AZ21: 637 | BA21: 584 | BB21: 595 | BC21: 561 | BD21: 572 | BE21: 507 | BF21: 517 | BG21: 481 | BH21: 491 | BI21: 399 | BJ21: 407 | BK21: 339 | BL21: 346 | BM21: 308 | BN21: 315 | BO21: 241 | BP21: 246 | BQ21: 208 | BR21: 212 | BS21: 151 | BT21: 154 | BU21: 110 | BV21: 113 | BW21: 111 | BX21: 114 | BY21: 278 | BZ21: 22 | CA21: 783 | CB21: 780 | CC21: 3714 | CD21: 334 | CF21: 271 | CG21: 1004 | CH21: 3164 | CI21: 3702 | CJ21: 1813 | CK21: 3004 | CL21: 5243 | CM21: 1660 | CO21: 1303 | CP21: 2962 | CQ21: 7684
B22: 02 | C22: 15 | D22: 5666 | E22: P.S. DGO. MANDAMIENTO | F22: 9294 | H22: 4603 | I22: 4691 | K22: 86 | L22: 88 | M22: 80 | N22: 82 | O22: 77 | P22: 79 | Q22: 76 | R22: 77 | S22: 75 | T22: 77 | U22: 76 | V22: 77 | W22: 77 | X22: 79 | Y22: 80 | Z22: 81 | AA22: 83 | AB22: 84 | AC22: 86 | AD22: 87 | AE22: 89 | AF22: 90 | AG22: 92 | AH22: 94 | AI22: 95 | AJ22: 96 | AK22: 95 | AL22: 97 | AM22: 94 | AN22: 96 | AO22: 93 | AP22: 94 | AQ22: 92 | AR22: 94 | AS22: 90 | AT22: 92 | AU22: 88 | AV22: 90 | AW22: 85 | AX22: 87 | AY22: 389 | AZ22: 397 | BA22: 363 | BB22: 371 | BC22: 350 | BD22: 356 | BE22: 316 | BF22: 322 | BG22: 300 | BH22: 305 | BI22: 248 | BJ22: 253 | BK22: 211 | BL22: 215 | BM22: 192 | BN22: 196 | BO22: 150 | BP22: 153 | BQ22: 128 | BR22: 131 | BS22: 98 | BT22: 99 | BU22: 74 | BV22: 75 | BW22: 75 | BX22: 77 | BY22: 175 | BZ22: 13 | CA22: 436 | CB22: 430 | CC22: 2190 | CD22: 215 | CF22: 174 | CG22: 623 | CH22: 1972 | CI22: 2303 | CJ22: 1128 | CK22: 1870 | CL22: 3264 | CM22: 1060 | CO22: 810 | CP22: 1843 | CQ22: 4784
B23: 02 | C23: 16 | D23: 5667 | E23: P.S. CAMPO ALEGRE | F23: 3985 | H23: 1974 | I23: 2011 | K23: 39 | L23: 39 | M23: 33 | N23: 34 | O23: 33 | P23: 33 | Q23: 32 | R23: 33 | S23: 32 | T23: 33 | U23: 32 | V23: 33 | W23: 33 | X23: 34 | Y23: 34 | Z23: 34 | AA23: 35 | AB23: 36 | AC23: 36 | AD23: 37 | AE23: 38 | AF23: 38 | AG23: 39 | AH23: 40 | AI23: 40 | AJ23: 41 | AK23: 40 | AL23: 41 | AM23: 40 | AN23: 41 | AO23: 40 | AP23: 40 | AQ23: 39 | AR23: 40 | AS23: 39 | AT23: 39 | AU23: 38 | AV23: 38 | AW23: 36 | AX23: 37 | AY23: 165 | AZ23: 168 | BA23: 154 | BB23: 157 | BC23: 148 | BD23: 151 | BE23: 134 | BF23: 136 | BG23: 127 | BH23: 130 | BI23: 105 | BJ23: 108 | BK23: 90 | BL23: 91 | BM23: 82 | BN23: 83 | BO23: 64 | BP23: 66 | BQ23: 53 | BR23: 54 | BS23: 47 | BT23: 48 | BU23: 38 | BV23: 39 | BW23: 39 | BX23: 39 | BY23: 72 | BZ23: 5 | CA23: 192 | CB23: 188 | CC23: 303 | CD23: 97 | CF23: 78 | CG23: 263 | CH23: 840 | CI23: 979 | CJ23: 480 | CK23: 793 | CL23: 1385 | CM23: 487 | CO23: 344 | CP23: 784 | CQ23: 2029
A24: 150806 | C24: 17 | D24: 150806 | E24: DISTRITO HUAURA | F24: 33759 | H24: 16716 | I24: 17043 | K24: 316 | L24: 323 | M24: 301 | N24: 307 | O24: 292 | P24: 297 | Q24: 287 | R24: 293 | S24: 287 | T24: 293 | U24: 291 | V24: 296 | W24: 297 | X24: 303 | Y24: 306 | Z24: 312 | AA24: 317 | AB24: 323 | AC24: 329 | AD24: 335 | AE24: 342 | AF24: 348 | AG24: 354 | AH24: 361 | AI24: 365 | AJ24: 373 | AK24: 376 | AL24: 383 | AM24: 383 | AN24: 391 | AO24: 391 | AP24: 399 | AQ24: 399 | AR24: 407 | AS24: 398 | AT24: 405 | AU24: 382 | AV24: 390 | AW24: 357 | AX24: 365 | AY24: 1489 | AZ24: 1518 | BA24: 1359 | BB24: 1386 | BC24: 1281 | BD24: 1307 | BE24: 1089 | BF24: 1110 | BG24: 1011 | BH24: 1030 | BI24: 906 | BJ24: 923 | BK24: 697 | BL24: 711 | BM24: 568 | BN24: 579 | BO24: 446 | BP24: 454 | BQ24: 371 | BR24: 378 | BS24: 339 | BT24: 345 | BU24: 204 | BV24: 208 | BW24: 186 | BX24: 190 | BY24: 641 | BZ24: 49 | CA24: 1752 | CB24: 1870 | CC24: 7318 | CD24: 795 | CF24: 639 | CG24: 2357 | CH24: 7510 | CI24: 9184 | CJ24: 4670 | CK24: 7246 | CL24: 11212 | CM24: 3121 | CO24: 3109 | CP24: 7569 | CQ24: 16964
B25: 01 | C25: 18 | D25: 5682 | E25: C.S. HUAURA | F25: 15192 | H25: 7526 | I25: 7666 | K25: 143 | L25: 145 | M25: 136 | N25: 138 | O25: 131 | P25: 134 | Q25: 129 | R25: 131 | S25: 129 | T25: 132 | U25: 131 | V25: 133 | W25: 134 | X25: 136 | Y25: 138 | Z25: 140 | AA25: 143 | AB25: 145 | AC25: 148 | AD25: 151 | AE25: 154 | AF25: 157 | AG25: 159 | AH25: 163 | AI25: 164 | AJ25: 168 | AK25: 169 | AL25: 173 | AM25: 172 | AN25: 176 | AO25: 176 | AP25: 180 | AQ25: 180 | AR25: 183 | AS25: 179 | AT25: 182 | AU25: 172 | AV25: 175 | AW25: 161 | AX25: 164 | AY25: 670 | AZ25: 683 | BA25: 612 | BB25: 623 | BC25: 577 | BD25: 588 | BE25: 490 | BF25: 500 | BG25: 455 | BH25: 463 | BI25: 408 | BJ25: 415 | BK25: 314 | BL25: 320 | BM25: 255 | BN25: 261 | BO25: 201 | BP25: 204 | BQ25: 167 | BR25: 170 | BS25: 153 | BT25: 155 | BU25: 92 | BV25: 93 | BW25: 84 | BX25: 85 | BY25: 289 | BZ25: 22 | CA25: 789 | CB25: 841 | CC25: 3293 | CD25: 361 | CF25: 288 | CG25: 1060 | CH25: 3380 | CI25: 4134 | CJ25: 2102 | CK25: 3260 | CL25: 5046 | CM25: 1404 | CO25: 1399 | CP25: 3407 | CQ25: 7634
B26: 01 | C26: 19 | D26: 5686 | E26: C.S. SOCORRO | F26: 11816 | H26: 5853 | I26: 5963 | K26: 111 | L26: 113 | M26: 105 | N26: 108 | O26: 102 | P26: 104 | Q26: 101 | R26: 102 | S26: 101 | T26: 102 | U26: 102 | V26: 104 | W26: 104 | X26: 106 | Y26: 107 | Z26: 109 | AA26: 111 | AB26: 113 | AC26: 115 | AD26: 117 | AE26: 120 | AF26: 122 | AG26: 124 | AH26: 126 | AI26: 128 | AJ26: 130 | AK26: 132 | AL26: 134 | AM26: 134 | AN26: 137 | AO26: 137 | AP26: 140 | AQ26: 140 | AR26: 142 | AS26: 139 | AT26: 142 | AU26: 134 | AV26: 136 | AW26: 125 | AX26: 128 | AY26: 521 | AZ26: 531 | BA26: 476 | BB26: 485 | BC26: 449 | BD26: 457 | BE26: 381 | BF26: 389 | BG26: 354 | BH26: 360 | BI26: 317 | BJ26: 323 | BK26: 244 | BL26: 249 | BM26: 199 | BN26: 202 | BO26: 156 | BP26: 159 | BQ26: 130 | BR26: 132 | BS26: 118 | BT26: 121 | BU26: 71 | BV26: 73 | BW26: 65 | BX26: 67 | BY26: 224 | BZ26: 17 | CA26: 613 | CB26: 655 | CC26: 2561 | CD26: 282 | CF26: 224 | CG26: 825 | CH26: 2629 | CI26: 3215 | CJ26: 1635 | CK26: 2536 | CL26: 3924 | CM26: 1092 | CO26: 1088 | CP26: 2650 | CQ26: 5937
B27: 01 | C27: 20 | D27: 5683 | E27: P.S. HUMAYA | F27: 4220 | H27: 2093 | I27: 2127 | K27: 40 | L27: 40 | M27: 38 | N27: 38 | O27: 37 | P27: 37 | Q27: 36 | R27: 37 | S27: 36 | T27: 36 | U27: 36 | V27: 37 | W27: 37 | X27: 38 | Y27: 38 | Z27: 39 | AA27: 40 | AB27: 40 | AC27: 41 | AD27: 42 | AE27: 43 | AF27: 43 | AG27: 44 | AH27: 45 | AI27: 46 | AJ27: 46 | AK27: 47 | AL27: 48 | AM27: 48 | AN27: 49 | AO27: 49 | AP27: 50 | AQ27: 50 | AR27: 51 | AS27: 50 | AT27: 50 | AU27: 48 | AV27: 49 | AW27: 45 | AX27: 45 | AY27: 186 | AZ27: 190 | BA27: 170 | BB27: 173 | BC27: 160 | BD27: 164 | BE27: 136 | BF27: 138 | BG27: 126 | BH27: 129 | BI27: 113 | BJ27: 116 | BK27: 87 | BL27: 89 | BM27: 71 | BN27: 72 | BO27: 56 | BP27: 57 | BQ27: 47 | BR27: 47 | BS27: 43 | BT27: 43 | BU27: 26 | BV27: 26 | BW27: 23 | BX27: 23 | BY27: 80 | BZ27: 6 | CA27: 219 | CB27: 234 | CC27: 915 | CD27: 79 | CF27: 80 | CG27: 295 | CH27: 938 | CI27: 1147 | CJ27: 584 | CK27: 906 | CL27: 1401 | CM27: 391 | CO27: 388 | CP27: 946 | CQ27: 2120
B28: 01 | C28: 21 | D28: 5684 | E28: P.S. VILCAHUAURA | F28: 2025 | H28: 1001 | I28: 1024 | K28: 19 | L28: 19 | M28: 18 | N28: 18 | O28: 17 | P28: 18 | Q28: 17 | R28: 18 | S28: 17 | T28: 18 | U28: 17 | V28: 18 | W28: 18 | X28: 18 | Y28: 19 | Z28: 19 | AA28: 19 | AB28: 19 | AC28: 20 | AD28: 20 | AE28: 20 | AF28: 21 | AG28: 21 | AH28: 22 | AI28: 22 | AJ28: 23 | AK28: 22 | AL28: 23 | AM28: 23 | AN28: 23 | AO28: 23 | AP28: 23 | AQ28: 24 | AR28: 24 | AS28: 24 | AT28: 25 | AU28: 23 | AV28: 23 | AW28: 21 | AX28: 22 | AY28: 90 | AZ28: 91 | BA28: 82 | BB28: 83 | BC28: 76 | BD28: 78 | BE28: 65 | BF28: 67 | BG28: 61 | BH28: 62 | BI28: 54 | BJ28: 56 | BK28: 42 | BL28: 42 | BM28: 35 | BN28: 35 | BO28: 27 | BP28: 27 | BQ28: 22 | BR28: 23 | BS28: 20 | BT28: 21 | BU28: 12 | BV28: 13 | BW28: 11 | BX28: 12 | BY28: 38 | BZ28: 3 | CA28: 105 | CB28: 112 | CC28: 439 | CD28: 54 | CF28: 38 | CG28: 141 | CH28: 450 | CI28: 550 | CJ28: 279 | CK28: 435 | CL28: 673 | CM28: 188 | CO28: 187 | CP28: 452 | CQ28: 1019
B29: 01 | C29: 22 | D29: 5685 | E29: P.S. PEÑICO | F29: 506 | H29: 242 | I29: 264 | K29: 4 | L29: 5 | M29: 4 | N29: 5 | O29: 4 | P29: 5 | Q29: 4 | R29: 5 | S29: 4 | T29: 5 | U29: 4 | V29: 5 | W29: 4 | X29: 5 | Y29: 4 | Z29: 5 | AA29: 5 | AB29: 5 | AC29: 5 | AD29: 5 | AE29: 5 | AF29: 5 | AG29: 5 | AH29: 6 | AI29: 5 | AJ29: 6 | AK29: 5 | AL29: 6 | AM29: 6 | AN29: 6 | AO29: 6 | AP29: 6 | AQ29: 6 | AR29: 6 | AS29: 6 | AT29: 6 | AU29: 6 | AV29: 6 | AW29: 5 | AX29: 6 | AY29: 22 | AZ29: 23 | BA29: 20 | BB29: 21 | BC29: 19 | BD29: 20 | BE29: 16 | BF29: 17 | BG29: 15 | BH29: 16 | BI29: 13 | BJ29: 14 | BK29: 10 | BL29: 11 | BM29: 8 | BN29: 9 | BO29: 6 | BP29: 7 | BQ29: 5 | BR29: 6 | BS29: 5 | BT29: 5 | BU29: 3 | BV29: 3 | BW29: 3 | BX29: 3 | BY29: 10 | BZ29: 1 | CA29: 26 | CB29: 28 | CC29: 110 | CD29: 19 | CF29: 9 | CG29: 36 | CH29: 113 | CI29: 138 | CJ29: 70 | CK29: 109 | CL29: 168 | CM29: 46 | CO29: 47 | CP29: 114 | CQ29: 254
A30: 150807 | C30: 23 | D30: 150807 | E30: DISTRITO LEONCIO PRADO | F30: 2034 | H30: 1003 | I30: 1031 | K30: 16 | L30: 17 | M30: 20 | N30: 20 | O30: 23 | P30: 23 | Q30: 24 | R30: 25 | S30: 25 | T30: 26 | U30: 25 | V30: 26 | W30: 25 | X30: 25 | Y30: 24 | Z30: 25 | AA30: 23 | AB30: 23 | AC30: 22 | AD30: 22 | AE30: 20 | AF30: 20 | AG30: 18 | AH30: 18 | AI30: 16 | AJ30: 17 | AK30: 16 | AL30: 16 | AM30: 16 | AN30: 16 | AO30: 16 | AP30: 17 | AQ30: 16 | AR30: 17 | AS30: 16 | AT30: 17 | AU30: 16 | AV30: 17 | AW30: 17 | AX30: 17 | AY30: 82 | AZ30: 83 | BA30: 78 | BB30: 80 | BC30: 65 | BD30: 67 | BE30: 59 | BF30: 61 | BG30: 53 | BH30: 55 | BI30: 59 | BJ30: 61 | BK30: 52 | BL30: 54 | BM30: 34 | BN30: 35 | BO30: 33 | BP30: 34 | BQ30: 28 | BR30: 29 | BS30: 27 | BT30: 28 | BU30: 19 | BV30: 19 | BW30: 20 | BX30: 21 | BY30: 33 | BZ30: 3 | CA30: 88 | CB30: 70 | CC30: 360 | CD30: 38 | CF30: 33 | CG30: 186 | CH30: 535 | CI30: 512 | CJ30: 196 | CK30: 390 | CL30: 655 | CM30: 258 | CO30: 240 | CP30: 339 | CQ30: 978
B31: 03 | C31: 24 | D31: 5778 | E31: P.S. AUQUIMARCA | F31: 366 | H31: 177 | I31: 189 | K31: 3 | L31: 3 | M31: 3 | N31: 4 | O31: 4 | P31: 4 | Q31: 4 | R31: 5 | S31: 4 | T31: 5 | U31: 4 | V31: 5 | W31: 4 | X31: 5 | Y31: 4 | Z31: 5 | AA31: 4 | AB31: 5 | AC31: 4 | AD31: 4 | AE31: 3 | AF31: 4 | AG31: 3 | AH31: 3 | AI31: 3 | AJ31: 3 | AK31: 3 | AL31: 3 | AM31: 3 | AN31: 3 | AO31: 3 | AP31: 3 | AQ31: 3 | AR31: 3 | AS31: 3 | AT31: 3 | AU31: 3 | AV31: 3 | AW31: 3 | AX31: 3 | AY31: 15 | AZ31: 15 | BA31: 14 | BB31: 14 | BC31: 12 | BD31: 12 | BE31: 11 | BF31: 11 | BG31: 9 | BH31: 10 | BI31: 11 | BJ31: 11 | BK31: 9 | BL31: 10 | BM31: 6 | BN31: 6 | BO31: 6 | BP31: 6 | BQ31: 5 | BR31: 5 | BS31: 5 | BT31: 5 | BU31: 3 | BV31: 4 | BW31: 3 | BX31: 4 | BY31: 6 | BZ31: 0 | CA31: 16 | CB31: 13 | CC31: 65 | CD31: 7 | CF31: 6 | CG31: 33 | CH31: 96 | CI31: 93 | CJ31: 36 | CK31: 70 | CL31: 118 | CM31: 46 | CO31: 44 | CP31: 61 | CQ31: 176
B32: 03 | C32: 25 | D32: 5779 | E32: P.S. PARAN | F32: 814 | H32: 398 | I32: 416 | K32: 6 | L32: 7 | M32: 8 | N32: 8 | O32: 9 | P32: 10 | Q32: 9 | R32: 10 | S32: 10 | T32: 11 | U32: 10 | V32: 11 | W32: 10 | X32: 10 | Y32: 10 | Z32: 10 | AA32: 9 | AB32: 9 | AC32: 9 | AD32: 9 | AE32: 8 | AF32: 8 | AG32: 7 | AH32: 7 | AI32: 6 | AJ32: 7 | AK32: 6 | AL32: 7 | AM32: 6 | AN32: 7 | AO32: 6 | AP32: 7 | AQ32: 6 | AR32: 7 | AS32: 6 | AT32: 7 | AU32: 6 | AV32: 7 | AW32: 7 | AX32: 7 | AY32: 33 | AZ32: 33 | BA32: 31 | BB32: 32 | BC32: 26 | BD32: 27 | BE32: 24 | BF32: 24 | BG32: 21 | BH32: 22 | BI32: 24 | BJ32: 24 | BK32: 21 | BL32: 21 | BM32: 14 | BN32: 14 | BO32: 13 | BP32: 14 | BQ32: 11 | BR32: 12 | BS32: 11 | BT32: 11 | BU32: 7 | BV32: 8 | BW32: 8 | BX32: 8 | BY32: 13 | BZ32: 1 | CA32: 35 | CB32: 28 | CC32: 144 | CD32: 15 | CF32: 13 | CG32: 75 | CH32: 215 | CI32: 205 | CJ32: 78 | CK32: 156 | CL32: 262 | CM32: 103 | CO32: 97 | CP32: 135 | CQ32: 391
B33: 03 | C33: 26 | D33: 6725 | E33: P.S. SANTA CRUZ | F33: 447 | H33: 212 | I33: 235 | K33: 3 | L33: 4 | M33: 4 | N33: 5 | O33: 5 | P33: 5 | Q33: 5 | R33: 6 | S33: 5 | T33: 6 | U33: 5 | V33: 6 | W33: 5 | X33: 6 | Y33: 5 | Z33: 6 | AA33: 5 | AB33: 5 | AC33: 4 | AD33: 5 | AE33: 4 | AF33: 5 | AG33: 4 | AH33: 5 | AI33: 3 | AJ33: 4 | AK33: 3 | AL33: 4 | AM33: 3 | AN33: 4 | AO33: 3 | AP33: 4 | AQ33: 3 | AR33: 4 | AS33: 3 | AT33: 4 | AU33: 3 | AV33: 4 | AW33: 3 | AX33: 4 | AY33: 18 | AZ33: 18 | BA33: 17 | BB33: 18 | BC33: 14 | BD33: 15 | BE33: 13 | BF33: 13 | BG33: 12 | BH33: 12 | BI33: 13 | BJ33: 13 | BK33: 12 | BL33: 12 | BM33: 7 | BN33: 8 | BO33: 7 | BP33: 8 | BQ33: 6 | BR33: 7 | BS33: 6 | BT33: 6 | BU33: 4 | BV33: 4 | BW33: 5 | BX33: 5 | BY33: 7 | BZ33: 1 | CA33: 19 | CB33: 15 | CC33: 79 | CD33: 8 | CF33: 7 | CG33: 41 | CH33: 118 | CI33: 112 | CJ33: 42 | CK33: 85 | CL33: 144 | CM33: 58 | CO33: 52 | CP33: 74 | CQ33: 215
B34: 03 | C34: 27 | D34: 7757 | E34: P.S. HUANANGUI | F34: 407 | H34: 195 | I34: 212 | K34: 3 | L34: 4 | M34: 4 | N34: 4 | O34: 4 | P34: 5 | Q34: 5 | R34: 5 | S34: 5 | T34: 5 | U34: 5 | V34: 5 | W34: 5 | X34: 5 | Y34: 4 | Z34: 5 | AA34: 4 | AB34: 5 | AC34: 4 | AD34: 5 | AE34: 4 | AF34: 4 | AG34: 3 | AH34: 4 | AI34: 3 | AJ34: 4 | AK34: 3 | AL34: 3 | AM34: 3 | AN34: 3 | AO34: 3 | AP34: 4 | AQ34: 3 | AR34: 4 | AS34: 3 | AT34: 4 | AU34: 3 | AV34: 4 | AW34: 3 | AX34: 4 | AY34: 16 | AZ34: 17 | BA34: 16 | BB34: 16 | BC34: 13 | BD34: 13 | BE34: 12 | BF34: 12 | BG34: 11 | BH34: 11 | BI34: 12 | BJ34: 12 | BK34: 10 | BL34: 11 | BM34: 7 | BN34: 7 | BO34: 6 | BP34: 7 | BQ34: 5 | BR34: 6 | BS34: 5 | BT34: 6 | BU34: 4 | BV34: 4 | BW34: 4 | BX34: 4 | BY34: 7 | BZ34: 1 | CA34: 18 | CB34: 14 | CC34: 72 | CD34: 8 | CF34: 7 | CG34: 37 | CH34: 106 | CI34: 102 | CJ34: 40 | CK34: 79 | CL34: 131 | CM34: 51 | CO34: 47 | CP34: 69 | CQ34: 196
A35: 150808 | C35: 28 | D35: 150808 | E35: DISTRITO PACCHO | F35: 2185 | H35: 1079 | I35: 1106 | K35: 16 | L35: 17 | M35: 16 | N35: 17 | O35: 17 | P35: 17 | Q35: 17 | R35: 18 | S35: 17 | T35: 18 | U35: 18 | V35: 19 | W35: 19 | X35: 19 | Y35: 19 | Z35: 20 | AA35: 20 | AB35: 20 | AC35: 20 | AD35: 21 | AE35: 21 | AF35: 21 | AG35: 21 | AH35: 22 | AI35: 21 | AJ35: 21 | AK35: 19 | AL35: 20 | AM35: 17 | AN35: 18 | AO35: 16 | AP35: 16 | AQ35: 14 | AR35: 14 | AS35: 12 | AT35: 13 | AU35: 12 | AV35: 12 | AW35: 11 | AX35: 12 | AY35: 61 | AZ35: 63 | BA35: 62 | BB35: 63 | BC35: 70 | BD35: 71 | BE35: 66 | BF35: 68 | BG35: 71 | BH35: 72 | BI35: 61 | BJ35: 63 | BK35: 54 | BL35: 56 | BM35: 54 | BN35: 55 | BO35: 64 | BP35: 65 | BQ35: 59 | BR35: 60 | BS35: 51 | BT35: 52 | BU35: 34 | BV35: 34 | BW35: 29 | BX35: 29 | BY35: 33 | BZ35: 3 | CA35: 103 | CB35: 48 | CC35: 368 | CD35: 40 | CF35: 33 | CG35: 137 | CH35: 450 | CI35: 481 | CJ35: 201 | CK35: 296 | CL35: 761 | CM35: 477 | CO35: 195 | CP35: 333 | CQ35: 1010
B36: 05 | C36: 29 | D36: 5650 | E36: P.S. PACCHO | F36: 830 | H36: 404 | I36: 426 | K36: 6 | L36: 7 | M36: 6 | N36: 7 | O36: 6 | P36: 7 | Q36: 6 | R36: 7 | S36: 6 | T36: 7 | U36: 7 | V36: 7 | W36: 7 | X36: 7 | Y36: 7 | Z36: 8 | AA36: 7 | AB36: 8 | AC36: 8 | AD36: 8 | AE36: 8 | AF36: 8 | AG36: 8 | AH36: 8 | AI36: 8 | AJ36: 8 | AK36: 7 | AL36: 8 | AM36: 6 | AN36: 7 | AO36: 6 | AP36: 6 | AQ36: 5 | AR36: 6 | AS36: 4 | AT36: 5 | AU36: 4 | AV36: 5 | AW36: 4 | AX36: 5 | AY36: 23 | AZ36: 24 | BA36: 23 | BB36: 24 | BC36: 26 | BD36: 27 | BE36: 26 | BF36: 26 | BG36: 27 | BH36: 28 | BI36: 23 | BJ36: 24 | BK36: 21 | BL36: 21 | BM36: 20 | BN36: 21 | BO36: 24 | BP36: 25 | BQ36: 22 | BR36: 23 | BS36: 19 | BT36: 20 | BU36: 13 | BV36: 13 | BW36: 11 | BX36: 11 | BY36: 13 | BZ36: 1 | CA36: 38 | CB36: 18 | CC36: 140 | CD36: 15 | CF36: 13 | CG36: 52 | CH36: 171 | CI36: 182 | CJ36: 76 | CK36: 112 | CL36: 290 | CM36: 181 | CO36: 74 | CP36: 126 | CQ36: 384
B37: 05 | C37: 30 | D37: 5651 | E37: P.S. LACSANGA | F37: 459 | H37: 221 | I37: 238 | K37: 3 | L37: 4 | M37: 3 | N37: 4 | O37: 3 | P37: 4 | Q37: 3 | R37: 4 | S37: 3 | T37: 4 | U37: 4 | V37: 4 | W37: 4 | X37: 4 | Y37: 4 | Z37: 4 | AA37: 4 | AB37: 4 | AC37: 4 | AD37: 5 | AE37: 4 | AF37: 5 | AG37: 5 | AH37: 5 | AI37: 4 | AJ37: 5 | AK37: 4 | AL37: 4 | AM37: 3 | AN37: 4 | AO37: 3 | AP37: 4 | AQ37: 3 | AR37: 3 | AS37: 2 | AT37: 3 | AU37: 2 | AV37: 3 | AW37: 2 | AX37: 3 | AY37: 13 | AZ37: 13 | BA37: 13 | BB37: 13 | BC37: 15 | BD37: 15 | BE37: 14 | BF37: 14 | BG37: 15 | BH37: 15 | BI37: 13 | BJ37: 13 | BK37: 11 | BL37: 12 | BM37: 11 | BN37: 12 | BO37: 13 | BP37: 14 | BQ37: 12 | BR37: 13 | BS37: 11 | BT37: 11 | BU37: 7 | BV37: 7 | BW37: 6 | BX37: 6 | BY37: 7 | BZ37: 1 | CA37: 22 | CB37: 10 | CC37: 77 | CD37: 8 | CF37: 7 | CG37: 28 | CH37: 95 | CI37: 102 | CJ37: 42 | CK37: 62 | CL37: 160 | CM37: 100 | CO37: 41 | CP37: 71 | CQ37: 212
B38: 05 | C38: 31 | D38: 5653 | E38: P.S. AYARANGA | F38: 415 | H38: 197 | I38: 219 | K38: 3 | L38: 3 | M38: 3 | N38: 3 | O38: 3 | P38: 4 | Q38: 3 | R38: 4 | S38: 3 | T38: 4 | U38: 3 | V38: 4 | W38: 3 | X38: 4 | Y38: 3 | Z38: 4 | AA38: 4 | AB38: 4 | AC38: 3 | AD38: 4 | AE38: 4 | AF38: 4 | AG38: 4 | AH38: 4 | AI38: 4 | AJ38: 4 | AK38: 3 | AL38: 4 | AM38: 3 | AN38: 4 | AO38: 3 | AP38: 3 | AQ38: 2 | AR38: 3 | AS38: 2 | AT38: 3 | AU38: 2 | AV38: 3 | AW38: 2 | AX38: 2 | AY38: 12 | AZ38: 12 | BA38: 12 | BB38: 12 | BC38: 13 | BD38: 14 | BE38: 12 | BF38: 13 | BG38: 13 | BH38: 14 | BI38: 12 | BJ38: 12 | BK38: 10 | BL38: 11 | BM38: 10 | BN38: 11 | BO38: 12 | BP38: 13 | BQ38: 11 | BR38: 12 | BS38: 9 | BT38: 10 | BU38: 6 | BV38: 7 | BW38: 5 | BX38: 6 | BY38: 6 | BZ38: 0 | CA38: 20 | CB38: 9 | CC38: 70 | CD38: 8 | CF38: 6 | CG38: 27 | CH38: 85 | CI38: 90 | CJ38: 38 | CK38: 57 | CL38: 145 | CM38: 91 | CO38: 36 | CP38: 63 | CQ38: 193
B39: 05 | C39: 32 | D39: 5652 | E39: P.S. MUZGA | F39: 481 | H39: 229 | I39: 251 | K39: 3 | L39: 4 | M39: 3 | N39: 4 | O39: 3 | P39: 4 | Q39: 4 | R39: 4 | S39: 4 | T39: 4 | U39: 4 | V39: 4 | W39: 4 | X39: 5 | Y39: 4 | Z39: 5 | AA39: 4 | AB39: 5 | AC39: 4 | AD39: 5 | AE39: 4 | AF39: 5 | AG39: 4 | AH39: 5 | AI39: 4 | AJ39: 5 | AK39: 4 | AL39: 5 | AM39: 4 | AN39: 4 | AO39: 3 | AP39: 4 | AQ39: 3 | AR39: 3 | AS39: 3 | AT39: 3 | AU39: 2 | AV39: 3 | AW39: 2 | AX39: 3 | AY39: 13 | AZ39: 14 | BA39: 14 | BB39: 14 | BC39: 15 | BD39: 16 | BE39: 14 | BF39: 15 | BG39: 15 | BH39: 16 | BI39: 13 | BJ39: 14 | BK39: 12 | BL39: 12 | BM39: 12 | BN39: 12 | BO39: 14 | BP39: 14 | BQ39: 13 | BR39: 13 | BS39: 11 | BT39: 12 | BU39: 7 | BV39: 8 | BW39: 6 | BX39: 7 | BY39: 7 | BZ39: 1 | CA39: 23 | CB39: 11 | CC39: 81 | CD39: 9 | CF39: 7 | CG39: 30 | CH39: 99 | CI39: 107 | CJ39: 45 | CK39: 65 | CL39: 166 | CM39: 105 | CO39: 44 | CP39: 73 | CQ39: 221
A40: 150809 | C40: 33 | D40: 150809 | E40: DISTRITO SANTA LEONOR | F40: 1517 | H40: 751 | I40: 766 | K40: 12 | L40: 12 | M40: 11 | N40: 12 | O40: 11 | P40: 11 | Q40: 11 | R40: 12 | S40: 12 | T40: 12 | U40: 13 | V40: 13 | W40: 14 | X40: 14 | Y40: 15 | Z40: 15 | AA40: 16 | AB40: 17 | AC40: 17 | AD40: 18 | AE40: 18 | AF40: 19 | AG40: 20 | AH40: 20 | AI40: 20 | AJ40: 20 | AK40: 19 | AL40: 19 | AM40: 17 | AN40: 17 | AO40: 15 | AP40: 15 | AQ40: 13 | AR40: 13 | AS40: 11 | AT40: 12 | AU40: 10 | AV40: 11 | AW40: 10 | AX40: 11 | AY40: 45 | AZ40: 46 | BA40: 37 | BB40: 37 | BC40: 39 | BD40: 40 | BE40: 44 | BF40: 45 | BG40: 46 | BH40: 46 | BI40: 47 | BJ40: 47 | BK40: 47 | BL40: 48 | BM40: 34 | BN40: 34 | BO40: 37 | BP40: 37 | BQ40: 27 | BR40: 27 | BS40: 27 | BT40: 28 | BU40: 21 | BV40: 22 | BW40: 15 | BX40: 16 | BY40: 24 | BZ40: 2 | CA40: 80 | CB40: 62 | CC40: 250 | CD40: 28 | CF40: 24 | CG40: 92 | CH40: 345 | CI40: 420 | CJ40: 191 | CK40: 207 | CL40: 517 | CM40: 257 | CO40: =SUM(U40:AD40) -> 152 | CP40: =SUM(AE40:AX40) -> 310 | CQ40: =SUM(AY40:BN40) -> 682
B41: 05 | C41: 34 | D41: 5645 | E41: P.S. CHIUCHIN | F41: 925 | H41: 455 | I41: 470 | K41: 7 | L41: 7 | M41: 7 | N41: 7 | O41: 7 | P41: 7 | Q41: 7 | R41: 7 | S41: 7 | T41: 7 | U41: 8 | V41: 8 | W41: 8 | X41: 9 | Y41: 9 | Z41: 10 | AA41: 10 | AB41: 10 | AC41: 10 | AD41: 11 | AE41: 11 | AF41: 12 | AG41: 12 | AH41: 12 | AI41: 12 | AJ41: 12 | AK41: 11 | AL41: 12 | AM41: 10 | AN41: 11 | AO41: 9 | AP41: 10 | AQ41: 8 | AR41: 8 | AS41: 7 | AT41: 7 | AU41: 6 | AV41: 7 | AW41: 6 | AX41: 7 | AY41: 28 | AZ41: 28 | BA41: 22 | BB41: 23 | BC41: 24 | BD41: 24 | BE41: 27 | BF41: 27 | BG41: 28 | BH41: 28 | BI41: 28 | BJ41: 29 | BK41: 29 | BL41: 29 | BM41: 20 | BN41: 21 | BO41: 22 | BP41: 23 | BQ41: 16 | BR41: 17 | BS41: 17 | BT41: 17 | BU41: 13 | BV41: 13 | BW41: 9 | BX41: 10 | BY41: 14 | BZ41: 1 | CA41: 49 | CB41: 38 | CC41: 152 | CD41: 17 | CF41: 14 | CG41: 56 | CH41: 210 | CI41: 257 | CJ41: 117 | CK41: 127 | CL41: 314 | CM41: 157 | CO41: 93 | CP41: 190 | CQ41: 415
B42: 05 | C42: 35 | D42: 5646 | E42: P.S. PARQUIN | F42: 425 | H42: 204 | I42: 221 | K42: 3 | L42: 4 | M42: 3 | N42: 3 | O42: 3 | P42: 3 | Q42: 3 | R42: 3 | S42: 3 | T42: 4 | U42: 3 | V42: 4 | W42: 4 | X42: 4 | Y42: 4 | Z42: 4 | AA42: 4 | AB42: 5 | AC42: 5 | AD42: 5 | AE42: 5 | AF42: 5 | AG42: 6 | AH42: 6 | AI42: 6 | AJ42: 6 | AK42: 5 | AL42: 6 | AM42: 4 | AN42: 5 | AO42: 4 | AP42: 4 | AQ42: 3 | AR42: 4 | AS42: 3 | AT42: 3 | AU42: 3 | AV42: 3 | AW42: 3 | AX42: 3 | AY42: 12 | AZ42: 13 | BA42: 10 | BB42: 11 | BC42: 11 | BD42: 11 | BE42: 12 | BF42: 13 | BG42: 13 | BH42: 13 | BI42: 13 | BJ42: 14 | BK42: 13 | BL42: 14 | BM42: 9 | BN42: 10 | BO42: 10 | BP42: 11 | BQ42: 7 | BR42: 8 | BS42: 7 | BT42: 8 | BU42: 6 | BV42: 6 | BW42: 4 | BX42: 5 | BY42: 7 | BZ42: 1 | CA42: 22 | CB42: 17 | CC42: 70 | CD42: 8 | CF42: 7 | CG42: 25 | CH42: 96 | CI42: 117 | CJ42: 53 | CK42: 58 | CL42: 146 | CM42: 72 | CO42: 42 | CP42: 87 | CQ42: 192
B43: 05 | C43: 36 | D43: 5647 | E43: P.S. JUCUL | F43: 167 | H43: 77 | I43: 90 | K43: 1 | L43: 2 | M43: 1 | N43: 2 | O43: 1 | P43: 1 | Q43: 1 | R43: 2 | S43: 1 | T43: 2 | U43: 1 | V43: 2 | W43: 1 | X43: 2 | Y43: 1 | Z43: 2 | AA43: 2 | AB43: 2 | AC43: 2 | AD43: 2 | AE43: 2 | AF43: 2 | AG43: 2 | AH43: 2 | AI43: 2 | AJ43: 2 | AK43: 2 | AL43: 2 | AM43: 2 | AN43: 2 | AO43: 1 | AP43: 2 | AQ43: 1 | AR43: 2 | AS43: 1 | AT43: 2 | AU43: 1 | AV43: 1 | AW43: 1 | AX43: 1 | AY43: 5 | AZ43: 5 | BA43: 4 | BB43: 4 | BC43: 4 | BD43: 5 | BE43: 5 | BF43: 5 | BG43: 5 | BH43: 5 | BI43: 5 | BJ43: 5 | BK43: 5 | BL43: 5 | BM43: 4 | BN43: 4 | BO43: 4 | BP43: 4 | BQ43: 3 | BR43: 3 | BS43: 3 | BT43: 3 | BU43: 2 | BV43: 3 | BW43: 1 | BX43: 2 | BY43: 3 | BZ43: 0 | CA43: 9 | CB43: 7 | CC43: 28 | CD43: 3 | CF43: 3 | CG43: 11 | CH43: 39 | CI43: 46 | CJ43: 21 | CK43: 22 | CL43: 57 | CM43: 28 | CO43: 17 | CP43: 33 | CQ43: 75
A44: 150810 | C44: 37 | D44: 150810 | E44: DISTRITO SANTA MARIA | F44: 30893 | H44: 15295 | I44: 15598 | K44: 281 | L44: 287 | M44: 271 | N44: 276 | O44: 265 | P44: 270 | Q44: 262 | R44: 268 | S44: 262 | T44: 268 | U44: 266 | V44: 272 | W44: 271 | X44: 277 | Y44: 278 | Z44: 284 | AA44: 286 | AB44: 292 | AC44: 294 | AD44: 300 | AE44: 303 | AF44: 308 | AG44: 311 | AH44: 318 | AI44: 317 | AJ44: 324 | AK44: 319 | AL44: 325 | AM44: 318 | AN44: 324 | AO44: 315 | AP44: 322 | AQ44: 313 | AR44: 320 | AS44: 308 | AT44: 314 | AU44: 297 | AV44: 303 | AW44: 283 | AX44: 289 | AY44: 1250 | AZ44: 1274 | BA44: 1178 | BB44: 1201 | BC44: 1170 | BD44: 1193 | BE44: 1064 | BF44: 1084 | BG44: 921 | BH44: 940 | BI44: 815 | BJ44: 830 | BK44: 647 | BL44: 659 | BM44: 624 | BN44: 636 | BO44: 522 | BP44: 533 | BQ44: 396 | BR44: 403 | BS44: 357 | BT44: 363 | BU44: 249 | BV44: 254 | BW44: 282 | BX44: 287 | BY44: 571 | BZ44: 44 | CA44: 1535 | CB44: 1463 | CC44: 6558 | CD44: 711 | CF44: 568 | CG44: 2142 | CH44: 6770 | CI44: 7879 | CJ44: 3819 | CK44: 6075 | CL44: 10583 | CM44: 3646 | CO44: 2820 | CP44: 6231 | CQ44: 15486
B45: 02 | C45: 38 | D45: 5668 | E45: C.S. SANTA MARIA | F45: 8650 | H45: 4284 | I45: 4366 | K45: 79 | L45: 80 | M45: 76 | N45: 77 | O45: 74 | P45: 76 | Q45: 73 | R45: 75 | S45: 73 | T45: 75 | U45: 75 | V45: 76 | W45: 76 | X45: 78 | Y45: 78 | Z45: 79 | AA45: 80 | AB45: 82 | AC45: 82 | AD45: 84 | AE45: 85 | AF45: 86 | AG45: 87 | AH45: 89 | AI45: 89 | AJ45: 90 | AK45: 89 | AL45: 91 | AM45: 89 | AN45: 91 | AO45: 88 | AP45: 90 | AQ45: 88 | AR45: 89 | AS45: 86 | AT45: 88 | AU45: 83 | AV45: 85 | AW45: 79 | AX45: 81 | AY45: 350 | AZ45: 357 | BA45: 330 | BB45: 336 | BC45: 328 | BD45: 334 | BE45: 298 | BF45: 303 | BG45: 258 | BH45: 263 | BI45: 228 | BJ45: 233 | BK45: 181 | BL45: 185 | BM45: 175 | BN45: 178 | BO45: 147 | BP45: 149 | BQ45: 111 | BR45: 113 | BS45: 100 | BT45: 102 | BU45: 70 | BV45: 71 | BW45: 79 | BX45: 80 | BY45: 160 | BZ45: 12 | CA45: 430 | CB45: 411 | CC45: 1836 | CD45: 198 | CF45: 159 | CG45: 599 | CH45: 1895 | CI45: 2205 | CJ45: 1068 | CK45: 1701 | CL45: 2964 | CM45: 1022 | CO45: 790 | CP45: 1743 | CQ45: 4337
B46: 02 | C46: 39 | D46: 5669 | E46: P.S. CHONTA | F46: 4634 | H46: 2298 | I46: 2336 | K46: 42 | L46: 43 | M46: 41 | N46: 41 | O46: 40 | P46: 40 | Q46: 40 | R46: 40 | S46: 40 | T46: 40 | U46: 40 | V46: 41 | W46: 41 | X46: 41 | Y46: 42 | Z46: 42 | AA46: 43 | AB46: 44 | AC46: 44 | AD46: 45 | AE46: 46 | AF46: 46 | AG46: 47 | AH46: 47 | AI46: 48 | AJ46: 48 | AK46: 48 | AL46: 49 | AM46: 48 | AN46: 48 | AO46: 48 | AP46: 48 | AQ46: 47 | AR46: 48 | AS46: 46 | AT46: 47 | AU46: 45 | AV46: 45 | AW46: 43 | AX46: 43 | AY46: 188 | AZ46: 191 | BA46: 177 | BB46: 180 | BC46: 175 | BD46: 179 | BE46: 159 | BF46: 163 | BG46: 138 | BH46: 141 | BI46: 122 | BJ46: 125 | BK46: 97 | BL46: 99 | BM46: 94 | BN46: 95 | BO46: 78 | BP46: 80 | BQ46: 59 | BR46: 61 | BS46: 53 | BT46: 55 | BU46: 37 | BV46: 38 | BW46: 42 | BX46: 43 | BY46: 86 | BZ46: 7 | CA46: 230 | CB46: 219 | CC46: 984 | CD46: 106 | CF46: 85 | CG46: 322 | CH46: 1016 | CI46: 1182 | CJ46: 573 | CK46: 912 | CL46: 1587 | CM46: 546 | CO46: 423 | CP46: 935 | CQ46: 2323
B47: 02 | C47: 40 | D47: 5671 | E47: P.S. ZAPATA | F47: 2471 | H47: 1224 | I47: 1247 | K47: 22 | L47: 23 | M47: 22 | N47: 22 | O47: 21 | P47: 22 | Q47: 21 | R47: 21 | S47: 21 | T47: 21 | U47: 21 | V47: 22 | W47: 22 | X47: 22 | Y47: 22 | Z47: 23 | AA47: 23 | AB47: 23 | AC47: 24 | AD47: 24 | AE47: 24 | AF47: 25 | AG47: 25 | AH47: 25 | AI47: 25 | AJ47: 26 | AK47: 26 | AL47: 26 | AM47: 25 | AN47: 26 | AO47: 25 | AP47: 26 | AQ47: 25 | AR47: 26 | AS47: 25 | AT47: 25 | AU47: 24 | AV47: 24 | AW47: 23 | AX47: 23 | AY47: 100 | AZ47: 102 | BA47: 94 | BB47: 96 | BC47: 94 | BD47: 95 | BE47: 85 | BF47: 87 | BG47: 74 | BH47: 75 | BI47: 65 | BJ47: 67 | BK47: 51 | BL47: 53 | BM47: 50 | BN47: 51 | BO47: 42 | BP47: 42 | BQ47: 32 | BR47: 32 | BS47: 28 | BT47: 29 | BU47: 20 | BV47: 20 | BW47: 23 | BX47: 23 | BY47: 46 | BZ47: 4 | CA47: 123 | CB47: 117 | CC47: 525 | CD47: 57 | CF47: 45 | CG47: 171 | CH47: 541 | CI47: 631 | CJ47: 306 | CK47: 486 | CL47: 847 | CM47: 291 | CO47: 226 | CP47: 499 | CQ47: 1239
B48: 02 | C48: 41 | D48: 5670 | E48: P.S. AMADO VELASQUEZ | F48: 8032 | H48: 3975 | I48: 4057 | K48: 73 | L48: 75 | M48: 70 | N48: 72 | O48: 69 | P48: 70 | Q48: 68 | R48: 70 | S48: 68 | T48: 70 | U48: 69 | V48: 71 | W48: 70 | X48: 72 | Y48: 72 | Z48: 74 | AA48: 74 | AB48: 76 | AC48: 76 | AD48: 78 | AE48: 79 | AF48: 80 | AG48: 81 | AH48: 83 | AI48: 83 | AJ48: 84 | AK48: 83 | AL48: 84 | AM48: 83 | AN48: 84 | AO48: 82 | AP48: 84 | AQ48: 82 | AR48: 83 | AS48: 80 | AT48: 82 | AU48: 77 | AV48: 79 | AW48: 74 | AX48: 75 | AY48: 325 | AZ48: 331 | BA48: 306 | BB48: 313 | BC48: 304 | BD48: 310 | BE48: 276 | BF48: 282 | BG48: 240 | BH48: 244 | BI48: 212 | BJ48: 216 | BK48: 168 | BL48: 172 | BM48: 162 | BN48: 165 | BO48: 136 | BP48: 138 | BQ48: 102 | BR48: 105 | BS48: 93 | BT48: 94 | BU48: 65 | BV48: 66 | BW48: 73 | BX48: 75 | BY48: 148 | BZ48: 11 | CA48: 399 | CB48: 380 | CC48: 1705 | CD48: 187 | CF48: 148 | CG48: 557 | CH48: 1760 | CI48: 2049 | CJ48: 994 | CK48: 1580 | CL48: 2751 | CM48: 947 | CO48: 732 | CP48: 1622 | CQ48: 4026
B49: 02 | C49: 42 | D49: 5672 | E49: P.S. SAN BARTOLOME | F49: 7106 | H49: 3516 | I49: 3590 | K49: 65 | L49: 66 | M49: 62 | N49: 64 | O49: 61 | P49: 62 | Q49: 60 | R49: 62 | S49: 60 | T49: 62 | U49: 61 | V49: 62 | W49: 62 | X49: 64 | Y49: 64 | Z49: 66 | AA49: 66 | AB49: 67 | AC49: 68 | AD49: 69 | AE49: 69 | AF49: 71 | AG49: 72 | AH49: 73 | AI49: 73 | AJ49: 75 | AK49: 73 | AL49: 75 | AM49: 73 | AN49: 75 | AO49: 72 | AP49: 74 | AQ49: 72 | AR49: 73 | AS49: 71 | AT49: 72 | AU49: 68 | AV49: 70 | AW49: 65 | AX49: 66 | AY49: 287 | AZ49: 293 | BA49: 271 | BB49: 276 | BC49: 269 | BD49: 275 | BE49: 245 | BF49: 250 | BG49: 212 | BH49: 216 | BI49: 187 | BJ49: 190 | BK49: 149 | BL49: 151 | BM49: 144 | BN49: 146 | BO49: 120 | BP49: 123 | BQ49: 91 | BR49: 93 | BS49: 82 | BT49: 84 | BU49: 57 | BV49: 59 | BW49: 65 | BX49: 66 | BY49: 131 | BZ49: 10 | CA49: 353 | CB49: 336 | CC49: 1508 | CD49: 163 | CF49: 131 | CG49: 493 | CH49: 1558 | CI49: 1812 | CJ49: 878 | CK49: 1396 | CL49: 2434 | CM49: 840 | CO49: 649 | CP49: 1432 | CQ49: 3561
A50: 150811 | C50: 43 | D50: 150811 | E50: DISTRITO SAYAN | F50: 23386 | H50: 11583 | I50: 11803 | K50: 225 | L50: 229 | M50: 223 | N50: 227 | O50: 221 | P50: 226 | Q50: 221 | R50: 226 | S50: 222 | T50: 227 | U50: 224 | V50: 228 | W50: 226 | X50: 230 | Y50: 228 | Z50: 233 | AA50: 231 | AB50: 236 | AC50: 234 | AD50: 238 | AE50: 237 | AF50: 241 | AG50: 240 | AH50: 244 | AI50: 242 | AJ50: 246 | AK50: 243 | AL50: 248 | AM50: 244 | AN50: 249 | AO50: 245 | AP50: 249 | AQ50: 246 | AR50: 250 | AS50: 244 | AT50: 248 | AU50: 238 | AV50: 242 | AW50: 229 | AX50: 233 | AY50: 1045 | AZ50: 1065 | BA50: 995 | BB50: 1014 | BC50: 925 | BD50: 944 | BE50: 778 | BF50: 793 | BG50: 662 | BH50: 674 | BI50: 636 | BJ50: 648 | BK50: 454 | BL50: 463 | BM50: 394 | BN50: 401 | BO50: 322 | BP50: 328 | BQ50: 248 | BR50: 252 | BS50: 213 | BT50: 218 | BU50: 136 | BV50: 139 | BW50: 112 | BX50: 114 | BY50: 456 | BZ50: 35 | CA50: 1180 | CB50: 1210 | CC50: 4756 | CD50: 562 | CF50: 454 | CG50: 1793 | CH50: 5517 | CI50: 6224 | CJ50: 2954 | CK50: 5061 | CL50: 7772 | CM50: 2082 | CO50: 2308 | CP50: 4858 | CQ50: 11891
B51: 03 | C51: 44 | D51: 5780 | E51: C.S. SAYAN | F51: 9588 | H51: 4752 | I51: 4836 | K51: 92 | L51: 94 | M51: 91 | N51: 93 | O51: 91 | P51: 92 | Q51: 91 | R51: 92 | S51: 91 | T51: 93 | U51: 92 | V51: 93 | W51: 93 | X51: 94 | Y51: 94 | Z51: 95 | AA51: 95 | AB51: 96 | AC51: 96 | AD51: 98 | AE51: 97 | AF51: 99 | AG51: 99 | AH51: 100 | AI51: 99 | AJ51: 101 | AK51: 100 | AL51: 101 | AM51: 100 | AN51: 102 | AO51: 101 | AP51: 102 | AQ51: 101 | AR51: 102 | AS51: 100 | AT51: 102 | AU51: 98 | AV51: 99 | AW51: 94 | AX51: 95 | AY51: 428 | AZ51: 437 | BA51: 408 | BB51: 416 | BC51: 380 | BD51: 387 | BE51: 319 | BF51: 325 | BG51: 271 | BH51: 277 | BI51: 260 | BJ51: 266 | BK51: 186 | BL51: 190 | BM51: 161 | BN51: 164 | BO51: 132 | BP51: 135 | BQ51: 102 | BR51: 103 | BS51: 88 | BT51: 89 | BU51: 56 | BV51: 57 | BW51: 46 | BX51: 47 | BY51: 187 | BZ51: 14 | CA51: 484 | CB51: 496 | CC51: 1949 | CD51: 237 | CF51: 186 | CG51: 734 | CH51: 2261 | CI51: 2552 | CJ51: 1211 | CK51: 2075 | CL51: 3186 | CM51: 855 | CO51: 946 | CP51: 1992 | CQ51: 4875
B52: 03 | C52: 45 | D52: 5774 | E52: C.S. 9 DE OCTUBRE | F52: 4911 | H52: 2433 | I52: 2478 | K52: 47 | L52: 48 | M52: 47 | N52: 48 | O52: 47 | P52: 47 | Q52: 47 | R52: 47 | S52: 47 | T52: 47 | U52: 47 | V52: 48 | W52: 47 | X52: 48 | Y52: 48 | Z52: 49 | AA52: 49 | AB52: 49 | AC52: 49 | AD52: 50 | AE52: 50 | AF52: 51 | AG52: 51 | AH52: 51 | AI52: 51 | AJ52: 51 | AK52: 51 | AL52: 52 | AM52: 51 | AN52: 53 | AO52: 51 | AP52: 53 | AQ52: 51 | AR52: 53 | AS52: 51 | AT52: 52 | AU52: 50 | AV52: 51 | AW52: 48 | AX52: 49 | AY52: 219 | AZ52: 224 | BA52: 209 | BB52: 213 | BC52: 194 | BD52: 198 | BE52: 163 | BF52: 167 | BG52: 139 | BH52: 142 | BI52: 134 | BJ52: 136 | BK52: 95 | BL52: 97 | BM52: 83 | BN52: 84 | BO52: 68 | BP52: 69 | BQ52: 52 | BR52: 53 | BS52: 45 | BT52: 45 | BU52: 29 | BV52: 29 | BW52: 23 | BX52: 24 | BY52: 96 | BZ52: 7 | CA52: 248 | CB52: 254 | CC52: 999 | CD52: 112 | CF52: 95 | CG52: 377 | CH52: 1159 | CI52: 1307 | CJ52: 620 | CK52: 1063 | CL52: 1632 | CM52: 437 | CO52: 484 | CP52: 1021 | CQ52: 2497
B53: 03 | C53: 46 | D53: 5781 | E53: P.S. CHAMBARA | F53: 1169 | H53: 575 | I53: 594 | K53: 11 | L53: 12 | M53: 11 | N53: 11 | O53: 11 | P53: 11 | Q53: 11 | R53: 11 | S53: 11 | T53: 12 | U53: 11 | V53: 12 | W53: 11 | X53: 12 | Y53: 11 | Z53: 12 | AA53: 11 | AB53: 12 | AC53: 11 | AD53: 12 | AE53: 12 | AF53: 12 | AG53: 12 | AH53: 12 | AI53: 12 | AJ53: 12 | AK53: 12 | AL53: 13 | AM53: 12 | AN53: 13 | AO53: 12 | AP53: 13 | AQ53: 12 | AR53: 13 | AS53: 12 | AT53: 13 | AU53: 12 | AV53: 12 | AW53: 11 | AX53: 12 | AY53: 52 | AZ53: 54 | BA53: 50 | BB53: 50 | BC53: 46 | BD53: 47 | BE53: 39 | BF53: 40 | BG53: 33 | BH53: 33 | BI53: 32 | BJ53: 32 | BK53: 23 | BL53: 23 | BM53: 20 | BN53: 20 | BO53: 16 | BP53: 16 | BQ53: 12 | BR53: 13 | BS53: 11 | BT53: 11 | BU53: 7 | BV53: 7 | BW53: 5 | BX53: 6 | BY53: 23 | BZ53: 2 | CA53: 59 | CB53: 61 | CC53: 238 | CD53: 28 | CF53: 23 | CG53: 89 | CH53: 275 | CI53: 312 | CJ53: 149 | CK53: 253 | CL53: 388 | CM53: 104 | CO53: 115 | CP53: 244 | CQ53: 594
B54: 03 | C54: 47 | D54: 5775 | E54: P.S. LA MERCED | F54: 2339 | H54: 1155 | I54: 1184 | K54: 22 | L54: 23 | M54: 22 | N54: 23 | O54: 22 | P54: 23 | Q54: 22 | R54: 23 | S54: 22 | T54: 23 | U54: 22 | V54: 23 | W54: 23 | X54: 23 | Y54: 23 | Z54: 23 | AA54: 23 | AB54: 24 | AC54: 23 | AD54: 24 | AE54: 24 | AF54: 24 | AG54: 24 | AH54: 24 | AI54: 24 | AJ54: 25 | AK54: 24 | AL54: 25 | AM54: 24 | AN54: 25 | AO54: 24 | AP54: 25 | AQ54: 25 | AR54: 25 | AS54: 24 | AT54: 25 | AU54: 24 | AV54: 24 | AW54: 23 | AX54: 24 | AY54: 104 | AZ54: 107 | BA54: 100 | BB54: 101 | BC54: 93 | BD54: 94 | BE54: 78 | BF54: 79 | BG54: 66 | BH54: 68 | BI54: 63 | BJ54: 65 | BK54: 45 | BL54: 46 | BM54: 40 | BN54: 40 | BO54: 32 | BP54: 33 | BQ54: 25 | BR54: 25 | BS54: 21 | BT54: 22 | BU54: 13 | BV54: 14 | BW54: 11 | BX54: 12 | BY54: 46 | BZ54: 4 | CA54: 118 | CB54: 121 | CC54: 476 | CD54: 56 | CF54: 45 | CG54: 180 | CH54: 552 | CI54: 622 | CJ54: 295 | CK54: 507 | CL54: 777 | CM54: 208 | CO54: 231 | CP54: 486 | CQ54: 1189
B55: 03 | C55: 48 | D55: 5776 | E55: P.S. LA VILLA | F55: 3742 | H55: 1856 | I55: 1886 | K55: 36 | L55: 37 | M55: 36 | N55: 36 | O55: 36 | P55: 36 | Q55: 36 | R55: 36 | S55: 36 | T55: 36 | U55: 36 | V55: 36 | W55: 36 | X55: 37 | Y55: 37 | Z55: 37 | AA55: 37 | AB55: 38 | AC55: 38 | AD55: 38 | AE55: 38 | AF55: 38 | AG55: 38 | AH55: 39 | AI55: 39 | AJ55: 39 | AK55: 39 | AL55: 39 | AM55: 39 | AN55: 39 | AO55: 39 | AP55: 40 | AQ55: 39 | AR55: 40 | AS55: 39 | AT55: 40 | AU55: 38 | AV55: 39 | AW55: 37 | AX55: 37 | AY55: 167 | AZ55: 171 | BA55: 159 | BB55: 162 | BC55: 148 | BD55: 151 | BE55: 124 | BF55: 127 | BG55: 106 | BH55: 108 | BI55: 102 | BJ55: 104 | BK55: 73 | BL55: 74 | BM55: 63 | BN55: 64 | BO55: 51 | BP55: 53 | BQ55: 40 | BR55: 40 | BS55: 34 | BT55: 35 | BU55: 22 | BV55: 22 | BW55: 18 | BX55: 18 | BY55: 73 | BZ55: 6 | CA55: 189 | CB55: 194 | CC55: 761 | CD55: 90 | CF55: 73 | CG55: 288 | CH55: 884 | CI55: 994 | CJ55: 471 | CK55: 810 | CL55: 1244 | CM55: 333 | CO55: 370 | CP55: 775 | CQ55: 1903
B56: 03 | C56: 49 | D56: 5777 | E56: P.S. EL AHORCADO | F56: 935 | H56: 460 | I56: 475 | K56: 9 | L56: 9 | M56: 9 | N56: 9 | O56: 9 | P56: 9 | Q56: 9 | R56: 9 | S56: 9 | T56: 9 | U56: 9 | V56: 9 | W56: 9 | X56: 9 | Y56: 9 | Z56: 9 | AA56: 9 | AB56: 10 | AC56: 9 | AD56: 10 | AE56: 9 | AF56: 10 | AG56: 9 | AH56: 10 | AI56: 10 | AJ56: 10 | AK56: 10 | AL56: 10 | AM56: 10 | AN56: 10 | AO56: 10 | AP56: 10 | AQ56: 10 | AR56: 10 | AS56: 9 | AT56: 10 | AU56: 9 | AV56: 10 | AW56: 9 | AX56: 9 | AY56: 42 | AZ56: 42 | BA56: 40 | BB56: 41 | BC56: 37 | BD56: 38 | BE56: 31 | BF56: 32 | BG56: 26 | BH56: 27 | BI56: 25 | BJ56: 26 | BK56: 18 | BL56: 19 | BM56: 16 | BN56: 16 | BO56: 13 | BP56: 13 | BQ56: 10 | BR56: 10 | BS56: 8 | BT56: 9 | BU56: 5 | BV56: 6 | BW56: 4 | BX56: 5 | BY56: 18 | BZ56: 1 | CA56: 47 | CB56: 48 | CC56: 190 | CD56: 22 | CF56: 18 | CG56: 72 | CH56: 220 | CI56: 249 | CJ56: 119 | CK56: 202 | CL56: 311 | CM56: 83 | CO56: 92 | CP56: 194 | CQ56: 476
B57: 03 | C57: 50 | D57: 6726 | E57: P.S. LA UNION | F57: 702 | H57: 343 | I57: 359 | K57: 7 | L57: 7 | M57: 7 | N57: 7 | O57: 6 | P57: 7 | Q57: 6 | R57: 7 | S57: 6 | T57: 7 | U57: 7 | V57: 7 | W57: 7 | X57: 7 | Y57: 7 | Z57: 7 | AA57: 7 | AB57: 7 | AC57: 7 | AD57: 7 | AE57: 7 | AF57: 7 | AG57: 7 | AH57: 8 | AI57: 7 | AJ57: 8 | AK57: 7 | AL57: 8 | AM57: 7 | AN57: 8 | AO57: 7 | AP57: 7 | AQ57: 7 | AR57: 8 | AS57: 7 | AT57: 8 | AU57: 7 | AV57: 7 | AW57: 7 | AX57: 7 | AY57: 31 | AZ57: 32 | BA57: 30 | BB57: 30 | BC57: 28 | BD57: 28 | BE57: 23 | BF57: 24 | BG57: 20 | BH57: 20 | BI57: 19 | BJ57: 20 | BK57: 14 | BL57: 14 | BM57: 12 | BN57: 12 | BO57: 9 | BP57: 10 | BQ57: 7 | BR57: 8 | BS57: 6 | BT57: 7 | BU57: 4 | BV57: 4 | BW57: 3 | BX57: 4 | BY57: 14 | BZ57: 1 | CA57: 35 | CB57: 36 | CC57: 143 | CD57: 17 | CF57: 14 | CG57: 53 | CH57: 166 | CI57: 188 | CJ57: 89 | CK57: 151 | CL57: 234 | CM57: 62 | CO57: 70 | CP57: 146 | CQ57: 357
A58: 150812 | C58: 51 | D58: 150812 | E58: DISTRITO VEGUETA | F58: 20357 | H58: 10080 | I58: 10277 | K58: 225 | L58: 229 | M58: 206 | N58: 211 | O58: 193 | P58: 197 | Q58: 184 | R58: 187 | S58: 178 | T58: 181 | U58: 176 | V58: 179 | W58: 176 | X58: 180 | Y58: 179 | Z58: 182 | AA58: 184 | AB58: 187 | AC58: 189 | AD58: 193 | AE58: 196 | AF58: 200 | AG58: 204 | AH58: 207 | AI58: 210 | AJ58: 214 | AK58: 214 | AL58: 218 | AM58: 215 | AN58: 220 | AO58: 217 | AP58: 222 | AQ58: 220 | AR58: 224 | AS58: 219 | AT58: 223 | AU58: 213 | AV58: 218 | AW58: 204 | AX58: 209 | AY58: 906 | AZ58: 923 | BA58: 801 | BB58: 816 | BC58: 729 | BD58: 744 | BE58: 623 | BF58: 635 | BG58: 588 | BH58: 600 | BI58: 555 | BJ58: 566 | BK58: 425 | BL58: 434 | BM58: 374 | BN58: 381 | BO58: 306 | BP58: 311 | BQ58: 246 | BR58: 251 | BS58: 216 | BT58: 220 | BU58: 156 | BV58: 159 | BW58: 153 | BX58: 156 | BY58: 456 | BZ58: 35 | CA58: 995 | CB58: 1071 | CC58: 4194 | CD58: 571 | CF58: 454 | CG58: 1537 | CH58: 4623 | CI58: 5248 | CJ58: 2616 | CK58: 4290 | CL58: 6654 | CM58: 2174 | CO58: 1825 | CP58: 4267 | CQ58: 10100
B59: 04 | C59: 52 | D59: 5673 | E59: C.S. VEGUETA | F59: 6100 | H59: 3017 | I59: 3083 | K59: 67 | L59: 69 | M59: 61 | N59: 63 | O59: 57 | P59: 59 | Q59: 55 | R59: 56 | S59: 53 | T59: 55 | U59: 53 | V59: 54 | W59: 53 | X59: 54 | Y59: 53 | Z59: 55 | AA59: 55 | AB59: 56 | AC59: 57 | AD59: 58 | AE59: 58 | AF59: 60 | AG59: 60 | AH59: 62 | AI59: 63 | AJ59: 64 | AK59: 64 | AL59: 66 | AM59: 65 | AN59: 66 | AO59: 65 | AP59: 67 | AQ59: 66 | AR59: 67 | AS59: 65 | AT59: 67 | AU59: 64 | AV59: 66 | AW59: 61 | AX59: 63 | AY59: 272 | AZ59: 277 | BA59: 240 | BB59: 244 | BC59: 219 | BD59: 223 | BE59: 187 | BF59: 191 | BG59: 176 | BH59: 179 | BI59: 166 | BJ59: 170 | BK59: 128 | BL59: 130 | BM59: 112 | BN59: 114 | BO59: 91 | BP59: 93 | BQ59: 74 | BR59: 75 | BS59: 64 | BT59: 66 | BU59: 47 | BV59: 47 | BW59: 46 | BX59: 47 | BY59: 137 | BZ59: 11 | CA59: 298 | CB59: 321 | CC59: 1257 | CD59: 173 | CF59: 136 | CG59: 459 | CH59: 1383 | CI59: 1573 | CJ59: 785 | CK59: 1287 | CL59: 1995 | CM59: 650 | CO59: 548 | CP59: 1279 | CQ59: 3028
B60: 04 | C60: 53 | D60: 5674 | E60: P.S. MAZO | F60: 2036 | H60: 1009 | I60: 1027 | K60: 22 | L60: 23 | M60: 21 | N60: 21 | O60: 19 | P60: 20 | Q60: 18 | R60: 19 | S60: 18 | T60: 18 | U60: 17 | V60: 18 | W60: 18 | X60: 18 | Y60: 18 | Z60: 18 | AA60: 18 | AB60: 19 | AC60: 19 | AD60: 19 | AE60: 20 | AF60: 20 | AG60: 20 | AH60: 21 | AI60: 21 | AJ60: 21 | AK60: 21 | AL60: 21 | AM60: 22 | AN60: 22 | AO60: 22 | AP60: 22 | AQ60: 22 | AR60: 22 | AS60: 22 | AT60: 22 | AU60: 21 | AV60: 22 | AW60: 20 | AX60: 21 | AY60: 91 | AZ60: 92 | BA60: 80 | BB60: 82 | BC60: 73 | BD60: 74 | BE60: 62 | BF60: 64 | BG60: 59 | BH60: 60 | BI60: 55 | BJ60: 57 | BK60: 43 | BL60: 43 | BM60: 38 | BN60: 38 | BO60: 31 | BP60: 31 | BQ60: 25 | BR60: 25 | BS60: 22 | BT60: 22 | BU60: 16 | BV60: 16 | BW60: 15 | BX60: 16 | BY60: 46 | BZ60: 4 | CA60: 99 | CB60: 107 | CC60: 419 | CD60: 60 | CF60: 45 | CG60: 154 | CH60: 462 | CI60: 523 | CJ60: 260 | CK60: 429 | CL60: 666 | CM60: 219 | CO60: 182 | CP60: 425 | CQ60: 1011
B61: 04 | C61: 54 | D61: 5675 | E61: P.S. PRIMAVERA | F61: 2242 | H61: 1109 | I61: 1133 | K61: 25 | L61: 25 | M61: 23 | N61: 23 | O61: 21 | P61: 22 | Q61: 20 | R61: 21 | S61: 20 | T61: 20 | U61: 19 | V61: 20 | W61: 19 | X61: 20 | Y61: 20 | Z61: 20 | AA61: 20 | AB61: 21 | AC61: 21 | AD61: 21 | AE61: 22 | AF61: 22 | AG61: 22 | AH61: 23 | AI61: 23 | AJ61: 24 | AK61: 24 | AL61: 24 | AM61: 24 | AN61: 24 | AO61: 24 | AP61: 24 | AQ61: 24 | AR61: 25 | AS61: 24 | AT61: 25 | AU61: 23 | AV61: 24 | AW61: 22 | AX61: 23 | AY61: 100 | AZ61: 101 | BA61: 88 | BB61: 90 | BC61: 80 | BD61: 82 | BE61: 68 | BF61: 70 | BG61: 65 | BH61: 66 | BI61: 61 | BJ61: 62 | BK61: 47 | BL61: 48 | BM61: 41 | BN61: 42 | BO61: 34 | BP61: 34 | BQ61: 27 | BR61: 28 | BS61: 24 | BT61: 24 | BU61: 17 | BV61: 18 | BW61: 17 | BX61: 17 | BY61: 50 | BZ61: 4 | CA61: 110 | CB61: 118 | CC61: 462 | CD61: 65 | CF61: 50 | CG61: 170 | CH61: 510 | CI61: 579 | CJ61: 289 | CK61: 471 | CL61: 732 | CM61: 240 | CO61: 201 | CP61: 470 | CQ61: 1111
B62: 04 | C62: 55 | D62: 5676 | E62: P.S. MARIATEGUI | F62: 4888 | H62: 2421 | I62: 2467 | K62: 54 | L62: 56 | M62: 50 | N62: 50 | O62: 47 | P62: 47 | Q62: 44 | R62: 45 | S62: 43 | T62: 43 | U62: 42 | V62: 43 | W62: 42 | X62: 43 | Y62: 43 | Z62: 44 | AA62: 44 | AB62: 45 | AC62: 46 | AD62: 46 | AE62: 47 | AF62: 48 | AG62: 49 | AH62: 50 | AI62: 51 | AJ62: 51 | AK62: 51 | AL62: 53 | AM62: 51 | AN62: 53 | AO62: 52 | AP62: 53 | AQ62: 53 | AR62: 54 | AS62: 52 | AT62: 54 | AU62: 51 | AV62: 52 | AW62: 49 | AX62: 50 | AY62: 217 | AZ62: 222 | BA62: 192 | BB62: 196 | BC62: 175 | BD62: 179 | BE62: 150 | BF62: 152 | BG62: 141 | BH62: 144 | BI62: 134 | BJ62: 136 | BK62: 102 | BL62: 104 | BM62: 90 | BN62: 91 | BO62: 73 | BP62: 75 | BQ62: 59 | BR62: 60 | BS62: 52 | BT62: 53 | BU62: 38 | BV62: 38 | BW62: 37 | BX62: 37 | BY62: 109 | BZ62: 8 | CA62: 239 | CB62: 257 | CC62: 1007 | CD62: 140 | CF62: 110 | CG62: 369 | CH62: 1111 | CI62: 1260 | CJ62: 628 | CK62: 1029 | CL62: 1598 | CM62: 522 | CO62: 438 | CP62: 1024 | CQ62: 2425
B63: 04 | C63: 56 | D63: 5677 | E63: P.S. MEDIO MUNDO | F63: 4275 | H63: 2119 | I63: 2156 | K63: 47 | L63: 48 | M63: 44 | N63: 44 | O63: 41 | P63: 41 | Q63: 39 | R63: 39 | S63: 37 | T63: 38 | U63: 37 | V63: 38 | W63: 37 | X63: 38 | Y63: 38 | Z63: 38 | AA63: 39 | AB63: 39 | AC63: 40 | AD63: 40 | AE63: 41 | AF63: 42 | AG63: 43 | AH63: 43 | AI63: 44 | AJ63: 45 | AK63: 45 | AL63: 45 | AM63: 45 | AN63: 46 | AO63: 46 | AP63: 46 | AQ63: 46 | AR63: 47 | AS63: 46 | AT63: 47 | AU63: 45 | AV63: 46 | AW63: 43 | AX63: 44 | AY63: 190 | AZ63: 194 | BA63: 168 | BB63: 172 | BC63: 153 | BD63: 156 | BE63: 131 | BF63: 133 | BG63: 124 | BH63: 126 | BI63: 116 | BJ63: 119 | BK63: 89 | BL63: 91 | BM63: 79 | BN63: 80 | BO63: 64 | BP63: 66 | BQ63: 51 | BR63: 53 | BS63: 46 | BT63: 46 | BU63: 33 | BV63: 33 | BW63: 32 | BX63: 33 | BY63: 96 | BZ63: 7 | CA63: 209 | CB63: 225 | CC63: 881 | CD63: 122 | CF63: 95 | CG63: 323 | CH63: 971 | CI63: 1101 | CJ63: 548 | CK63: 902 | CL63: 1397 | CM63: 457 | CO63: 384 | CP63: 895 | CQ63: 2121
B64: 04 | C64: 57 | D64: 5678 | E64: P.S. TIROLER | F64: 816 | H64: 401 | I64: 415 | K64: 9 | L64: 9 | M64: 8 | N64: 9 | O64: 8 | P64: 8 | Q64: 7 | R64: 8 | S64: 7 | T64: 7 | U64: 7 | V64: 7 | W64: 7 | X64: 7 | Y64: 7 | Z64: 7 | AA64: 7 | AB64: 8 | AC64: 7 | AD64: 8 | AE64: 8 | AF64: 8 | AG64: 9 | AH64: 9 | AI64: 8 | AJ64: 9 | AK64: 9 | AL64: 9 | AM64: 8 | AN64: 9 | AO64: 9 | AP64: 9 | AQ64: 9 | AR64: 9 | AS64: 9 | AT64: 9 | AU64: 8 | AV64: 9 | AW64: 8 | AX64: 9 | AY64: 36 | AZ64: 37 | BA64: 32 | BB64: 33 | BC64: 29 | BD64: 30 | BE64: 25 | BF64: 25 | BG64: 24 | BH64: 24 | BI64: 22 | BJ64: 23 | BK64: 17 | BL64: 17 | BM64: 15 | BN64: 15 | BO64: 12 | BP64: 13 | BQ64: 10 | BR64: 10 | BS64: 8 | BT64: 9 | BU64: 6 | BV64: 6 | BW64: 6 | BX64: 6 | BY64: 18 | BZ64: 1 | CA64: 40 | CB64: 43 | CC64: 168 | CD64: 11 | CF64: 18 | CG64: 62 | CH64: 186 | CI64: 212 | CJ64: 106 | CK64: 172 | CL64: 266 | CM64: 86 | CO64: 72 | CP64: 174 | CQ64: 404
A65: 150900 | C65: 58 | D65: 150900 | E65: PROVINCIA OYON | F65: 22033 | H65: 10911 | I65: 11122 | K65: 250 | L65: 255 | M65: 239 | N65: 244 | O65: 233 | P65: 237 | Q65: 229 | R65: 234 | S65: 229 | T65: 234 | U65: 229 | V65: 234 | W65: 231 | X65: 236 | Y65: 235 | Z65: 240 | AA65: 239 | AB65: 243 | AC65: 243 | AD65: 248 | AE65: 246 | AF65: 251 | AG65: 252 | AH65: 256 | AI65: 251 | AJ65: 256 | AK65: 243 | AL65: 247 | AM65: 228 | AN65: 232 | AO65: 214 | AP65: 219 | AQ65: 199 | AR65: 203 | AS65: 188 | AT65: 191 | AU65: 178 | AV65: 182 | AW65: 172 | AX65: 175 | AY65: 785 | AZ65: 801 | BA65: 865 | BB65: 881 | BC65: 836 | BD65: 853 | BE65: 798 | BF65: 813 | BG65: 616 | BH65: 628 | BI65: 577 | BJ65: 588 | BK65: 423 | BL65: 431 | BM65: 362 | BN65: 369 | BO65: 282 | BP65: 287 | BQ65: 280 | BR65: 286 | BS65: 237 | BT65: 241 | BU65: 186 | BV65: 189 | BW65: 136 | BX65: 138 | BY65: 509 | BZ65: 38 | CA65: 1184 | CB65: 936 | CC65: 3952 | CD65: 632 | CF65: 505 | CG65: 1879 | CH65: 5767 | CI65: 6054 | CJ65: 2671 | CK65: 4039 | CL65: 7294 | CM65: 2262 | CO65: 2378 | CP65: 4383 | CQ65: 10626
A66: 150901 | C66: 59 | D66: 150901 | E66: DISTRITO OYON | F66: 13811 | H66: 6836 | I66: 6975 | K66: 167 | L66: 170 | M66: 160 | N66: 163 | O66: 155 | P66: 159 | Q66: 153 | R66: 156 | S66: 153 | T66: 156 | U66: 153 | V66: 156 | W66: 154 | X66: 158 | Y66: 156 | Z66: 160 | AA66: 158 | AB66: 162 | AC66: 161 | AD66: 164 | AE66: 163 | AF66: 166 | AG66: 166 | AH66: 170 | AI66: 165 | AJ66: 169 | AK66: 159 | AL66: 162 | AM66: 149 | AN66: 152 | AO66: 140 | AP66: 142 | AQ66: 130 | AR66: 132 | AS66: 121 | AT66: 124 | AU66: 115 | AV66: 118 | AW66: 110 | AX66: 113 | AY66: 513 | AZ66: 523 | BA66: 596 | BB66: 607 | BC66: 571 | BD66: 583 | BE66: 531 | BF66: 542 | BG66: 383 | BH66: 390 | BI66: 344 | BJ66: 350 | BK66: 250 | BL66: 254 | BM66: 185 | BN66: 189 | BO66: 123 | BP66: 125 | BQ66: 125 | BR66: 128 | BS66: 94 | BT66: 96 | BU66: 76 | BV66: 77 | BW66: 57 | BX66: 59 | BY66: 340 | BZ66: 26 | CA66: 788 | CB66: 643 | CC66: 2497 | CD66: 423 | CF66: 337 | CG66: 1255 | CH66: 3839 | CI66: 3992 | CJ66: 1745 | CK66: 2695 | CL66: 4572 | CM66: 960 | CO66: 1582 | CP66: 2866 | CQ66: 6811
B67: 05 | C67: 60 | D67: 5659 | E67: C.S. OYON | F67: 11463 | H67: 5678 | I67: 5785 | K67: 139 | L67: 141 | M67: 133 | N67: 135 | O67: 129 | P67: 132 | Q67: 127 | R67: 129 | S67: 127 | T67: 129 | U67: 127 | V67: 129 | W67: 128 | X67: 131 | Y67: 130 | Z67: 132 | AA67: 132 | AB67: 134 | AC67: 134 | AD67: 136 | AE67: 135 | AF67: 138 | AG67: 138 | AH67: 141 | AI67: 137 | AJ67: 140 | AK67: 132 | AL67: 134 | AM67: 124 | AN67: 126 | AO67: 116 | AP67: 118 | AQ67: 107 | AR67: 110 | AS67: 101 | AT67: 102 | AU67: 96 | AV67: 97 | AW67: 92 | AX67: 93 | AY67: 426 | AZ67: 434 | BA67: 495 | BB67: 504 | BC67: 474 | BD67: 484 | BE67: 441 | BF67: 450 | BG67: 318 | BH67: 324 | BI67: 285 | BJ67: 291 | BK67: 207 | BL67: 211 | BM67: 153 | BN67: 157 | BO67: 102 | BP67: 104 | BQ67: 104 | BR67: 106 | BS67: 78 | BT67: 80 | BU67: 63 | BV67: 64 | BW67: 48 | BX67: 49 | BY67: 283 | BZ67: 22 | CA67: 654 | CB67: 535 | CC67: 2072 | CD67: 351 | CF67: 280 | CG67: 1041 | CH67: 3186 | CI67: 3312 | CJ67: 1447 | CK67: 2237 | CL67: 3795 | CM67: 798 | CO67: 1313 | CP67: 2377 | CQ67: 5654
B68: 05 | C68: 61 | D68: 5660 | E68: P.S. MALLAY | F68: 691 | H68: 338 | I68: 353 | K68: 8 | L68: 9 | M68: 8 | N68: 8 | O68: 8 | P68: 8 | Q68: 7 | R68: 8 | S68: 7 | T68: 8 | U68: 7 | V68: 8 | W68: 8 | X68: 8 | Y68: 8 | Z68: 8 | AA68: 8 | AB68: 8 | AC68: 8 | AD68: 8 | AE68: 8 | AF68: 9 | AG68: 8 | AH68: 9 | AI68: 8 | AJ68: 9 | AK68: 8 | AL68: 8 | AM68: 7 | AN68: 8 | AO68: 7 | AP68: 7 | AQ68: 6 | AR68: 7 | AS68: 6 | AT68: 6 | AU68: 6 | AV68: 6 | AW68: 5 | AX68: 6 | AY68: 26 | AZ68: 26 | BA68: 30 | BB68: 30 | BC68: 29 | BD68: 29 | BE68: 27 | BF68: 27 | BG68: 19 | BH68: 20 | BI68: 17 | BJ68: 17 | BK68: 12 | BL68: 13 | BM68: 9 | BN68: 10 | BO68: 6 | BP68: 6 | BQ68: 6 | BR68: 7 | BS68: 5 | BT68: 5 | BU68: 3 | BV68: 4 | BW68: 3 | BX68: 3 | BY68: 17 | BZ68: 1 | CA68: 39 | CB68: 32 | CC68: 125 | CD68: 21 | CF68: 17 | CG68: 62 | CH68: 192 | CI68: 200 | CJ68: 87 | CK68: 135 | CL68: 229 | CM68: 48 | CO68: 79 | CP68: 144 | CQ68: 341
B69: 05 | C69: 62 | D69: 5661 | E69: P.S. NAVA | F69: 138 | H69: 60 | I69: 78 | K69: 1 | L69: 2 | M69: 1 | N69: 2 | O69: 1 | P69: 2 | Q69: 1 | R69: 2 | S69: 2 | T69: 2 | U69: 2 | V69: 2 | W69: 1 | X69: 2 | Y69: 1 | Z69: 2 | AA69: 1 | AB69: 2 | AC69: 1 | AD69: 2 | AE69: 1 | AF69: 2 | AG69: 1 | AH69: 2 | AI69: 1 | AJ69: 2 | AK69: 1 | AL69: 2 | AM69: 1 | AN69: 2 | AO69: 1 | AP69: 2 | AQ69: 1 | AR69: 2 | AS69: 1 | AT69: 1 | AU69: 1 | AV69: 1 | AW69: 1 | AX69: 1 | AY69: 5 | AZ69: 5 | BA69: 6 | BB69: 6 | BC69: 6 | BD69: 6 | BE69: 5 | BF69: 6 | BG69: 4 | BH69: 4 | BI69: 3 | BJ69: 4 | BK69: 3 | BL69: 3 | BM69: 2 | BN69: 2 | BO69: 1 | BP69: 1 | BQ69: 1 | BR69: 1 | BS69: 1 | BT69: 1 | BU69: 1 | BV69: 1 | BW69: 0 | BX69: 1 | BY69: 3 | BZ69: 0 | CA69: 8 | CB69: 6 | CC69: 25 | CD69: 4 | CF69: 3 | CG69: 13 | CH69: 38 | CI69: 39 | CJ69: 17 | CK69: 26 | CL69: 48 | CM69: 9 | CO69: 16 | CP69: 27 | CQ69: 70
B70: 05 | C70: 63 | D70: 5662 | E70: P.S. TINTA | F70: 414 | H70: 198 | I70: 216 | K70: 5 | L70: 5 | M70: 5 | N70: 5 | O70: 4 | P70: 5 | Q70: 4 | R70: 5 | S70: 4 | T70: 5 | U70: 4 | V70: 5 | W70: 4 | X70: 5 | Y70: 4 | Z70: 5 | AA70: 5 | AB70: 5 | AC70: 5 | AD70: 5 | AE70: 5 | AF70: 5 | AG70: 5 | AH70: 5 | AI70: 5 | AJ70: 5 | AK70: 5 | AL70: 5 | AM70: 4 | AN70: 5 | AO70: 4 | AP70: 4 | AQ70: 4 | AR70: 4 | AS70: 4 | AT70: 4 | AU70: 3 | AV70: 4 | AW70: 3 | AX70: 4 | AY70: 15 | AZ70: 16 | BA70: 18 | BB70: 18 | BC70: 17 | BD70: 18 | BE70: 16 | BF70: 16 | BG70: 11 | BH70: 12 | BI70: 10 | BJ70: 11 | BK70: 7 | BL70: 8 | BM70: 5 | BN70: 6 | BO70: 4 | BP70: 4 | BQ70: 4 | BR70: 4 | BS70: 2 | BT70: 3 | BU70: 2 | BV70: 3 | BW70: 1 | BX70: 2 | BY70: 10 | BZ70: 1 | CA70: 24 | CB70: 19 | CC70: 75 | CD70: 13 | CF70: 10 | CG70: 37 | CH70: 114 | CI70: 120 | CJ70: 53 | CK70: 81 | CL70: 137 | CM70: 29 | CO70: 47 | CP70: 87 | CQ70: 204
B71: 05 | C71: 64 | D71: 5648 | E71: P.S. RAPAZ | F71: 1105 | H71: 544 | I71: 561 | K71: 13 | L71: 14 | M71: 13 | N71: 13 | O71: 12 | P71: 13 | Q71: 13 | R71: 13 | S71: 12 | T71: 13 | U71: 12 | V71: 13 | W71: 12 | X71: 13 | Y71: 13 | Z71: 13 | AA71: 12 | AB71: 13 | AC71: 13 | AD71: 13 | AE71: 13 | AF71: 13 | AG71: 13 | AH71: 14 | AI71: 13 | AJ71: 14 | AK71: 13 | AL71: 13 | AM71: 12 | AN71: 12 | AO71: 11 | AP71: 12 | AQ71: 10 | AR71: 11 | AS71: 10 | AT71: 10 | AU71: 9 | AV71: 10 | AW71: 9 | AX71: 9 | AY71: 41 | AZ71: 42 | BA71: 48 | BB71: 48 | BC71: 45 | BD71: 46 | BE71: 42 | BF71: 43 | BG71: 30 | BH71: 31 | BI71: 28 | BJ71: 28 | BK71: 20 | BL71: 20 | BM71: 15 | BN71: 15 | BO71: 10 | BP71: 10 | BQ71: 10 | BR71: 10 | BS71: 7 | BT71: 8 | BU71: 6 | BV71: 6 | BW71: 4 | BX71: 5 | BY71: 27 | BZ71: 2 | CA71: 63 | CB71: 51 | CC71: 200 | CD71: 34 | CF71: 27 | CG71: 102 | CH71: 309 | CI71: 321 | CJ71: 141 | CK71: 216 | CL71: 363 | CM71: 76 | CO71: 127 | CP71: 231 | CQ71: 542
A72: 150902 | C72: 65 | D72: 150902 | E72: DISTRITO ANDAJES | F72: 1060 | H72: 520 | I72: 540 | K72: 2 | L72: 3 | M72: 3 | N72: 4 | O72: 4 | P72: 4 | Q72: 5 | R72: 5 | S72: 5 | T72: 6 | U72: 6 | V72: 6 | W72: 6 | X72: 6 | Y72: 6 | Z72: 7 | AA72: 7 | AB72: 7 | AC72: 7 | AD72: 7 | AE72: 7 | AF72: 7 | AG72: 7 | AH72: 8 | AI72: 7 | AJ72: 8 | AK72: 7 | AL72: 8 | AM72: 7 | AN72: 7 | AO72: 7 | AP72: 8 | AQ72: 7 | AR72: 7 | AS72: 7 | AT72: 7 | AU72: 6 | AV72: 7 | AW72: 6 | AX72: 7 | AY72: 27 | AZ72: 28 | BA72: 36 | BB72: 36 | BC72: 26 | BD72: 26 | BE72: 36 | BF72: 37 | BG72: 30 | BH72: 30 | BI72: 39 | BJ72: 40 | BK72: 23 | BL72: 24 | BM72: 31 | BN72: 32 | BO72: 28 | BP72: 29 | BQ72: 43 | BR72: 44 | BS72: 25 | BT72: 26 | BU72: 36 | BV72: 37 | BW72: 21 | BX72: 22 | BY72: 5 | BZ72: 0 | CA72: 28 | CB72: 32 | CC72: 180 | CD72: 8 | CF72: 5 | CG72: 36 | CH72: 135 | CI72: 181 | CJ72: 87 | CK72: 153 | CL72: 374 | CM72: 311 | CO72: =SUM(U72:AD72) -> 65 | CP72: =SUM(AE72:AX72) -> 142 | CQ72: =SUM(AY72:BN72) -> 501
B73: 05 | C73: 66 | D73: 5654 | E73: P.S. ANDAJES | F73: 1060 | H73: 520 | I73: 540 | K73: 2 | L73: 3 | M73: 3 | N73: 4 | O73: 4 | P73: 4 | Q73: 5 | R73: 5 | S73: 5 | T73: 6 | U73: 6 | V73: 6 | W73: 6 | X73: 6 | Y73: 6 | Z73: 7 | AA73: 7 | AB73: 7 | AC73: 7 | AD73: 7 | AE73: 7 | AF73: 7 | AG73: 7 | AH73: 8 | AI73: 7 | AJ73: 8 | AK73: 7 | AL73: 8 | AM73: 7 | AN73: 7 | AO73: 7 | AP73: 8 | AQ73: 7 | AR73: 7 | AS73: 7 | AT73: 7 | AU73: 6 | AV73: 7 | AW73: 6 | AX73: 7 | AY73: 27 | AZ73: 28 | BA73: 36 | BB73: 36 | BC73: 26 | BD73: 26 | BE73: 36 | BF73: 37 | BG73: 30 | BH73: 30 | BI73: 39 | BJ73: 40 | BK73: 23 | BL73: 24 | BM73: 31 | BN73: 32 | BO73: 28 | BP73: 29 | BQ73: 43 | BR73: 44 | BS73: 25 | BT73: 26 | BU73: 36 | BV73: 37 | BW73: 21 | BX73: 22 | BY73: 5 | BZ73: 0 | CA73: 28 | CB73: 32 | CC73: 180 | CD73: 8 | CF73: 5 | CG73: 36 | CH73: 135 | CI73: 181 | CJ73: 87 | CK73: 153 | CL73: 374 | CM73: 311 | CO73: 65 | CP73: 142 | CQ73: 501
A74: 150903 | C74: 67 | D74: 150903 | E74: DISTRITO CAUJUL | F74: 990 | H74: 487 | I74: 503 | K74: 8 | L74: 8 | M74: 9 | N74: 10 | O74: 10 | P74: 11 | Q74: 11 | R74: 11 | S74: 12 | T74: 12 | U74: 11 | V74: 12 | W74: 11 | X74: 12 | Y74: 11 | Z74: 12 | AA74: 11 | AB74: 11 | AC74: 10 | AD74: 11 | AE74: 10 | AF74: 10 | AG74: 9 | AH74: 9 | AI74: 8 | AJ74: 9 | AK74: 8 | AL74: 9 | AM74: 8 | AN74: 9 | AO74: 8 | AP74: 8 | AQ74: 8 | AR74: 8 | AS74: 8 | AT74: 8 | AU74: 7 | AV74: 8 | AW74: 8 | AX74: 8 | AY74: 35 | AZ74: 35 | BA74: 31 | BB74: 32 | BC74: 35 | BD74: 35 | BE74: 32 | BF74: 32 | BG74: 26 | BH74: 27 | BI74: 32 | BJ74: 32 | BK74: 21 | BL74: 22 | BM74: 18 | BN74: 18 | BO74: 17 | BP74: 17 | BQ74: 22 | BR74: 23 | BS74: 12 | BT74: 13 | BU74: 11 | BV74: 11 | BW74: 9 | BX74: 10 | BY74: 16 | BZ74: 1 | CA74: 42 | CB74: 29 | CC74: 184 | CD74: 18 | CF74: 16 | CG74: 86 | CH74: 252 | CI74: 249 | CJ74: 99 | CK74: 164 | CL74: 330 | CM74: 145 | CO74: 112 | CP74: 168 | CQ74: 463
B75: 05 | C75: 68 | D75: 5655 | E75: P.S. CAUJUL | F75: 990 | H75: 487 | I75: 503 | K75: 8 | L75: 8 | M75: 9 | N75: 10 | O75: 10 | P75: 11 | Q75: 11 | R75: 11 | S75: 12 | T75: 12 | U75: 11 | V75: 12 | W75: 11 | X75: 12 | Y75: 11 | Z75: 12 | AA75: 11 | AB75: 11 | AC75: 10 | AD75: 11 | AE75: 10 | AF75: 10 | AG75: 9 | AH75: 9 | AI75: 8 | AJ75: 9 | AK75: 8 | AL75: 9 | AM75: 8 | AN75: 9 | AO75: 8 | AP75: 8 | AQ75: 8 | AR75: 8 | AS75: 8 | AT75: 8 | AU75: 7 | AV75: 8 | AW75: 8 | AX75: 8 | AY75: 35 | AZ75: 35 | BA75: 31 | BB75: 32 | BC75: 35 | BD75: 35 | BE75: 32 | BF75: 32 | BG75: 26 | BH75: 27 | BI75: 32 | BJ75: 32 | BK75: 21 | BL75: 22 | BM75: 18 | BN75: 18 | BO75: 17 | BP75: 17 | BQ75: 22 | BR75: 23 | BS75: 12 | BT75: 13 | BU75: 11 | BV75: 11 | BW75: 9 | BX75: 10 | BY75: 16 | BZ75: 1 | CA75: 42 | CB75: 29 | CC75: 184 | CD75: 18 | CF75: 16 | CG75: 86 | CH75: 252 | CI75: 249 | CJ75: 99 | CK75: 164 | CL75: 330 | CM75: 145 | CO75: 112 | CP75: 168 | CQ75: 463
A76: 150904 | C76: 69 | D76: 150904 | E76: DISTRITO COCHAMARCA | F76: 1578 | H76: 782 | I76: 796 | K76: 15 | L76: 15 | M76: 16 | N76: 16 | O76: 17 | P76: 17 | Q76: 18 | R76: 18 | S76: 19 | T76: 19 | U76: 19 | V76: 20 | W76: 20 | X76: 20 | Y76: 20 | Z76: 21 | AA76: 21 | AB76: 21 | AC76: 21 | AD76: 22 | AE76: 21 | AF76: 21 | AG76: 21 | AH76: 21 | AI76: 21 | AJ76: 21 | AK76: 20 | AL76: 20 | AM76: 19 | AN76: 19 | AO76: 17 | AP76: 18 | AQ76: 16 | AR76: 16 | AS76: 15 | AT76: 15 | AU76: 14 | AV76: 14 | AW76: 13 | AX76: 14 | AY76: 53 | AZ76: 55 | BA76: 39 | BB76: 40 | BC76: 55 | BD76: 56 | BE76: 51 | BF76: 51 | BG76: 46 | BH76: 47 | BI76: 37 | BJ76: 37 | BK76: 26 | BL76: 27 | BM76: 28 | BN76: 29 | BO76: 22 | BP76: 23 | BQ76: 17 | BR76: 17 | BS76: 18 | BT76: 18 | BU76: 15 | BV76: 15 | BW76: 12 | BX76: 13 | BY76: 30 | BZ76: 2 | CA76: 97 | CB76: 63 | CC76: 269 | CD76: 38 | CF76: 30 | CG76: 140 | CH76: 459 | CI76: 506 | CJ76: 217 | CK76: 242 | CL76: 490 | CM76: 170 | CO76: 205 | CP76: 356 | CQ76: 677
B77: 03 | C77: 70 | D77: 5783 | E77: P.S. COCHAMARCA | F77: 568 | H77: 274 | I77: 294 | K77: 5 | L77: 6 | M77: 6 | N77: 6 | O77: 6 | P77: 6 | Q77: 6 | R77: 7 | S77: 7 | T77: 7 | U77: 7 | V77: 7 | W77: 7 | X77: 7 | Y77: 7 | Z77: 8 | AA77: 7 | AB77: 8 | AC77: 7 | AD77: 8 | AE77: 7 | AF77: 8 | AG77: 7 | AH77: 8 | AI77: 7 | AJ77: 8 | AK77: 7 | AL77: 7 | AM77: 7 | AN77: 7 | AO77: 6 | AP77: 7 | AQ77: 6 | AR77: 6 | AS77: 5 | AT77: 6 | AU77: 5 | AV77: 5 | AW77: 4 | AX77: 5 | AY77: 19 | AZ77: 20 | BA77: 14 | BB77: 14 | BC77: 20 | BD77: 20 | BE77: 18 | BF77: 19 | BG77: 16 | BH77: 17 | BI77: 13 | BJ77: 14 | BK77: 9 | BL77: 10 | BM77: 10 | BN77: 11 | BO77: 8 | BP77: 8 | BQ77: 6 | BR77: 6 | BS77: 6 | BT77: 7 | BU77: 5 | BV77: 6 | BW77: 4 | BX77: 5 | BY77: 11 | BZ77: 1 | CA77: 35 | CB77: 23 | CC77: 97 | CD77: 14 | CF77: 11 | CG77: 51 | CH77: 165 | CI77: 182 | CJ77: 79 | CK77: 86 | CL77: 177 | CM77: 61 | CO77: 73 | CP77: 128 | CQ77: 244
B78: 03 | C78: 71 | D78: 5784 | E78: P.S. COLCAPAMPA | F78: 742 | H78: 364 | I78: 378 | K78: 7 | L78: 7 | M78: 7 | N78: 8 | O78: 8 | P78: 8 | Q78: 8 | R78: 9 | S78: 9 | T78: 9 | U78: 9 | V78: 9 | W78: 9 | X78: 10 | Y78: 9 | Z78: 10 | AA78: 10 | AB78: 10 | AC78: 10 | AD78: 11 | AE78: 10 | AF78: 10 | AG78: 10 | AH78: 10 | AI78: 10 | AJ78: 10 | AK78: 9 | AL78: 10 | AM78: 9 | AN78: 9 | AO78: 8 | AP78: 8 | AQ78: 7 | AR78: 8 | AS78: 7 | AT78: 7 | AU78: 6 | AV78: 7 | AW78: 6 | AX78: 7 | AY78: 25 | AZ78: 26 | BA78: 18 | BB78: 19 | BC78: 26 | BD78: 26 | BE78: 24 | BF78: 24 | BG78: 22 | BH78: 22 | BI78: 17 | BJ78: 17 | BK78: 12 | BL78: 13 | BM78: 13 | BN78: 13 | BO78: 10 | BP78: 11 | BQ78: 8 | BR78: 8 | BS78: 8 | BT78: 9 | BU78: 7 | BV78: 7 | BW78: 6 | BX78: 6 | BY78: 14 | BZ78: 1 | CA78: 46 | CB78: 29 | CC78: 126 | CD78: 18 | CF78: 14 | CG78: 66 | CH78: 217 | CI78: 239 | CJ78: 102 | CK78: 114 | CL78: 229 | CM78: 80 | CO78: 97 | CP78: 168 | CQ78: 317
B79: 03 | C79: 72 | D79: 5785 | E79: P.S. YARUCAYA | F79: 268 | H79: 124 | I79: 144 | K79: 2 | L79: 3 | M79: 2 | N79: 3 | O79: 3 | P79: 3 | Q79: 3 | R79: 3 | S79: 3 | T79: 3 | U79: 3 | V79: 4 | W79: 3 | X79: 4 | Y79: 3 | Z79: 4 | AA79: 3 | AB79: 4 | AC79: 3 | AD79: 4 | AE79: 3 | AF79: 4 | AG79: 3 | AH79: 4 | AI79: 3 | AJ79: 4 | AK79: 3 | AL79: 4 | AM79: 3 | AN79: 3 | AO79: 3 | AP79: 3 | AQ79: 2 | AR79: 3 | AS79: 2 | AT79: 3 | AU79: 2 | AV79: 3 | AW79: 2 | AX79: 3 | AY79: 9 | AZ79: 9 | BA79: 7 | BB79: 7 | BC79: 9 | BD79: 10 | BE79: 8 | BF79: 9 | BG79: 8 | BH79: 8 | BI79: 6 | BJ79: 7 | BK79: 4 | BL79: 5 | BM79: 5 | BN79: 5 | BO79: 4 | BP79: 4 | BQ79: 3 | BR79: 3 | BS79: 3 | BT79: 3 | BU79: 2 | BV79: 3 | BW79: 2 | BX79: 2 | BY79: 5 | BZ79: 0 | CA79: 16 | CB79: 11 | CC79: 46 | CD79: 6 | CF79: 5 | CG79: 23 | CH79: 77 | CI79: 85 | CJ79: 36 | CK79: 42 | CL79: 84 | CM79: 29 | CO79: 35 | CP79: 60 | CQ79: 116
A80: 150905 | C80: 73 | D80: 150905 | E80: DISTRITO NAVAN | F80: 1149 | H80: 567 | I80: 582 | K80: 19 | L80: 19 | M80: 15 | N80: 16 | O80: 13 | P80: 14 | Q80: 11 | R80: 12 | S80: 10 | T80: 10 | U80: 9 | V80: 10 | W80: 9 | X80: 9 | Y80: 9 | Z80: 9 | AA80: 9 | AB80: 9 | AC80: 9 | AD80: 9 | AE80: 10 | AF80: 10 | AG80: 10 | AH80: 11 | AI80: 11 | AJ80: 11 | AK80: 10 | AL80: 11 | AM80: 9 | AN80: 9 | AO80: 8 | AP80: 8 | AQ80: 6 | AR80: 7 | AS80: 6 | AT80: 6 | AU80: 6 | AV80: 7 | AW80: 7 | AX80: 8 | AY80: 46 | AZ80: 47 | BA80: 43 | BB80: 44 | BC80: 39 | BD80: 40 | BE80: 38 | BF80: 39 | BG80: 38 | BH80: 38 | BI80: 33 | BJ80: 34 | BK80: 25 | BL80: 26 | BM80: 19 | BN80: 19 | BO80: 27 | BP80: 27 | BQ80: 12 | BR80: 12 | BS80: 28 | BT80: 28 | BU80: 13 | BV80: 13 | BW80: 10 | BX80: 10 | BY80: 38 | BZ80: 3 | CA80: 49 | CB80: 29 | CC80: 215 | CD80: 48 | CF80: 38 | CG80: 101 | CH80: 271 | CI80: 234 | CJ80: 102 | CK80: 208 | CL80: 388 | CM80: 180 | CO80: 91 | CP80: 171 | CQ80: 568
B81: 05 | C81: 74 | D81: 5656 | E81: P.S. NAVAN | F81: 1149 | H81: 567 | I81: 582 | K81: 19 | L81: 19 | M81: 15 | N81: 16 | O81: 13 | P81: 14 | Q81: 11 | R81: 12 | S81: 10 | T81: 10 | U81: 9 | V81: 10 | W81: 9 | X81: 9 | Y81: 9 | Z81: 9 | AA81: 9 | AB81: 9 | AC81: 9 | AD81: 9 | AE81: 10 | AF81: 10 | AG81: 10 | AH81: 11 | AI81: 11 | AJ81: 11 | AK81: 10 | AL81: 11 | AM81: 9 | AN81: 9 | AO81: 8 | AP81: 8 | AQ81: 6 | AR81: 7 | AS81: 6 | AT81: 6 | AU81: 6 | AV81: 7 | AW81: 7 | AX81: 8 | AY81: 46 | AZ81: 47 | BA81: 43 | BB81: 44 | BC81: 39 | BD81: 40 | BE81: 38 | BF81: 39 | BG81: 38 | BH81: 38 | BI81: 33 | BJ81: 34 | BK81: 25 | BL81: 26 | BM81: 19 | BN81: 19 | BO81: 27 | BP81: 27 | BQ81: 12 | BR81: 12 | BS81: 28 | BT81: 28 | BU81: 13 | BV81: 13 | BW81: 10 | BX81: 10 | BY81: 38 | BZ81: 3 | CA81: 49 | CB81: 29 | CC81: 215 | CD81: 48 | CF81: 38 | CG81: 101 | CH81: 271 | CI81: 234 | CJ81: 102 | CK81: 208 | CL81: 388 | CM81: 180 | CO81: 91 | CP81: 171 | CQ81: 568
A82: 150906 | C82: 75 | D82: 150906 | E82: DISTRITO PACHANGARA | F82: 3445 | H82: 1708 | I82: 1737 | K82: 39 | L82: 40 | M82: 35 | N82: 36 | O82: 33 | P82: 33 | Q82: 31 | R82: 32 | S82: 30 | T82: 31 | U82: 30 | V82: 31 | W82: 31 | X82: 31 | Y82: 32 | Z82: 32 | AA82: 33 | AB82: 33 | AC82: 35 | AD82: 35 | AE82: 36 | AF82: 36 | AG82: 38 | AH82: 38 | AI82: 38 | AJ82: 39 | AK82: 38 | AL82: 38 | AM82: 36 | AN82: 36 | AO82: 34 | AP82: 35 | AQ82: 32 | AR82: 33 | AS82: 31 | AT82: 31 | AU82: 29 | AV82: 29 | AW82: 26 | AX82: 27 | AY82: 111 | AZ82: 113 | BA82: 120 | BB82: 122 | BC82: 110 | BD82: 113 | BE82: 110 | BF82: 112 | BG82: 94 | BH82: 95 | BI82: 93 | BJ82: 94 | BK82: 77 | BL82: 79 | BM82: 81 | BN82: 82 | BO82: 65 | BP82: 66 | BQ82: 61 | BR82: 62 | BS82: 59 | BT82: 61 | BU82: 35 | BV82: 36 | BW82: 25 | BX82: 26 | BY82: 80 | BZ82: 6 | CA82: 180 | CB82: 140 | CC82: 607 | CD82: 97 | CF82: 79 | CG82: 261 | CH82: 811 | CI82: 892 | CJ82: 421 | CK82: 577 | CL82: 1140 | CM82: 496 | CO82: 323 | CP82: 680 | CQ82: 1606
B83: 05 | C83: 76 | D83: 5657 | E83: C.S. CHURIN | F83: 2722 | H83: 1349 | I83: 1373 | K83: 31 | L83: 31 | M83: 28 | N83: 28 | O83: 26 | P83: 26 | Q83: 25 | R83: 25 | S83: 24 | T83: 24 | U83: 24 | V83: 24 | W83: 24 | X83: 25 | Y83: 25 | Z83: 26 | AA83: 26 | AB83: 26 | AC83: 27 | AD83: 28 | AE83: 28 | AF83: 29 | AG83: 30 | AH83: 30 | AI83: 30 | AJ83: 31 | AK83: 30 | AL83: 30 | AM83: 28 | AN83: 29 | AO83: 27 | AP83: 28 | AQ83: 25 | AR83: 26 | AS83: 24 | AT83: 25 | AU83: 23 | AV83: 23 | AW83: 21 | AX83: 21 | AY83: 88 | AZ83: 89 | BA83: 95 | BB83: 96 | BC83: 87 | BD83: 89 | BE83: 87 | BF83: 89 | BG83: 74 | BH83: 75 | BI83: 73 | BJ83: 75 | BK83: 61 | BL83: 62 | BM83: 64 | BN83: 65 | BO83: 51 | BP83: 53 | BQ83: 48 | BR83: 49 | BS83: 47 | BT83: 48 | BU83: 28 | BV83: 28 | BW83: 20 | BX83: 20 | BY83: 63 | BZ83: 4 | CA83: 142 | CB83: 111 | CC83: 479 | CD83: 78 | CF83: 62 | CG83: 206 | CH83: 640 | CI83: 705 | CJ83: 333 | CK83: 456 | CL83: 901 | CM83: 392 | CO83: 255 | CP83: 538 | CQ83: 1269
B84: 05 | C84: 77 | D84: 5658 | E84: P.S. PACHANGARA | F84: 344 | H84: 165 | I84: 179 | K84: 4 | L84: 4 | M84: 3 | N84: 4 | O84: 3 | P84: 4 | Q84: 3 | R84: 3 | S84: 3 | T84: 3 | U84: 3 | V84: 3 | W84: 3 | X84: 3 | Y84: 3 | Z84: 4 | AA84: 3 | AB84: 4 | AC84: 3 | AD84: 4 | AE84: 3 | AF84: 4 | AG84: 4 | AH84: 4 | AI84: 4 | AJ84: 4 | AK84: 4 | AL84: 4 | AM84: 3 | AN84: 4 | AO84: 3 | AP84: 3 | AQ84: 3 | AR84: 4 | AS84: 3 | AT84: 3 | AU84: 3 | AV84: 3 | AW84: 2 | AX84: 3 | AY84: 11 | AZ84: 11 | BA84: 12 | BB84: 12 | BC84: 11 | BD84: 11 | BE84: 11 | BF84: 11 | BG84: 9 | BH84: 10 | BI84: 9 | BJ84: 10 | BK84: 8 | BL84: 8 | BM84: 8 | BN84: 8 | BO84: 6 | BP84: 7 | BQ84: 6 | BR84: 6 | BS84: 6 | BT84: 6 | BU84: 3 | BV84: 4 | BW84: 2 | BX84: 3 | BY84: 8 | BZ84: 1 | CA84: 18 | CB84: 14 | CC84: 61 | CD84: 9 | CF84: 8 | CG84: 26 | CH84: 82 | CI84: 90 | CJ84: 42 | CK84: 57 | CL84: 114 | CM84: 49 | CO84: 33 | CP84: 68 | CQ84: 160
B85: 05 | C85: 78 | D85: 5649 | E85: P.S. HUANCAHUASI | F85: 379 | H85: 182 | I85: 197 | K85: 4 | L85: 5 | M85: 4 | N85: 4 | O85: 3 | P85: 4 | Q85: 3 | R85: 4 | S85: 3 | T85: 4 | U85: 3 | V85: 4 | W85: 3 | X85: 4 | Y85: 3 | Z85: 3 | AA85: 3 | AB85: 4 | AC85: 4 | AD85: 4 | AE85: 4 | AF85: 4 | AG85: 4 | AH85: 4 | AI85: 4 | AJ85: 4 | AK85: 4 | AL85: 4 | AM85: 4 | AN85: 4 | AO85: 4 | AP85: 4 | AQ85: 3 | AR85: 4 | AS85: 3 | AT85: 4 | AU85: 3 | AV85: 3 | AW85: 3 | AX85: 3 | AY85: 12 | AZ85: 13 | BA85: 13 | BB85: 14 | BC85: 12 | BD85: 13 | BE85: 12 | BF85: 12 | BG85: 10 | BH85: 11 | BI85: 10 | BJ85: 10 | BK85: 8 | BL85: 9 | BM85: 9 | BN85: 9 | BO85: 7 | BP85: 7 | BQ85: 7 | BR85: 7 | BS85: 6 | BT85: 7 | BU85: 4 | BV85: 4 | BW85: 3 | BX85: 3 | BY85: 9 | BZ85: 1 | CA85: 20 | CB85: 15 | CC85: 67 | CD85: 10 | CF85: 9 | CG85: 29 | CH85: 89 | CI85: 97 | CJ85: 46 | CK85: 64 | CL85: 125 | CM85: 55 | CO85: 35 | CP85: 74 | CQ85: 177
C86: 79 | E86: PROVINCIA HUARAL | F86: 1205 | H86: 595 | I86: 610 | K86: 9 | L86: 10 | M86: 11 | N86: 12 | O86: 12 | P86: 13 | Q86: 13 | R86: 14 | S86: 14 | T86: 14 | U86: 14 | V86: 15 | W86: 14 | X86: 14 | Y86: 14 | Z86: 14 | AA86: 13 | AB86: 13 | AC86: 12 | AD86: 13 | AE86: 11 | AF86: 12 | AG86: 10 | AH86: 11 | AI86: 10 | AJ86: 10 | AK86: 9 | AL86: 10 | AM86: 9 | AN86: 10 | AO86: 9 | AP86: 10 | AQ86: 9 | AR86: 9 | AS86: 9 | AT86: 9 | AU86: 9 | AV86: 9 | AW86: 9 | AX86: 9 | AY86: 46 | AZ86: 47 | BA86: 44 | BB86: 44 | BC86: 38 | BD86: 39 | BE86: 34 | BF86: 34 | BG86: 34 | BH86: 35 | BI86: 38 | BJ86: 38 | BK86: 28 | BL86: 28 | BM86: 22 | BN86: 22 | BO86: 18 | BP86: 18 | BQ86: 27 | BR86: 27 | BS86: 19 | BT86: 19 | BU86: 13 | BV86: 13 | BW86: 14 | BX86: 15 | BY86: 19 | BZ86: 1 | CA86: 46 | CB86: 37 | CC86: 233 | CD86: 22 | CF86: 19 | CG86: 103 | CH86: 302 | CI86: 293 | CJ86: 113 | CK86: 217 | CL86: 390 | CM86: 183 | CO86: 136 | CP86: 193 | CQ86: 571
C87: 80 | D87: 150600 | E87: IHUARI - ACOTAMA | F87: 1205 | H87: 595 | I87: 610 | K87: 9 | L87: 10 | M87: 11 | N87: 12 | O87: 12 | P87: 13 | Q87: 13 | R87: 14 | S87: 14 | T87: 14 | U87: 14 | V87: 15 | W87: 14 | X87: 14 | Y87: 14 | Z87: 14 | AA87: 13 | AB87: 13 | AC87: 12 | AD87: 13 | AE87: 11 | AF87: 12 | AG87: 10 | AH87: 11 | AI87: 10 | AJ87: 10 | AK87: 9 | AL87: 10 | AM87: 9 | AN87: 10 | AO87: 9 | AP87: 10 | AQ87: 9 | AR87: 9 | AS87: 9 | AT87: 9 | AU87: 9 | AV87: 9 | AW87: 9 | AX87: 9 | AY87: 46 | AZ87: 47 | BA87: 44 | BB87: 44 | BC87: 38 | BD87: 39 | BE87: 34 | BF87: 34 | BG87: 34 | BH87: 35 | BI87: 38 | BJ87: 38 | BK87: 28 | BL87: 28 | BM87: 22 | BN87: 22 | BO87: 18 | BP87: 18 | BQ87: 27 | BR87: 27 | BS87: 19 | BT87: 19 | BU87: 13 | BV87: 13 | BW87: 14 | BX87: 15 | BY87: 19 | BZ87: 1 | CA87: 46 | CB87: 37 | CC87: 233 | CD87: 22 | CF87: 19 | CG87: 103 | CH87: 302 | CI87: 293 | CJ87: 113 | CK87: 217 | CL87: 390 | CM87: 183 | CO87: 136 | CP87: 193 | CQ87: 571
A88: 150606 | B88: 03 | C88: 81
C89: 82 | E89: MICRORED HUAURA | F89: =SUM(H89:I89) -> 36593 | H89: =K89+M89+O89+Q89+S89+U89+W89+Y89+AA89+AC89+AE89+AG89+AI89+AK89+AM89+AO89+AQ89+AS89+AU89+AW89+AY89+BA89+BC89+BE89+BG89+BI89+BK89+BM89+BO89+BQ89+BS89+BU89+BW89 -> 18122 | I89: =L89+N89+P89+R89+T89+V89+X89+Z89+AB89+AD89+AF89+AH89+AJ89+AL89+AN89+AP89+AR89+AT89+AV89+AX89+AZ89+BB89+BD89+BF89+BH89+BJ89+BL89+BN89+BP89+BR89+BT89+BV89+BX89 -> 18471 | K89: =K13+K24 -> 337 | L89: 345 | M89: 327 | N89: 334 | O89: 322 | P89: 327 | Q89: 320 | R89: 326 | S89: 322 | T89: 329 | U89: 328 | V89: 333 | W89: 335 | X89: 341 | Y89: 344 | Z89: 350 | AA89: 355 | AB89: 361 | AC89: 366 | AD89: 372 | AE89: 378 | AF89: 384 | AG89: 389 | AH89: 396 | AI89: 398 | AJ89: 406 | AK89: 407 | AL89: 414 | AM89: 412 | AN89: 421 | AO89: 417 | AP89: 426 | AQ89: 423 | AR89: 431 | AS89: 420 | AT89: 428 | AU89: 403 | AV89: 412 | AW89: 379 | AX89: 387 | AY89: 1595 | AZ89: 1626 | BA89: 1448 | BB89: 1476 | BC89: 1372 | BD89: 1399 | BE89: 1167 | BF89: 1190 | BG89: 1080 | BH89: 1100 | BI89: 984 | BJ89: 1002 | BK89: 760 | BL89: 775 | BM89: 620 | BN89: 633 | BO89: 494 | BP89: 503 | BQ89: 414 | BR89: 422 | BS89: 372 | BT89: 378 | BU89: 225 | BV89: 230 | BW89: =BW13+BW24 -> 209 | BX89: 214 | BY89: =BY14+BY25 -> 315 | BZ89: 24 | CA89: 878 | CB89: 906 | CC89: 3587 | CD89: =CD14+CD25 -> 393 | CF89: =CF13+CF24 -> 682 | CG89: =CG13+CG24 -> 2607 | CH89: =CH13+CH24 -> 8321 | CI89: 10035 | CJ89: 5003 | CK89: 7726 | CL89: 12082 | CM89: 3461 | CO89: =CO14+CO25 -> 1625 | CP89: 3744 | CQ89: 8391
B90: 1 | C90: 83 | E90: MICRORED HUALMAY | F90: =SUM(H90:I90) -> 78348 | H90: 38786 | I90: 39562 | K90: =K12+K16+K20+K44 -> 710 | L90: 725 | M90: 677 | N90: 690 | O90: 655 | P90: 668 | Q90: 643 | R90: 657 | S90: 640 | T90: 655 | U90: 646 | V90: 660 | W90: 657 | X90: 671 | Y90: 674 | Z90: 688 | AA90: 693 | AB90: 707 | AC90: 713 | AD90: 728 | AE90: 735 | AF90: 751 | AG90: 758 | AH90: 776 | AI90: 776 | AJ90: 792 | AK90: 781 | AL90: 797 | AM90: 778 | AN90: 794 | AO90: 773 | AP90: 789 | AQ90: 769 | AR90: 786 | AS90: 758 | AT90: 775 | AU90: 739 | AV90: 755 | AW90: 713 | AX90: 729 | AY90: 3245 | AZ90: 3308 | BA90: 3064 | BB90: 3124 | BC90: 2989 | BD90: 3047 | BE90: 2673 | BF90: 2723 | BG90: 2469 | BH90: 2518 | BI90: 2126 | BJ90: 2166 | BK90: 1777 | BL90: 1810 | BM90: 1618 | BN90: 1650 | BO90: 1302 | BP90: 1328 | BQ90: 1064 | BR90: 1084 | BS90: 882 | BT90: 897 | BU90: 626 | BV90: 639 | BW90: =BW12+BW16+BW20+BW44 -> 663 | BX90: 675 | BY90: =BY13+BY17+BY21+BY45 -> 609 | BZ90: 47 | CA90: 1619 | CB90: 1587 | CC90: 7255 | CD90: 743 | CF90: 1435 | CG90: 5285 | CH90: 16577 | CI90: 19225 | CJ90: 9368 | CK90: 15677 | CL90: 27566 | CM90: 9160 | CO90: =CO13+CO17+CO21+CO45 -> 3025 | CP90: 6424 | CQ90: 16881
B91: 2 | C91: 84 | E91: MICRORED SAYAN | F91: =SUM(H91:I91) -> 28203 | H91: 13963 | I91: 14240 | K91: =K50+K30+K76+K87 -> 265 | L91: 271 | M91: 270 | N91: 275 | O91: 273 | P91: 279 | Q91: 276 | R91: 283 | S91: 280 | T91: 286 | U91: 282 | V91: 289 | W91: 285 | X91: 289 | Y91: 286 | Z91: 293 | AA91: 288 | AB91: 293 | AC91: 289 | AD91: 295 | AE91: 289 | AF91: 294 | AG91: 289 | AH91: 294 | AI91: 289 | AJ91: 294 | AK91: 288 | AL91: 294 | AM91: 288 | AN91: 294 | AO91: 287 | AP91: 294 | AQ91: 287 | AR91: 292 | AS91: 284 | AT91: 289 | AU91: 277 | AV91: 282 | AW91: 268 | AX91: 273 | AY91: 1226 | AZ91: 1250 | BA91: 1156 | BB91: 1178 | BC91: 1083 | BD91: 1106 | BE91: 922 | BF91: 939 | BG91: 795 | BH91: 811 | BI91: 770 | BJ91: 784 | BK91: 560 | BL91: 572 | BM91: 478 | BN91: 487 | BO91: 395 | BP91: 403 | BQ91: 320 | BR91: 325 | BS91: 277 | BT91: 283 | BU91: 183 | BV91: 186 | BW91: =BW50+BW30+BW76+BW87 -> 158 | BX91: 163 | BY91: =BY31+BY51+BY78+BY66+BY87 -> 566 | BZ91: 42 | CA91: 1380 | CB91: 1218 | CC91: 4870 | CD91: 707 | CF91: 536 | CG91: 2222 | CH91: 6813 | CI91: 7535 | CJ91: 3480 | CK91: 5910 | CL91: 9307 | CM91: 2693 | CO91: =CO31+CO51+CO78+CO66+CO87 -> 2805 | CP91: 5280 | CQ91: 12750
B92: 3 | C92: 85 | E92: MICRORED VEGUETA | F92: =SUM(H92:I92) -> 20357 | H92: 10080 | I92: 10277 | K92: =K58 -> 225 | L92: 229 | M92: 206 | N92: 211 | O92: 193 | P92: 197 | Q92: 184 | R92: 187 | S92: 178 | T92: 181 | U92: 176 | V92: 179 | W92: 176 | X92: 180 | Y92: 179 | Z92: 182 | AA92: 184 | AB92: 187 | AC92: 189 | AD92: 193 | AE92: 196 | AF92: 200 | AG92: 204 | AH92: 207 | AI92: 210 | AJ92: 214 | AK92: 214 | AL92: 218 | AM92: 215 | AN92: 220 | AO92: 217 | AP92: 222 | AQ92: 220 | AR92: 224 | AS92: 219 | AT92: 223 | AU92: 213 | AV92: 218 | AW92: 204 | AX92: 209 | AY92: 906 | AZ92: 923 | BA92: 801 | BB92: 816 | BC92: 729 | BD92: 744 | BE92: 623 | BF92: 635 | BG92: 588 | BH92: 600 | BI92: 555 | BJ92: 566 | BK92: 425 | BL92: 434 | BM92: 374 | BN92: 381 | BO92: 306 | BP92: 311 | BQ92: 246 | BR92: 251 | BS92: 216 | BT92: 220 | BU92: 156 | BV92: 159 | BW92: =BW58 -> 153 | BX92: 156 | BY92: =BY59 -> 137 | BZ92: 11 | CA92: 298 | CB92: 321 | CC92: 1257 | CD92: 173 | CF92: 454 | CG92: 1537 | CH92: 4623 | CI92: 5248 | CJ92: 2616 | CK92: 4290 | CL92: 6654 | CM92: 2174 | CO92: =CO59 -> 548 | CP92: 1279 | CQ92: 3028
B93: 4 | C93: 86 | E93: MICRORED CHURIN - OYON | F93: =SUM(H93:I93) -> 25811 | H93: 12766 | I93: 13045 | K93: =K82+K66+K72+K74+K80+K18+K35+K40 -> 277 | L93: 284 | M93: 262 | N93: 271 | O93: 255 | P93: 262 | Q93: 251 | R93: 258 | S93: 251 | T93: 257 | U93: 252 | V93: 259 | W93: 257 | X93: 262 | Y93: 261 | Z93: 269 | AA93: 268 | AB93: 274 | AC93: 274 | AD93: 280 | AE93: 281 | AF93: 285 | AG93: 288 | AH93: 295 | AI93: 287 | AJ93: 295 | AK93: 276 | AL93: 284 | AM93: 258 | AN93: 263 | AO93: 241 | AP93: 246 | AQ93: 222 | AR93: 226 | AS93: 206 | AT93: 212 | AU93: 194 | AV93: 202 | AW93: 187 | AX93: 195 | AY93: 870 | AZ93: 887 | BA93: 968 | BB93: 985 | BC93: 930 | BD93: 949 | BE93: 910 | BF93: 930 | BG93: 740 | BH93: 751 | BI93: 698 | BJ93: 710 | BK93: 556 | BL93: 569 | BM93: 466 | BN93: 474 | BO93: 406 | BP93: 411 | BQ93: 386 | BR93: 393 | BS93: 347 | BT93: 355 | BU93: 253 | BV93: 257 | BW93: =BW82+BW66+BW72+BW74+BW80+BW18+BW35+BW40 -> 188 | BX93: 195 | BY93: =BY19+BY36+BY41+BY68+BY74+BY76+BY82+BY84 -> 207 | BZ93: 15 | CA93: 539 | CB93: 378 | CC93: 1812 | CD93: 251 | CF93: 561 | CG93: 2067 | CH93: 6433 | CI93: 6821 | CJ93: 3016 | CK93: 4488 | CL93: 8683 | CM93: 3191 | CO93: =CO19+CO36+CO41+CO68+CO74+CO76+CO82+CO84 -> 1055 | CP93: 2005 | CQ93: 4798

Sheet etapas y mredes
C2: POBLACION ASIGNADA POR DISTRITO SIERRA, HOSPITAL, MICROREDES Y POR ETAPAS DE VIDA 2011
C7: DISTRITO | P7: MICROREDES
C8: 66 | D8: 68 | E8: 11 | F8: 74 | G8: 60 | H8: 28 | I8: 76 | J8: 33 | N8: 4 | P8: 82 | Q8: 83 | R8: 84 | S8: 85 | T8: 86
B9: POBLACION POR ETAPAS DE VIDA | C9: Andajes | D9: Caujul | E9: Checras | F9: Naván | G9: Oyón | H9: Paccho | I9: Pachangara | J9: Santa Leonor | K9: TOTAL | L9: PORC. (%) | N9: HOSPITAL HUACHO | P9: HUAURA | Q9: HUALMAY | R9: SAYAN | S9: VEGUETA | T9: CHURIN OYON | U9: Total Microredes
A10: 76 | B10: Neonatal (0-28dias) | C10: =VLOOKUP(C8,Poblacion!$C$8:$CQ$93,A10) -> 0 | D10: =VLOOKUP($D$8,Poblacion!$C$8:$CQ$93,A10) -> 1 | E10: =VLOOKUP($E$8,Poblacion!$C$8:$CQ$93,A10) -> 2 | F10: =VLOOKUP($F$8,Poblacion!$C$8:$CQ$93,A10) -> 3 | G10: =VLOOKUP($G$8,Poblacion!$C$8:$CQ$93,A10) -> 22 | H10: =VLOOKUP($H$8,Poblacion!$C$8:$CQ$93,A10) -> 3 | I10: =VLOOKUP($I$8,Poblacion!$C$8:$CQ$93,A10) -> 4 | J10: =VLOOKUP($J$8,Poblacion!$C$8:$CQ$93,A10) -> 2 | K10: =SUM(C10:J10) -> 37 | L10: =IFERROR((K10/$K$20)*100,0) -> 0.162708883 | N10: =VLOOKUP(N$8,Poblacion!$C$8:$CQ$93,A10) -> 58 | P10: =VLOOKUP(P$8,Poblacion!$C$8:$CQ$93,A10) -> 24 | Q10: =VLOOKUP(Q$8,Poblacion!$C$8:$CQ$93,A10) -> 47 | R10: =VLOOKUP(R$8,Poblacion!$C$8:$CQ$93,A10) -> 42 | S10: =VLOOKUP(S$8,Poblacion!$C$8:$CQ$93,A10) -> 11 | T10: =VLOOKUP(T$8,Poblacion!$C$8:$CQ$93,A10) -> 15 | U10: =SUM(P10:T10) -> 139
A11: 82 | B11: Infantil (Men.1año) | C11: =VLOOKUP($C$8,Poblacion!$C$8:$CQ$93,A11) -> 5 | D11: =VLOOKUP($D$8,Poblacion!$C$8:$CQ$93,A11) -> 16 | E11: =VLOOKUP($E$8,Poblacion!$C$8:$CQ$93,A11) -> 29 | F11: =VLOOKUP($F$8,Poblacion!$C$8:$CQ$93,A11) -> 38 | G11: =VLOOKUP($G$8,Poblacion!$C$8:$CQ$93,A11) -> 280 | H11: =VLOOKUP($H$8,Poblacion!$C$8:$CQ$93,A11) -> 33 | I11: =VLOOKUP($I$8,Poblacion!$C$8:$CQ$93,A11) -> 62 | J11: =VLOOKUP($J$8,Poblacion!$C$8:$CQ$93,A11) -> 24 | K11: =SUM(C11:J11) -> 487 | L11: =IFERROR((K11/$K$20)*100,0) -> 2.141600704 | N11: =VLOOKUP(N$8,Poblacion!$C$8:$CQ$93,A11) -> 766 | P11: =VLOOKUP(P$8,Poblacion!$C$8:$CQ$93,A11) -> 682 | Q11: =VLOOKUP(Q$8,Poblacion!$C$8:$CQ$93,A11) -> 1435 | R11: =VLOOKUP(R$8,Poblacion!$C$8:$CQ$93,A11) -> 536 | S11: =VLOOKUP(S$8,Poblacion!$C$8:$CQ$93,A11) -> 454 | T11: =VLOOKUP(T$8,Poblacion!$C$8:$CQ$93,A11) -> 561 | U11: =SUM(P11:T11) -> 3668
A12: 83 | B12: Pre-escolar (01-04años) | C12: =VLOOKUP($C$8,Poblacion!$C$8:$CQ$93,A12) -> 36 | D12: =VLOOKUP($D$8,Poblacion!$C$8:$CQ$93,A12) -> 86 | E12: =VLOOKUP($E$8,Poblacion!$C$8:$CQ$93,A12) -> 99 | F12: =VLOOKUP($F$8,Poblacion!$C$8:$CQ$93,A12) -> 101 | G12: =VLOOKUP($G$8,Poblacion!$C$8:$CQ$93,A12) -> 1041 | H12: =VLOOKUP($H$8,Poblacion!$C$8:$CQ$93,A12) -> 137 | I12: =VLOOKUP($I$8,Poblacion!$C$8:$CQ$93,A12) -> 206 | J12: =VLOOKUP($J$8,Poblacion!$C$8:$CQ$93,A12) -> 92 | K12: 1798 | L12: 7.906772208 | N12: =VLOOKUP(N$8,Poblacion!$C$8:$CQ$93,A12) -> 2765 | P12: =VLOOKUP(P$8,Poblacion!$C$8:$CQ$93,A12) -> 2607 | Q12: =VLOOKUP(Q$8,Poblacion!$C$8:$CQ$93,A12) -> 5285 | R12: =VLOOKUP(R$8,Poblacion!$C$8:$CQ$93,A12) -> 2222 | S12: =VLOOKUP(S$8,Poblacion!$C$8:$CQ$93,A12) -> 1537 | T12: =VLOOKUP(T$8,Poblacion!$C$8:$CQ$93,A12) -> 2067 | U12: 13718
A13: 84 | B13: Niño (0-11años) | C13: =VLOOKUP($C$8,Poblacion!$C$8:$CQ$93,A13) -> 135 | D13: =VLOOKUP($D$8,Poblacion!$C$8:$CQ$93,A13) -> 252 | E13: =VLOOKUP($E$8,Poblacion!$C$8:$CQ$93,A13) -> 330 | F13: =VLOOKUP($F$8,Poblacion!$C$8:$CQ$93,A13) -> 271 | G13: =VLOOKUP($G$8,Poblacion!$C$8:$CQ$93,A13) -> 3186 | H13: =VLOOKUP($H$8,Poblacion!$C$8:$CQ$93,A13) -> 450 | I13: =VLOOKUP($I$8,Poblacion!$C$8:$CQ$93,A13) -> 640 | J13: =VLOOKUP($J$8,Poblacion!$C$8:$CQ$93,A13) -> 345 | K13: 5609 | L13: 24.66578716 | N13: =VLOOKUP(N$8,Poblacion!$C$8:$CQ$93,A13) -> 8685 | P13: =VLOOKUP(P$8,Poblacion!$C$8:$CQ$93,A13) -> 8321 | Q13: =VLOOKUP(Q$8,Poblacion!$C$8:$CQ$93,A13) -> 16577 | R13: =VLOOKUP(R$8,Poblacion!$C$8:$CQ$93,A13) -> 6813 | S13: =VLOOKUP(S$8,Poblacion!$C$8:$CQ$93,A13) -> 4623 | T13: =VLOOKUP(T$8,Poblacion!$C$8:$CQ$93,A13) -> 6433 | U13: 42767
A14: 85 | B14: Escolar (05-17años) | C14: =VLOOKUP($C$8,Poblacion!$C$8:$CQ$93,A14) -> 181 | D14: =VLOOKUP($D$8,Poblacion!$C$8:$CQ$93,A14) -> 249 | E14: =VLOOKUP($E$8,Poblacion!$C$8:$CQ$93,A14) -> 372 | F14: =VLOOKUP($F$8,Poblacion!$C$8:$CQ$93,A14) -> 234 | G14: =VLOOKUP($G$8,Poblacion!$C$8:$CQ$93,A14) -> 3312 | H14: =VLOOKUP($H$8,Poblacion!$C$8:$CQ$93,A14) -> 481 | I14: =VLOOKUP($I$8,Poblacion!$C$8:$CQ$93,A14) -> 705 | J14: =VLOOKUP($J$8,Poblacion!$C$8:$CQ$93,A14) -> 420 | K14: 5954 | L14: 26.18293755 | N14: =VLOOKUP(N$8,Poblacion!$C$8:$CQ$93,A14) -> 10242 | P14: =VLOOKUP(P$8,Poblacion!$C$8:$CQ$93,A14) -> 10035 | Q14: =VLOOKUP(Q$8,Poblacion!$C$8:$CQ$93,A14) -> 19225 | R14: =VLOOKUP(R$8,Poblacion!$C$8:$CQ$93,A14) -> 7535 | S14: =VLOOKUP(S$8,Poblacion!$C$8:$CQ$93,A14) -> 5248 | T14: =VLOOKUP(T$8,Poblacion!$C$8:$CQ$93,A14) -> 6821 | U14: 48864
A15: 86 | B15: Adolescente (12-17años) | C15: =VLOOKUP($C$8,Poblacion!$C$8:$CQ$93,A15) -> 87 | D15: =VLOOKUP($D$8,Poblacion!$C$8:$CQ$93,A15) -> 99 | E15: =VLOOKUP($E$8,Poblacion!$C$8:$CQ$93,A15) -> 170 | F15: =VLOOKUP($F$8,Poblacion!$C$8:$CQ$93,A15) -> 102 | G15: =VLOOKUP($G$8,Poblacion!$C$8:$CQ$93,A15) -> 1447 | H15: =VLOOKUP($H$8,Poblacion!$C$8:$CQ$93,A15) -> 201 | I15: =VLOOKUP($I$8,Poblacion!$C$8:$CQ$93,A15) -> 333 | J15: =VLOOKUP($J$8,Poblacion!$C$8:$CQ$93,A15) -> 191 | K15: 2630 | L15: 11.56552331 | N15: =VLOOKUP(N$8,Poblacion!$C$8:$CQ$93,A15) -> 5088 | P15: =VLOOKUP(P$8,Poblacion!$C$8:$CQ$93,A15) -> 5003 | Q15: =VLOOKUP(Q$8,Poblacion!$C$8:$CQ$93,A15) -> 9368 | R15: =VLOOKUP(R$8,Poblacion!$C$8:$CQ$93,A15) -> 3480 | S15: =VLOOKUP(S$8,Poblacion!$C$8:$CQ$93,A15) -> 2616 | T15: =VLOOKUP(T$8,Poblacion!$C$8:$CQ$93,A15) -> 3016 | U15: 23483
A16: 87 | B16: Adulto Joven (18-29años) | C16: =VLOOKUP($C$8,Poblacion!$C$8:$CQ$93,A16) -> 153 | D16: =VLOOKUP($D$8,Poblacion!$C$8:$CQ$93,A16) -> 164 | E16: =VLOOKUP($E$8,Poblacion!$C$8:$CQ$93,A16) -> 188 | F16: =VLOOKUP($F$8,Poblacion!$C$8:$CQ$93,A16) -> 208 | G16: =VLOOKUP($G$8,Poblacion!$C$8:$CQ$93,A16) -> 2237 | H16: =VLOOKUP($H$8,Poblacion!$C$8:$CQ$93,A16) -> 296 | I16: =VLOOKUP($I$8,Poblacion!$C$8:$CQ$93,A16) -> 456 | J16: =VLOOKUP($J$8,Poblacion!$C$8:$CQ$93,A16) -> 207 | K16: 3909 | L16: 17.18997361 | N16: =VLOOKUP(N$8,Poblacion!$C$8:$CQ$93,A16) -> 8832 | P16: =VLOOKUP(P$8,Poblacion!$C$8:$CQ$93,A16) -> 7726 | Q16: =VLOOKUP(Q$8,Poblacion!$C$8:$CQ$93,A16) -> 15677 | R16: =VLOOKUP(R$8,Poblacion!$C$8:$CQ$93,A16) -> 5910 | S16: =VLOOKUP(S$8,Poblacion!$C$8:$CQ$93,A16) -> 4290 | T16: =VLOOKUP(T$8,Poblacion!$C$8:$CQ$93,A16) -> 4488 | U16: 38091
A17: 88 | B17: Adulto (30-59años) | C17: =VLOOKUP($C$8,Poblacion!$C$8:$CQ$93,A17) -> 374 | D17: =VLOOKUP($D$8,Poblacion!$C$8:$CQ$93,A17) -> 330 | E17: =VLOOKUP($E$8,Poblacion!$C$8:$CQ$93,A17) -> 601 | F17: =VLOOKUP($F$8,Poblacion!$C$8:$CQ$93,A17) -> 388 | G17: =VLOOKUP($G$8,Poblacion!$C$8:$CQ$93,A17) -> 3795 | H17: =VLOOKUP($H$8,Poblacion!$C$8:$CQ$93,A17) -> 761 | I17: =VLOOKUP($I$8,Poblacion!$C$8:$CQ$93,A17) -> 901 | J17: =VLOOKUP($J$8,Poblacion!$C$8:$CQ$93,A17) -> 517 | K17: 7667 | L17: 33.71591909 | N17: =VLOOKUP(N$8,Poblacion!$C$8:$CQ$93,A17) -> 16650 | P17: =VLOOKUP(P$8,Poblacion!$C$8:$CQ$93,A17) -> 12082 | Q17: =VLOOKUP(Q$8,Poblacion!$C$8:$CQ$93,A17) -> 27566 | R17: =VLOOKUP(R$8,Poblacion!$C$8:$CQ$93,A17) -> 9307 | S17: =VLOOKUP(S$8,Poblacion!$C$8:$CQ$93,A17) -> 6654 | T17: =VLOOKUP(T$8,Poblacion!$C$8:$CQ$93,A17) -> 8683 | U17: 64292
A18: 89 | B18: Adu.Mayor (60 a MAS) | C18: =VLOOKUP($C$8,Poblacion!$C$8:$CQ$93,A18) -> 311 | D18: =VLOOKUP($D$8,Poblacion!$C$8:$CQ$93,A18) -> 145 | E18: =VLOOKUP($E$8,Poblacion!$C$8:$CQ$93,A18) -> 365 | F18: =VLOOKUP($F$8,Poblacion!$C$8:$CQ$93,A18) -> 180 | G18: =VLOOKUP($G$8,Poblacion!$C$8:$CQ$93,A18) -> 798 | H18: =VLOOKUP($H$8,Poblacion!$C$8:$CQ$93,A18) -> 477 | I18: =VLOOKUP($I$8,Poblacion!$C$8:$CQ$93,A18) -> 392 | J18: =VLOOKUP($J$8,Poblacion!$C$8:$CQ$93,A18) -> 257 | K18: 2925 | L18: 12.86279683 | N18: =VLOOKUP(N$8,Poblacion!$C$8:$CQ$93,A18) -> 5947 | P18: =VLOOKUP(P$8,Poblacion!$C$8:$CQ$93,A18) -> 3461 | Q18: =VLOOKUP(Q$8,Poblacion!$C$8:$CQ$93,A18) -> 9160 | R18: =VLOOKUP(R$8,Poblacion!$C$8:$CQ$93,A18) -> 2693 | S18: =VLOOKUP(S$8,Poblacion!$C$8:$CQ$93,A18) -> 2174 | T18: =VLOOKUP(T$8,Poblacion!$C$8:$CQ$93,A18) -> 3191 | U18: 20679
A19: 80 | B19: Gestantes | C19: =VLOOKUP($C$8,Poblacion!$C$8:$CQ$93,A19) -> 8 | D19: =VLOOKUP($D$8,Poblacion!$C$8:$CQ$93,A19) -> 18 | E19: =VLOOKUP($E$8,Poblacion!$C$8:$CQ$93,A19) -> 36 | F19: =VLOOKUP($F$8,Poblacion!$C$8:$CQ$93,A19) -> 48 | G19: =VLOOKUP($G$8,Poblacion!$C$8:$CQ$93,A19) -> 351 | H19: =VLOOKUP($H$8,Poblacion!$C$8:$CQ$93,A19) -> 40 | I19: =VLOOKUP($I$8,Poblacion!$C$8:$CQ$93,A19) -> 78 | J19: =VLOOKUP($J$8,Poblacion!$C$8:$CQ$93,A19) -> 28 | K19: 607 | L19: 2.669305189 | N19: =VLOOKUP(N$8,Poblacion!$C$8:$CQ$93,A19) -> 941 | P19: =VLOOKUP(P$8,Poblacion!$C$8:$CQ$93,A19) -> 393 | Q19: =VLOOKUP(Q$8,Poblacion!$C$8:$CQ$93,A19) -> 743 | R19: =VLOOKUP(R$8,Poblacion!$C$8:$CQ$93,A19) -> 707 | S19: =VLOOKUP(S$8,Poblacion!$C$8:$CQ$93,A19) -> 173 | T19: =VLOOKUP(T$8,Poblacion!$C$8:$CQ$93,A19) -> 251 | U19: 2267
B20: TOTAL | C20: =C13+C15+C16+C17+C18 -> 1060 | D20: =D13+D15+D16+D17+D18 -> 990 | E20: 1654 | F20: 1149 | G20: 11463 | H20: 2185 | I20: 2722 | J20: 1517 | K20: =K13+K15+K16+K17+K18 -> 22740 | L20: =IFERROR((K20/$K$20)*100,0) -> 100 | N20: =N13+N15+N16+N17+N18 -> 45202 | P20: =P13+P15+P16+P17+P18 -> 36593 | Q20: =Q13+Q15+Q16+Q17+Q18 -> 78348 | R20: 28203 | S20: 20357 | T20: =T13+T15+T16+T17+T18 -> 25811 | U20: =U13+U15+U16+U17+U18 -> 189312
B21: =Interfaz!$A$22 -> Elaboración: Área de Estadística - RIS Huaura Oyón.
G25: 1 | H25: =VLOOKUP($G$25,Poblacion!$C$8:$E$93,3,FALSE) -> HUAURA - OYON
B26: POBLACION POR ETAPAS DE VIDA | C26: TOTAL | E26: PORC. (%) | H26: =+"POBLACION POR ETAPAS DE VIDA DEL "&$H$25 -> POBLACION POR ETAPAS DE VIDA DEL HUAURA - OYON
A27: 76 | B27: Neonatal (0-28dias) | C27: =VLOOKUP($G$25,Poblacion!$C$8:$CQ$93,$A27) -> 340 | E27: =IFERROR(($C27/$C$37)*100,0) -> 0.1449806835 | H27: =B30 -> Niño (0-11años) | I27: =C30 -> 51452
A28: 82 | B28: Infantil (Men.1año) | C28: =VLOOKUP($G$25,Poblacion!$C$8:$CQ$93,$A28) -> 4434 | E28: =IFERROR(($C28/$C$37)*100,0) -> 1.890718678 | H28: =B32 -> Adolescente (12-17años) | I28: 28571
A29: 83 | B29: Pre-escolar (01-04años) | C29: =VLOOKUP($G$25,Poblacion!$C$8:$CQ$93,$A29) -> 16483 | E29: 7.028578251 | H29: Adulto Joven (18-29años) | I29: 46923
A30: 84 | B30: Niño (0-11años) | C30: =VLOOKUP($G$25,Poblacion!$C$8:$CQ$93,$A30) -> 51452 | E30: 21.93984154 | H30: Adulto (30-59años) | I30: 80942
A31: 85 | B31: Escolar (05-17años) | C31: =VLOOKUP($G$25,Poblacion!$C$8:$CQ$93,$A31) -> 59106 | E31: 25.20361258 | H31: Adu.Mayor (60 a MAS) | I31: 26626
A32: 86 | B32: Adolescente (12-17años) | C32: =VLOOKUP($G$25,Poblacion!$C$8:$CQ$93,$A32) -> 28571 | E32: 12.18306796
A33: 87 | B33: Adulto Joven (18-29años) | C33: =VLOOKUP($G$25,Poblacion!$C$8:$CQ$93,$A33) -> 46923 | E33: 20.00861356
A34: 88 | B34: Adulto (30-59años) | C34: =VLOOKUP($G$25,Poblacion!$C$8:$CQ$93,$A34) -> 80942 | E34: 34.51478377
A35: 89 | B35: Adu.Mayor (60 a MAS) | C35: =VLOOKUP($G$25,Poblacion!$C$8:$CQ$93,$A35) -> 26626 | E35: 11.35369317
A36: 80 | B36: Gestantes | C36: =VLOOKUP($G$25,Poblacion!$C$8:$CQ$93,$A36) -> 5499 | E36: 2.344849348
B37: TOTAL | C37: =C30+C32+C33+C34+C35 -> 234514 | E37: 100
B38: =Interfaz!$A$22 -> Elaboración: Área de Estadística - RIS Huaura Oyón.

Sheet Pobla_EESS
D2: POBLACIÓN SEGÚN DISTRITOS Y EE.SS - 2011
D8: SIN MICRORED | K8: MICRORED HUALMAY
D9: DISTRITO | E9: POBLACIÓN | F9: EE.SS | G9: POBLACIÓN | H9: MASCULINO | I9: FEMENINO | K9: DISTRITO | L9: POBLACIÓN | M9: EE.SS | N9: POBLACIÓN | O9: MASCULINO | P9: FEMENINO
D10: HUACHO | E10: =G10 -> 45202 | F10: HOSPITAL HUACHO | G10: =VLOOKUP($F10,Poblacion!$E$8:$I$87,2,FALSE) -> 45202 | H10: =VLOOKUP($F10,Poblacion!$E$8:$I$87,4,FALSE) -> 22379 | I10: =VLOOKUP($F10,Poblacion!$E$8:$I$87,5,FALSE) -> 22823 | K10: HUALMAY | L10: =SUM(N10:N12) -> 28163 | M10: C.S. HUALMAY | N10: =VLOOKUP($M10,Poblacion!$E$8:$I$87,2,FALSE) -> 14884 | O10: =VLOOKUP($M10,Poblacion!$E$8:$I$87,4,FALSE) -> 7370 | P10: =VLOOKUP($M10,Poblacion!$E$8:$I$87,5,FALSE) -> 7514
D11: HUACHO | F11: CLINICA SAN PEDRO | G11: 0 | K11: HUALMAY | M11: P.S. DGO. MANDAMIENTO | N11: =VLOOKUP($M11,Poblacion!$E$8:$I$87,2,FALSE) -> 9294 | O11: =VLOOKUP($M11,Poblacion!$E$8:$I$87,4,FALSE) -> 4603 | P11: =VLOOKUP($M11,Poblacion!$E$8:$I$87,5,FALSE) -> 4691
D12: HUACHO | F12: ESSALUD GUSTAVO LA NATA | G12: 0 | K12: HUALMAY | M12: P.S. CAMPO ALEGRE | N12: =VLOOKUP($M12,Poblacion!$E$8:$I$87,2,FALSE) -> 3985 | O12: =VLOOKUP($M12,Poblacion!$E$8:$I$87,4,FALSE) -> 1974 | P12: =VLOOKUP($M12,Poblacion!$E$8:$I$87,5,FALSE) -> 2011
D13: HUACHO | F13: CLINICA SAN BARTOLOME | G13: 0 | K13: S.MARIA | L13: =SUM(N13:N17) -> 30893 | M13: C.S. SANTA MARIA | N13: =VLOOKUP($M13,Poblacion!$E$8:$I$87,2,FALSE) -> 8650 | O13: =VLOOKUP($M13,Poblacion!$E$8:$I$87,4,FALSE) -> 4284 | P13: =VLOOKUP($M13,Poblacion!$E$8:$I$87,5,FALSE) -> 4366
D14: HUACHO | F14: GOLD ESTANDAR EIRL. | G14: 0 | K14: S.MARIA | M14: P.S. CHONTA | N14: =VLOOKUP($M14,Poblacion!$E$8:$I$87,2,FALSE) -> 4634 | O14: =VLOOKUP($M14,Poblacion!$E$8:$I$87,4,FALSE) -> 2298 | P14: =VLOOKUP($M14,Poblacion!$E$8:$I$87,5,FALSE) -> 2336
D15: CARQUIN | F15: INSITUTO NACIONAL PENITENCIARIO CARQUIN | G15: 0 | K15: S.MARIA | M15: P.S. ZAPATA | N15: =VLOOKUP($M15,Poblacion!$E$8:$I$87,2,FALSE) -> 2471 | O15: =VLOOKUP($M15,Poblacion!$E$8:$I$87,4,FALSE) -> 1224 | P15: =VLOOKUP($M15,Poblacion!$E$8:$I$87,5,FALSE) -> 1247
F16: OTROS ESTABLECIMIENTOS | G16: 0 | K16: S.MARIA | M16: P.S. AMADO VELASQUEZ | N16: =VLOOKUP($M16,Poblacion!$E$8:$I$87,2,FALSE) -> 8032 | O16: =VLOOKUP($M16,Poblacion!$E$8:$I$87,4,FALSE) -> 3975 | P16: =VLOOKUP($M16,Poblacion!$E$8:$I$87,5,FALSE) -> 4057
D17: TOTAL SIN MICRORED | G17: =SUM(G10:G16) -> 45202 | H17: =SUM(H10:H16) -> 22379 | I17: =SUM(I10:I16) -> 22823 | K17: S.MARIA | M17: P.S. SAN BARTOLOME | N17: =VLOOKUP($M17,Poblacion!$E$8:$I$87,2,FALSE) -> 7106 | O17: =VLOOKUP($M17,Poblacion!$E$8:$I$87,4,FALSE) -> 3516 | P17: =VLOOKUP($M17,Poblacion!$E$8:$I$87,5,FALSE) -> 3590
D18: ='etapas y mredes'!B21 -> Elaboración: Área de Estadística - RIS Huaura Oyón. | K18: CARQUIN | L18: =N18 -> 6540 | M18: P.S. CARQUIN | N18: =VLOOKUP($M18,Poblacion!$E$8:$I$87,2,FALSE) -> 6540 | O18: =VLOOKUP($M18,Poblacion!$E$8:$I$87,4,FALSE) -> 3235 | P18: =VLOOKUP($M18,Poblacion!$E$8:$I$87,5,FALSE) -> 3305
K19: HUACHO | L19: =N19 -> 12752 | M19: C.S. MANZANARES | N19: =VLOOKUP($M19,Poblacion!$E$8:$I$87,2,FALSE) -> 12752 | O19: =VLOOKUP($M19,Poblacion!$E$8:$I$87,4,FALSE) -> 6313 | P19: =VLOOKUP($M19,Poblacion!$E$8:$I$87,5,FALSE) -> 6439
K20: TOTAL MCR HUALMAY | M20: TOTAL MICRORED HUALMAY | N20: =SUM(N10:N19) -> 78348 | O20: =SUM(O10:O19) -> 38792 | P20: =SUM(P10:P19) -> 39556
K21: =D18 -> Elaboración: Área de Estadística - RIS Huaura Oyón.
D24: MICRORED HUAURA | K24: MICRORED VEGUETA
D25: DISTRITO | E25: POBLACIÓN | F25: EE.SS | G25: POBLACIÓN | H25: MASCULINO | I25: FEMENINO | K25: DISTRITO | L25: POBLACIÓN | M25: EE.SS | N25: POBLACIÓN | O25: MASCULINO | P25: FEMENINO
D26: HUAURA | E26: =SUM(G26:G30) -> 33759 | F26: C.S. HUAURA | G26: =VLOOKUP($F26,Poblacion!$E$8:$I$87,2,FALSE) -> 15192 | H26: =VLOOKUP($F26,Poblacion!$E$8:$I$87,4,FALSE) -> 7526 | I26: =VLOOKUP($F26,Poblacion!$E$8:$I$87,5,FALSE) -> 7666 | K26: VEGUETA | L26: =SUM(N26:N31) -> 20357 | M26: C.S. VEGUETA | N26: =VLOOKUP($M26,Poblacion!$E$8:$I$87,2,FALSE) -> 6100 | O26: =VLOOKUP($M26,Poblacion!$E$8:$I$87,4,FALSE) -> 3017 | P26: =VLOOKUP($M26,Poblacion!$E$8:$I$87,5,FALSE) -> 3083
D27: HUAURA | F27: C.S. SOCORRO | G27: =VLOOKUP($F27,Poblacion!$E$8:$I$87,2,FALSE) -> 11816 | H27: =VLOOKUP($F27,Poblacion!$E$8:$I$87,4,FALSE) -> 5853 | I27: =VLOOKUP($F27,Poblacion!$E$8:$I$87,5,FALSE) -> 5963 | K27: VEGUETA | M27: P.S. MAZO | N27: =VLOOKUP($M27,Poblacion!$E$8:$I$87,2,FALSE) -> 2036 | O27: =VLOOKUP($M27,Poblacion!$E$8:$I$87,4,FALSE) -> 1009 | P27: =VLOOKUP($M27,Poblacion!$E$8:$I$87,5,FALSE) -> 1027
D28: HUAURA | F28: P.S. HUMAYA | G28: =VLOOKUP($F28,Poblacion!$E$8:$I$87,2,FALSE) -> 4220 | H28: =VLOOKUP($F28,Poblacion!$E$8:$I$87,4,FALSE) -> 2093 | I28: =VLOOKUP($F28,Poblacion!$E$8:$I$87,5,FALSE) -> 2127 | K28: VEGUETA | M28: P.S. PRIMAVERA | N28: =VLOOKUP($M28,Poblacion!$E$8:$I$87,2,FALSE) -> 2242 | O28: =VLOOKUP($M28,Poblacion!$E$8:$I$87,4,FALSE) -> 1109 | P28: =VLOOKUP($M28,Poblacion!$E$8:$I$87,5,FALSE) -> 1133
D29: HUAURA | F29: P.S. VILCAHUAURA | G29: =VLOOKUP($F29,Poblacion!$E$8:$I$87,2,FALSE) -> 2025 | H29: =VLOOKUP($F29,Poblacion!$E$8:$I$87,4,FALSE) -> 1001 | I29: =VLOOKUP($F29,Poblacion!$E$8:$I$87,5,FALSE) -> 1024 | K29: VEGUETA | M29: P.S. MARIATEGUI | N29: =VLOOKUP($M29,Poblacion!$E$8:$I$87,2,FALSE) -> 4888 | O29: =VLOOKUP($M29,Poblacion!$E$8:$I$87,4,FALSE) -> 2421 | P29: =VLOOKUP($M29,Poblacion!$E$8:$I$87,5,FALSE) -> 2467
D30: HUAURA | F30: P.S. PEÑICO | G30: =VLOOKUP($F30,Poblacion!$E$8:$I$87,2,FALSE) -> 506 | H30: =VLOOKUP($F30,Poblacion!$E$8:$I$87,4,FALSE) -> 242 | I30: =VLOOKUP($F30,Poblacion!$E$8:$I$87,5,FALSE) -> 264 | K30: VEGUETA | M30: P.S. MEDIO MUNDO | N30: =VLOOKUP($M30,Poblacion!$E$8:$I$87,2,FALSE) -> 4275 | O30: =VLOOKUP($M30,Poblacion!$E$8:$I$87,4,FALSE) -> 2119 | P30: =VLOOKUP($M30,Poblacion!$E$8:$I$87,5,FALSE) -> 2156
D31: AMBAR | E31: =SUM(G31:G32) -> 2834 | F31: C.S. AMBAR | G31: =VLOOKUP($F31,Poblacion!$E$8:$I$87,2,FALSE) -> 1700 | H31: =VLOOKUP($F31,Poblacion!$E$8:$I$87,4,FALSE) -> 843 | I31: =VLOOKUP($F31,Poblacion!$E$8:$I$87,5,FALSE) -> 857 | K31: VEGUETA | M31: P.S. TIROLER | N31: =VLOOKUP($M31,Poblacion!$E$8:$I$87,2,FALSE) -> 816 | O31: =VLOOKUP($M31,Poblacion!$E$8:$I$87,4,FALSE) -> 401 | P31: =VLOOKUP($M31,Poblacion!$E$8:$I$87,5,FALSE) -> 415
D32: AMBAR | F32: P.S. AYNACA | G32: =VLOOKUP($F32,Poblacion!$E$8:$I$87,2,FALSE) -> 1134 | H32: =VLOOKUP($F32,Poblacion!$E$8:$I$87,4,FALSE) -> 560 | I32: =VLOOKUP($F32,Poblacion!$E$8:$I$87,5,FALSE) -> 574 | K32: TOTAL MCR VEGUETA | N32: =SUM(N26:N31) -> 20357 | O32: =SUM(O26:O31) -> 10076 | P32: =SUM(P26:P31) -> 10281
D33: TOTAL MCR HUAURA | F33: TOTAL MICRORED HUAURA | G33: =SUM(G26:G32) -> 36593 | H33: =SUM(H26:H32) -> 18118 | I33: 18475 | K33: =K21 -> Elaboración: Área de Estadística - RIS Huaura Oyón.
D34: =K21 -> Elaboración: Área de Estadística - RIS Huaura Oyón.
D38: MICRORED SAYAN | K38: MICRORED CHURIN OYÓN
D39: DISTRITO | E39: POBLACIÓN | F39: EE.SS | G39: POBLACIÓN | H39: MASCULINO | I39: FEMENINO | K39: DISTRITO | L39: POBLACIÓN | M39: EE.SS | N39: POBLACIÓN | O39: MASCULINO | P39: FEMENINO
D40: SAYAN | E40: =SUM(G40:G46) -> 23386 | F40: C.S. SAYAN | G40: =VLOOKUP($F40,Poblacion!$E$8:$I$87,2,FALSE) -> 9588 | H40: =VLOOKUP($F40,Poblacion!$E$8:$I$87,4,FALSE) -> 4752 | I40: =VLOOKUP($F40,Poblacion!$E$8:$I$87,5,FALSE) -> 4836 | K40: PACHANGARA | L40: =SUM(N40:N42) -> 3445 | M40: C.S. CHURIN | N40: =VLOOKUP(M40,Poblacion!$E$5:$I$88,2,FALSE) -> 2722 | O40: =VLOOKUP(M40,Poblacion!$E$5:$I$88,4,FALSE) -> 1349 | P40: =VLOOKUP(M40,Poblacion!$E$5:$I$88,5,FALSE) -> 1373
D41: SAYAN | F41: C.S. 9 DE OCTUBRE | G41: =VLOOKUP($F41,Poblacion!$E$8:$I$87,2,FALSE) -> 4911 | H41: =VLOOKUP($F41,Poblacion!$E$8:$I$87,4,FALSE) -> 2433 | I41: =VLOOKUP($F41,Poblacion!$E$8:$I$87,5,FALSE) -> 2478 | K41: PACHANGARA | M41: P.S. PACHANGARA | N41: =VLOOKUP(M41,Poblacion!$E$5:$I$88,2,FALSE) -> 344 | O41: =VLOOKUP(M41,Poblacion!$E$5:$I$88,4,FALSE) -> 165 | P41: =VLOOKUP(M41,Poblacion!$E$5:$I$88,5,FALSE) -> 179
D42: SAYAN | F42: P.S. CHAMBARA | G42: =VLOOKUP($F42,Poblacion!$E$8:$I$87,2,FALSE) -> 1169 | H42: =VLOOKUP($F42,Poblacion!$E$8:$I$87,4,FALSE) -> 575 | I42: =VLOOKUP($F42,Poblacion!$E$8:$I$87,5,FALSE) -> 594 | K42: PACHANGARA | M42: P.S. HUANCAHUASI | N42: =VLOOKUP(M42,Poblacion!$E$5:$I$88,2,FALSE) -> 379 | O42: =VLOOKUP(M42,Poblacion!$E$5:$I$88,4,FALSE) -> 182 | P42: =VLOOKUP(M42,Poblacion!$E$5:$I$88,5,FALSE) -> 197
D43: SAYAN | F43: P.S. LA MERCED | G43: =VLOOKUP($F43,Poblacion!$E$8:$I$87,2,FALSE) -> 2339 | H43: =VLOOKUP($F43,Poblacion!$E$8:$I$87,4,FALSE) -> 1155 | I43: =VLOOKUP($F43,Poblacion!$E$8:$I$87,5,FALSE) -> 1184 | K43: OYON | L43: =SUM(N43:N47) -> 13811 | M43: C.S. OYON | N43: =VLOOKUP(M43,Poblacion!$E$5:$I$88,2,FALSE) -> 11463 | O43: =VLOOKUP(M43,Poblacion!$E$5:$I$88,4,FALSE) -> 5678 | P43: =VLOOKUP(M43,Poblacion!$E$5:$I$88,5,FALSE) -> 5785
D44: SAYAN | F44: P.S. LA VILLA | G44: =VLOOKUP($F44,Poblacion!$E$8:$I$87,2,FALSE) -> 3742 | H44: =VLOOKUP($F44,Poblacion!$E$8:$I$87,4,FALSE) -> 1856 | I44: =VLOOKUP($F44,Poblacion!$E$8:$I$87,5,FALSE) -> 1886 | K44: OYON | M44: P.S. MALLAY | N44: =VLOOKUP(M44,Poblacion!$E$5:$I$88,2,FALSE) -> 691 | O44: =VLOOKUP(M44,Poblacion!$E$5:$I$88,4,FALSE) -> 338 | P44: =VLOOKUP(M44,Poblacion!$E$5:$I$88,5,FALSE) -> 353
D45: SAYAN | F45: P.S. EL AHORCADO | G45: =VLOOKUP($F45,Poblacion!$E$8:$I$87,2,FALSE) -> 935 | H45: =VLOOKUP($F45,Poblacion!$E$8:$I$87,4,FALSE) -> 460 | I45: =VLOOKUP($F45,Poblacion!$E$8:$I$87,5,FALSE) -> 475 | K45: OYON | M45: P.S. NAVA | N45: =VLOOKUP(M45,Poblacion!$E$5:$I$88,2,FALSE) -> 138 | O45: =VLOOKUP(M45,Poblacion!$E$5:$I$88,4,FALSE) -> 60 | P45: =VLOOKUP(M45,Poblacion!$E$5:$I$88,5,FALSE) -> 78
D46: SAYAN | F46: P.S. LA UNION | G46: =VLOOKUP($F46,Poblacion!$E$8:$I$87,2,FALSE) -> 702 | H46: =VLOOKUP($F46,Poblacion!$E$8:$I$87,4,FALSE) -> 343 | I46: =VLOOKUP($F46,Poblacion!$E$8:$I$87,5,FALSE) -> 359 | K46: OYON | M46: P.S. TINTA | N46: =VLOOKUP(M46,Poblacion!$E$5:$I$88,2,FALSE) -> 414 | O46: =VLOOKUP(M46,Poblacion!$E$5:$I$88,4,FALSE) -> 198 | P46: =VLOOKUP(M46,Poblacion!$E$5:$I$88,5,FALSE) -> 216
D47: L.PRADO | E47: =SUM(G47:G50) -> 2034 | F47: P.S. AUQUIMARCA | G47: =VLOOKUP($F47,Poblacion!$E$8:$I$87,2,FALSE) -> 366 | H47: =VLOOKUP($F47,Poblacion!$E$8:$I$87,4,FALSE) -> 177 | I47: =VLOOKUP($F47,Poblacion!$E$8:$I$87,5,FALSE) -> 189 | K47: OYON | M47: P.S. RAPAZ | N47: =VLOOKUP(M47,Poblacion!$E$5:$I$88,2,FALSE) -> 1105 | O47: =VLOOKUP(M47,Poblacion!$E$5:$I$88,4,FALSE) -> 544 | P47: =VLOOKUP(M47,Poblacion!$E$5:$I$88,5,FALSE) -> 561
D48: L.PRADO | F48: P.S. PARAN | G48: =VLOOKUP($F48,Poblacion!$E$8:$I$87,2,FALSE) -> 814 | H48: =VLOOKUP($F48,Poblacion!$E$8:$I$87,4,FALSE) -> 398 | I48: =VLOOKUP($F48,Poblacion!$E$8:$I$87,5,FALSE) -> 416 | K48: ANDAJES | L48: =N48 -> 1060 | M48: P.S. ANDAJES | N48: =VLOOKUP(M48,Poblacion!$E$5:$I$88,2,FALSE) -> 1060 | O48: =VLOOKUP(M48,Poblacion!$E$5:$I$88,4,FALSE) -> 520 | P48: =VLOOKUP(M48,Poblacion!$E$5:$I$88,5,FALSE) -> 540
D49: L.PRADO | F49: P.S. SANTA CRUZ | G49: =VLOOKUP($F49,Poblacion!$E$8:$I$87,2,FALSE) -> 447 | H49: =VLOOKUP($F49,Poblacion!$E$8:$I$87,4,FALSE) -> 212 | I49: =VLOOKUP($F49,Poblacion!$E$8:$I$87,5,FALSE) -> 235 | K49: CAUJUL | L49: =N49 -> 990 | M49: P.S. CAUJUL | N49: =VLOOKUP(M49,Poblacion!$E$5:$I$88,2,FALSE) -> 990 | O49: =VLOOKUP(M49,Poblacion!$E$5:$I$88,4,FALSE) -> 487 | P49: =VLOOKUP(M49,Poblacion!$E$5:$I$88,5,FALSE) -> 503
D50: L.PRADO | F50: P.S. HUANANGUI | G50: =VLOOKUP($F50,Poblacion!$E$8:$I$87,2,FALSE) -> 407 | H50: =VLOOKUP($F50,Poblacion!$E$8:$I$87,4,FALSE) -> 195 | I50: =VLOOKUP($F50,Poblacion!$E$8:$I$87,5,FALSE) -> 212 | K50: NAVAN | L50: 1149 | M50: P.S. NAVAN | N50: =VLOOKUP(M50,Poblacion!$E$5:$I$88,2,FALSE) -> 1149 | O50: =VLOOKUP(M50,Poblacion!$E$5:$I$88,4,FALSE) -> 567 | P50: =VLOOKUP(M50,Poblacion!$E$5:$I$88,5,FALSE) -> 582
D51: COCHAMARCA | E51: =SUM(G51:G53) -> 1578 | F51: P.S. COCHAMARCA | G51: =VLOOKUP($F51,Poblacion!$E$8:$I$87,2,FALSE) -> 568 | H51: =VLOOKUP($F51,Poblacion!$E$8:$I$87,4,FALSE) -> 274 | I51: =VLOOKUP($F51,Poblacion!$E$8:$I$87,5,FALSE) -> 294 | K51: CHECRAS | L51: 1654 | M51: P.S. PUÑUN | N51: =VLOOKUP(M51,Poblacion!$E$5:$I$88,2,FALSE) -> 1654 | O51: =VLOOKUP(M51,Poblacion!$E$5:$I$88,4,FALSE) -> 818 | P51: =VLOOKUP(M51,Poblacion!$E$5:$I$88,5,FALSE) -> 836
D52: COCHAMARCA | F52: P.S. COLCAPAMPA | G52: =VLOOKUP($F52,Poblacion!$E$8:$I$87,2,FALSE) -> 742 | H52: =VLOOKUP($F52,Poblacion!$E$8:$I$87,4,FALSE) -> 364 | I52: =VLOOKUP($F52,Poblacion!$E$8:$I$87,5,FALSE) -> 378 | K52: PACCHO | L52: =SUM(N52:N55) -> 2185 | M52: P.S. PACCHO | N52: =VLOOKUP(M52,Poblacion!$E$5:$I$88,2,FALSE) -> 830 | O52: =VLOOKUP(M52,Poblacion!$E$5:$I$88,4,FALSE) -> 404 | P52: =VLOOKUP(M52,Poblacion!$E$5:$I$88,5,FALSE) -> 426
D53: COCHAMARCA | F53: P.S. YARUCAYA | G53: =VLOOKUP($F53,Poblacion!$E$8:$I$87,2,FALSE) -> 268 | H53: =VLOOKUP($F53,Poblacion!$E$8:$I$87,4,FALSE) -> 124 | I53: =VLOOKUP($F53,Poblacion!$E$8:$I$87,5,FALSE) -> 144 | K53: PACCHO | M53: P.S. LACSANGA | N53: =VLOOKUP(M53,Poblacion!$E$5:$I$88,2,FALSE) -> 459 | O53: =VLOOKUP(M53,Poblacion!$E$5:$I$88,4,FALSE) -> 221 | P53: =VLOOKUP(M53,Poblacion!$E$5:$I$88,5,FALSE) -> 238
D54: IHUARI - ACOTAMA | E54: =G54 -> 1205 | F54: IHUARI - ACOTAMA | G54: =VLOOKUP($F54,Poblacion!$E$8:$I$87,2,FALSE) -> 1205 | H54: =VLOOKUP($F54,Poblacion!$E$8:$I$87,4,FALSE) -> 595 | I54: =VLOOKUP($F54,Poblacion!$E$8:$I$87,5,FALSE) -> 610 | K54: PACCHO | M54: P.S. AYARANGA | N54: =VLOOKUP(M54,Poblacion!$E$5:$I$88,2,FALSE) -> 415 | O54: =VLOOKUP(M54,Poblacion!$E$5:$I$88,4,FALSE) -> 197 | P54: =VLOOKUP(M54,Poblacion!$E$5:$I$88,5,FALSE) -> 219
D55: TOTAL MICRORED SAYAN | G55: =SUM(G40:G54) -> 28203 | H55: =SUM(H40:H54) -> 13913 | I55: 14290 | K55: PACCHO | M55: P.S. MUZGA | N55: =VLOOKUP(M55,Poblacion!$E$5:$I$88,2,FALSE) -> 481 | O55: =VLOOKUP(M55,Poblacion!$E$5:$I$88,4,FALSE) -> 229 | P55: =VLOOKUP(M55,Poblacion!$E$5:$I$88,5,FALSE) -> 251
D56: =K33 -> Elaboración: Área de Estadística - RIS Huaura Oyón. | K56: S.LEONOR | L56: =SUM(N56:N58) -> 1517 | M56: P.S. CHIUCHIN | N56: =VLOOKUP(M56,Poblacion!$E$5:$I$88,2,FALSE) -> 925 | O56: =VLOOKUP(M56,Poblacion!$E$5:$I$88,4,FALSE) -> 455 | P56: =VLOOKUP(M56,Poblacion!$E$5:$I$88,5,FALSE) -> 470
K57: S.LEONOR | M57: P.S. PARQUIN | N57: =VLOOKUP(M57,Poblacion!$E$5:$I$88,2,FALSE) -> 425 | O57: =VLOOKUP(M57,Poblacion!$E$5:$I$88,4,FALSE) -> 204 | P57: =VLOOKUP(M57,Poblacion!$E$5:$I$88,5,FALSE) -> 221
K58: S.LEONOR | M58: P.S. JUCUL | N58: =VLOOKUP(M58,Poblacion!$E$5:$I$88,2,FALSE) -> 167 | O58: =VLOOKUP(M58,Poblacion!$E$5:$I$88,4,FALSE) -> 77 | P58: =VLOOKUP(M58,Poblacion!$E$5:$I$88,5,FALSE) -> 90
K59: TOTAL MICRORED CHURIN - OYON | N59: =SUM(N40:N58) -> 25811 | O59: =SUM(O40:O58) -> 12693 | P59: 13118
K60: =K33 -> Elaboración: Área de Estadística - RIS Huaura Oyón.
